Workbook

Sheet A. Erb
A1: Name
A2: Erb Alex
A3: Gutschein | B3: Migros
A4: Waffe | B4: 90
B5: Sau Stich | N5: Glück | Q5: Auszahlung
B6: Nr. Passe | C6: 1. Schuss | D6: 2. Schuss | E6: Total | F6: Rang | H6: Besten Passen | J6: Besten Einzel | L6: Total Passen und Einzel
B7: 1 | C7: 97 | D7: 94 | E7: =SUM($C7:$D7) -> 191 | F7: =RANK(E7,$E$7:$E$56,0) -> 1 | H7: =LARGE(E7:E56,1) -> 191 | J7: =IF($B$4=90,LARGE(C10:D56,1),IF($B$4="St",LARGE(C11:D56,1),IF($B$4=57,LARGE(C9:D56,1)))) -> 91
B8: 2 | C8: 89 | D8: 93 | E8: =SUM($C8:$D8) -> 182 | F8: =RANK(E8,$E$7:$E$56,0) -> 2 | H8: =LARGE(E7:E56,2) -> 182 | J8: =IF($B$4=90,LARGE(C10:D56,2),IF($B$4="St",LARGE(C11:D56,2),IF($B$4=57,LARGE(C9:D56,2)))) -> 90 | L8: =IF($B$4=57,SUM(H7:H8,J7:J12),IF($B$4=90,SUM(H7:H9,J7:J10),IF($B$4="St",SUM(H7:H10,J7:J8)))) -> 914 | N8: Ansage | O8: 253 | Q8: 1. Schuss | R8: 10
B9: 3 | C9: 88 | D9: 93 | E9: =SUM($C9:$D9) -> 181 | F9: =RANK(E9,$E$7:$E$56,0) -> 3 | H9: =LARGE(E7:E56,3) -> 181 | J9: =IF($B$4=90,LARGE($C$10:$D$56,3),IF($B$4="St",LARGE($C$11:$D$56,3),IF($B$4=57,LARGE($C$9:$D$56,3)))) -> 90 | N9: Geschossen | O9: 280 | Q9: 2. Schuss | R9: 8
B10: 4 | C10: 89 | D10: 87 | E10: =SUM($C10:$D10) -> 176 | F10: =RANK(E10,$E$7:$E$56,0) -> 4 | H10: =LARGE(E7:E56,4) -> 176 | J10: =IF($B$4=90,LARGE(C10:D56,4),IF($B$4="St",LARGE(C11:D56,4),IF($B$4=57,LARGE(C9:D56,4)))) -> 89 | N10: Differenz | O10: =IF(O8>0,IF(O8>O9,O8-O9,O9-O8),"") -> 27 | Q10: 3. Schuss | R10: 10
B11: 5 | C11: 87 | D11: 87 | E11: =SUM($C11:$D11) -> 174 | F11: =RANK(E11,$E$7:$E$56,0) -> 5 | J11: =IF($B$4=90,LARGE(C10:D56,5),IF($B$4="St",LARGE(C11:D56,5),IF($B$4=57,LARGE(C9:D56,5)))) -> 88 | Q11: 4. Schuss | R11: 8
B12: 6 | C12: 81 | D12: 91 | E12: =SUM($C12:$D12) -> 172 | F12: =RANK(E12,$E$7:$E$56,0) -> 6 | J12: =IF($B$4=90,LARGE(C10:D56,6),IF($B$4="St",LARGE(C11:D56,6),IF($B$4=57,LARGE(C9:D56,6)))) -> 88 | Q12: 5. Schuss | R12: 8
B13: 7 | C13: 81 | D13: 88 | E13: =SUM($C13:$D13) -> 169 | F13: =RANK(E13,$E$7:$E$56,0) -> 7 | J13: =IF($B$4=90,LARGE(C11:D57,7),IF($B$4="St",LARGE(C12:D57,7),IF($B$4=57,LARGE(C10:D57,7)))) -> 88 | Q13: 6. Schuss | R13: 9
B14: 8 | C14: 78 | D14: 90 | E14: =SUM($C14:$D14) -> 168 | F14: =RANK(E14,$E$7:$E$56,0) -> 8 | J14: =IF($B$4=90,LARGE(C12:D58,8),IF($B$4="St",LARGE(C13:D58,8),IF($B$4=57,LARGE(C11:D58,8)))) -> 87 | Q14: 7. Schuss | R14: 9
B15: 9 | C15: 82 | D15: 82 | E15: =SUM($C15:$D15) -> 164 | F15: =RANK(E15,$E$7:$E$56,0) -> 9 | J15: =IF($B$4=90,LARGE(C13:D59,9),IF($B$4="St",LARGE(C14:D59,9),IF($B$4=57,LARGE(C12:D59,9)))) -> 82 | Q15: 8. Schuss | R15: 10
B16: 10 | C16: 75 | D16: 88 | E16: =SUM($C16:$D16) -> 163 | F16: =RANK(E16,$E$7:$E$56,0) -> 10 | Q16: 9. Schuss | R16: 8
B17: 11 | C17: 90 | D17: 73 | E17: =SUM($C17:$D17) -> 163 | F17: =RANK(E17,$E$7:$E$56,0) -> 10 | Q17: 10. Schuss | R17: 10
B18: 12 | C18: 88 | D18: 74 | E18: =SUM($C18:$D18) -> 162 | F18: =RANK(E18,$E$7:$E$56,0) -> 12 | Q18: Total | R18: =SUM(R8:R17) -> 90
B19: 13 | C19: 74 | D19: 87 | E19: =SUM($C19:$D19) -> 161 | F19: =RANK(E19,$E$7:$E$56,0) -> 13
B20: 14 | C20: 88 | D20: 70 | E20: =SUM($C20:$D20) -> 158 | F20: =RANK(E20,$E$7:$E$56,0) -> 14
B21: 15 | C21: 84 | D21: 74 | E21: =SUM($C21:$D21) -> 158 | F21: =RANK(E21,$E$7:$E$56,0) -> 14
B22: 16 | C22: 73 | D22: 82 | E22: =SUM($C22:$D22) -> 155 | F22: =RANK(E22,$E$7:$E$56,0) -> 16
B23: 17 | C23: 78 | D23: 74 | E23: =SUM($C23:$D23) -> 152 | F23: =RANK(E23,$E$7:$E$56,0) -> 17
B24: 18 | C24: 76 | D24: 72 | E24: =SUM($C24:$D24) -> 148 | F24: =RANK(E24,$E$7:$E$56,0) -> 18
B25: 19 | C25: 78 | D25: 69 | E25: =SUM($C25:$D25) -> 147 | F25: =RANK(E25,$E$7:$E$56,0) -> 19
B26: 20 | C26: 65 | D26: 69 | E26: =SUM($C26:$D26) -> 134 | F26: =RANK(E26,$E$7:$E$56,0) -> 20
B27: 21 | E27: =SUM($C27:$D27) -> 0 | F27: =RANK(E27,$E$7:$E$56,0) -> 21
B28: 22 | E28: =SUM($C28:$D28) -> 0 | F28: =RANK(E28,$E$7:$E$56,0) -> 21
B29: 23 | E29: =SUM($C29:$D29) -> 0 | F29: =RANK(E29,$E$7:$E$56,0) -> 21
B30: 24 | E30: =SUM($C30:$D30) -> 0 | F30: =RANK(E30,$E$7:$E$56,0) -> 21
B31: 25 | E31: =SUM($C31:$D31) -> 0 | F31: =RANK(E31,$E$7:$E$56,0) -> 21
B32: 26 | E32: =SUM($C32:$D32) -> 0 | F32: =RANK(E32,$E$7:$E$56,0) -> 21
B33: 27 | E33: =SUM($C33:$D33) -> 0 | F33: =RANK(E33,$E$7:$E$56,0) -> 21
B34: 28 | E34: =SUM($C34:$D34) -> 0 | F34: =RANK(E34,$E$7:$E$56,0) -> 21
B35: 29 | E35: =SUM($C35:$D35) -> 0 | F35: =RANK(E35,$E$7:$E$56,0) -> 21
B36: 30 | E36: =SUM($C36:$D36) -> 0 | F36: =RANK(E36,$E$7:$E$56,0) -> 21
B37: 31 | E37: =SUM($C37:$D37) -> 0 | F37: =RANK(E37,$E$7:$E$56,0) -> 21
B38: 32 | E38: =SUM($C38:$D38) -> 0 | F38: =RANK(E38,$E$7:$E$56,0) -> 21
B39: 33 | E39: =SUM($C39:$D39) -> 0 | F39: =RANK(E39,$E$7:$E$56,0) -> 21
B40: 34 | E40: =SUM($C40:$D40) -> 0 | F40: =RANK(E40,$E$7:$E$56,0) -> 21
B41: 35 | E41: =SUM($C41:$D41) -> 0 | F41: =RANK(E41,$E$7:$E$56,0) -> 21
B42: 36 | E42: =SUM($C42:$D42) -> 0 | F42: =RANK(E42,$E$7:$E$56,0) -> 21
B43: 37 | E43: =SUM($C43:$D43) -> 0 | F43: =RANK(E43,$E$7:$E$56,0) -> 21
B44: 38 | E44: =SUM($C44:$D44) -> 0 | F44: =RANK(E44,$E$7:$E$56,0) -> 21
B45: 39 | E45: =SUM($C45:$D45) -> 0 | F45: =RANK(E45,$E$7:$E$56,0) -> 21
B46: 40 | E46: =SUM($C46:$D46) -> 0 | F46: =RANK(E46,$E$7:$E$56,0) -> 21
B47: 41 | E47: =SUM($C47:$D47) -> 0 | F47: =RANK(E47,$E$7:$E$56,0) -> 21
B48: 42 | E48: =SUM($C48:$D48) -> 0 | F48: =RANK(E48,$E$7:$E$56,0) -> 21
B49: 43 | E49: =SUM($C49:$D49) -> 0 | F49: =RANK(E49,$E$7:$E$56,0) -> 21
B50: 44 | E50: =SUM($C50:$D50) -> 0 | F50: =RANK(E50,$E$7:$E$56,0) -> 21
B51: 45 | E51: =SUM($C51:$D51) -> 0 | F51: =RANK(E51,$E$7:$E$56,0) -> 21
B52: 46 | E52: =SUM($C52:$D52) -> 0 | F52: =RANK(E52,$E$7:$E$56,0) -> 21
B53: 47 | E53: =SUM($C53:$D53) -> 0 | F53: =RANK(E53,$E$7:$E$56,0) -> 21
B54: 48 | E54: =SUM($C54:$D54) -> 0 | F54: =RANK(E54,$E$7:$E$56,0) -> 21
B55: 49 | E55: =SUM($C55:$D55) -> 0 | F55: =RANK(E55,$E$7:$E$56,0) -> 21
B56: 50 | E56: =SUM($C56:$D56) -> 0 | F56: =RANK(E56,$E$7:$E$56,0) -> 21

Sheet A. Morello
A1: Name
A2: Morello Adrian
A3: Gutschein
A4: Waffe | B4: 90
B5: Sau Stich | N5: Glück | Q5: Auszahlung
B6: Nr. Passe | C6: 1. Schuss | D6: 2. Schuss | E6: Total | F6: Rang | H6: Besten Passen | J6: Besten Einzel | L6: Total Passen und Einzel
B7: 1 | E7: =SUM($C7:$D7) -> 0 | F7: =RANK(E7,$E$7:$E$56,0) -> 1 | H7: =LARGE(E7:E56,1) -> 0 | J7: =IF($B$4=90,LARGE(C10:D56,1),IF($B$4="St",LARGE(C11:D56,1),IF($B$4=57,LARGE(C9:D56,1)))) -> 
B8: 2 | E8: =SUM($C8:$D8) -> 0 | F8: 1 | H8: =LARGE(E7:E56,2) -> 0 | J8: =IF($B$4=90,LARGE(C10:D56,2),IF($B$4="St",LARGE(C11:D56,2),IF($B$4=57,LARGE(C9:D56,2)))) ->  | L8: =IF($B$4=57,SUM(H7:H8,J7:J12),IF($B$4=90,SUM(H7:H9,J7:J10),IF($B$4="St",SUM(H7:H10,J7:J8)))) ->  | N8: Ansage | Q8: 1. Schuss
B9: 3 | E9: 0 | F9: 1 | H9: =LARGE(E7:E56,3) -> 0 | J9: =IF($B$4=90,LARGE($C$10:$D$56,3),IF($B$4="St",LARGE($C$11:$D$56,3),IF($B$4=57,LARGE($C$9:$D$56,3)))) ->  | N9: Geschossen | Q9: 2. Schuss
B10: 4 | E10: 0 | F10: 1 | H10: =LARGE(E7:E56,4) -> 0 | J10: =IF($B$4=90,LARGE(C10:D56,4),IF($B$4="St",LARGE(C11:D56,4),IF($B$4=57,LARGE(C9:D56,4)))) ->  | N10: Differenz | Q10: 3. Schuss
B11: 5 | E11: 0 | F11: 1 | J11: =IF($B$4=90,LARGE(C10:D56,5),IF($B$4="St",LARGE(C11:D56,5),IF($B$4=57,LARGE(C9:D56,5)))) ->  | Q11: 4. Schuss
B12: 6 | E12: 0 | F12: 1 | J12: =IF($B$4=90,LARGE(C10:D56,6),IF($B$4="St",LARGE(C11:D56,6),IF($B$4=57,LARGE(C9:D56,6)))) ->  | Q12: 5. Schuss
B13: 7 | E13: 0 | F13: 1 | J13: =IF($B$4=90,LARGE(C11:D57,7),IF($B$4="St",LARGE(C12:D57,7),IF($B$4=57,LARGE(C10:D57,7)))) ->  | Q13: 6. Schuss
B14: 8 | E14: 0 | F14: 1 | J14: =IF($B$4=90,LARGE(C12:D58,8),IF($B$4="St",LARGE(C13:D58,8),IF($B$4=57,LARGE(C11:D58,8)))) ->  | Q14: 7. Schuss
B15: 9 | E15: 0 | F15: 1 | J15: =IF($B$4=90,LARGE(C13:D59,9),IF($B$4="St",LARGE(C14:D59,9),IF($B$4=57,LARGE(C12:D59,9)))) ->  | Q15: 8. Schuss
B16: 10 | E16: 0 | F16: 1 | Q16: 9. Schuss
B17: 11 | E17: 0 | F17: 1 | Q17: 10. Schuss
B18: 12 | E18: 0 | F18: 1 | Q18: Total | R18: =SUM(R8:R17) -> 0
B19: 13 | E19: 0 | F19: 1
B20: 14 | E20: 0 | F20: 1
B21: 15 | E21: 0 | F21: 1
B22: 16 | E22: 0 | F22: 1
B23: 17 | E23: 0 | F23: 1
B24: 18 | E24: 0 | F24: 1
B25: 19 | E25: 0 | F25: 1
B26: 20 | E26: 0 | F26: 1
B27: 21 | E27: 0 | F27: 1
B28: 22 | E28: 0 | F28: 1
B29: 23 | E29: 0 | F29: 1
B30: 24 | E30: 0 | F30: 1
B31: 25 | E31: 0 | F31: 1
B32: 26 | E32: 0 | F32: 1
B33: 27 | E33: 0 | F33: 1
B34: 28 | E34: 0 | F34: 1
B35: 29 | E35: 0 | F35: 1
B36: 30 | E36: 0 | F36: 1
B37: 31 | E37: 0 | F37: 1
B38: 32 | E38: 0 | F38: 1
B39: 33 | E39: 0 | F39: =RANK(E39,$E$7:$E$56,0) -> 1
B40: 34 | E40: 0 | F40: 1
B41: 35 | E41: 0 | F41: 1
B42: 36 | E42: 0 | F42: 1
B43: 37 | E43: 0 | F43: 1
B44: 38 | E44: 0 | F44: 1
B45: 39 | E45: 0 | F45: 1
B46: 40 | E46: 0 | F46: 1
B47: 41 | E47: 0 | F47: 1
B48: 42 | E48: 0 | F48: 1
B49: 43 | E49: 0 | F49: 1
B50: 44 | E50: 0 | F50: 1
B51: 45 | E51: 0 | F51: 1
B52: 46 | E52: 0 | F52: 1
B53: 47 | E53: 0 | F53: 1
B54: 48 | E54: 0 | F54: 1
B55: 49 | E55: 0 | F55: 1
B56: 50 | E56: 0 | F56: 1

Sheet S. Kocher
A1: Name
A2: Kocher Sascha
A3: Gutschein | B3: Migros
A4: Waffe | B4: 57
B5: Sau Stich | N5: Glück | Q5: Auszahlung
B6: Nr. Passe | C6: 1. Schuss | D6: 2. Schuss | E6: Total | F6: Rang | H6: Besten Passen | J6: Besten Einzel | L6: Total Passen und Einzel
B7: 1 | C7: 88 | D7: 100 | E7: =SUM($C7:$D7) -> 188 | F7: =RANK(E7,$E$7:$E$56,0) -> 1 | H7: =LARGE(E7:E56,1) -> 188 | J7: =IF($B$4=90,LARGE(C10:D56,1),IF($B$4="St",LARGE(C11:D56,1),IF($B$4=57,LARGE(C9:D56,1)))) -> 99
B8: 2 | C8: 98 | D8: 89 | E8: =SUM($C8:$D8) -> 187 | F8: =RANK(E8,$E$7:$E$56,0) -> 2 | H8: =LARGE(E7:E56,2) -> 187 | J8: =IF($B$4=90,LARGE(C10:D56,2),IF($B$4="St",LARGE(C11:D56,2),IF($B$4=57,LARGE(C9:D56,2)))) -> 98 | L8: =IF($B$4=57,SUM(H7:H8,J7:J12),IF($B$4=90,SUM(H7:H9,J7:J10),IF($B$4="St",SUM(H7:H10,J7:J8)))) -> 957 | N8: Ansage | O8: 248 | Q8: 1. Schuss | R8: 7
B9: 3 | C9: 96 | D9: 89 | E9: =SUM($C9:$D9) -> 185 | F9: =RANK(E9,$E$7:$E$56,0) -> 3 | H9: =LARGE(E7:E56,3) -> 185 | J9: =IF($B$4=90,LARGE($C$10:$D$56,3),IF($B$4="St",LARGE($C$11:$D$56,3),IF($B$4=57,LARGE($C$9:$D$56,3)))) -> 97 | N9: Geschossen | O9: 215 | Q9: 2. Schuss | R9: 10
B10: 4 | C10: 96 | D10: 89 | E10: =SUM($C10:$D10) -> 185 | F10: =RANK(E10,$E$7:$E$56,0) -> 3 | H10: =LARGE(E7:E56,4) -> 185 | J10: =IF($B$4=90,LARGE(C10:D56,4),IF($B$4="St",LARGE(C11:D56,4),IF($B$4=57,LARGE(C9:D56,4)))) -> 96 | N10: Differenz | O10: =IF(O8>0,IF(O8>O9,O8-O9,O9-O8),"") -> 33 | Q10: 3. Schuss | R10: 8
B11: 5 | C11: 89 | D11: 95 | E11: =SUM($C11:$D11) -> 184 | F11: =RANK(E11,$E$7:$E$56,0) -> 5 | J11: =IF($B$4=90,LARGE(C10:D56,5),IF($B$4="St",LARGE(C11:D56,5),IF($B$4=57,LARGE(C9:D56,5)))) -> 96 | Q11: 4. Schuss | R11: 9
B12: 6 | C12: 92 | D12: 86 | E12: =SUM($C12:$D12) -> 178 | F12: =RANK(E12,$E$7:$E$56,0) -> 6 | J12: =IF($B$4=90,LARGE(C10:D56,6),IF($B$4="St",LARGE(C11:D56,6),IF($B$4=57,LARGE(C9:D56,6)))) -> 96 | Q12: 5. Schuss | R12: 7
B13: 7 | C13: 81 | D13: 97 | E13: =SUM($C13:$D13) -> 178 | F13: =RANK(E13,$E$7:$E$56,0) -> 6 | J13: =IF($B$4=90,LARGE(C11:D57,7),IF($B$4="St",LARGE(C12:D57,7),IF($B$4=57,LARGE(C10:D57,7)))) -> 94 | Q13: 6. Schuss | R13: 10
B14: 8 | C14: 80 | D14: 94 | E14: =SUM($C14:$D14) -> 174 | F14: =RANK(E14,$E$7:$E$56,0) -> 8 | J14: =IF($B$4=90,LARGE(C12:D58,8),IF($B$4="St",LARGE(C13:D58,8),IF($B$4=57,LARGE(C11:D58,8)))) -> 94 | Q14: 7. Schuss | R14: 7
B15: 9 | C15: 94 | D15: 79 | E15: =SUM($C15:$D15) -> 173 | F15: =RANK(E15,$E$7:$E$56,0) -> 9 | J15: =IF($B$4=90,LARGE(C13:D59,9),IF($B$4="St",LARGE(C14:D59,9),IF($B$4=57,LARGE(C12:D59,9)))) -> 93 | Q15: 8. Schuss | R15: 9
B16: 10 | C16: 79 | D16: 93 | E16: =SUM($C16:$D16) -> 172 | F16: =RANK(E16,$E$7:$E$56,0) -> 10 | Q16: 9. Schuss | R16: 9
B17: 11 | C17: 89 | D17: 82 | E17: =SUM($C17:$D17) -> 171 | F17: =RANK(E17,$E$7:$E$56,0) -> 11 | Q17: 10. Schuss | R17: 7
B18: 12 | C18: 81 | D18: 90 | E18: =SUM($C18:$D18) -> 171 | F18: =RANK(E18,$E$7:$E$56,0) -> 11 | Q18: Total | R18: =SUM(R8:R17) -> 83
B19: 13 | C19: 93 | D19: 77 | E19: =SUM($C19:$D19) -> 170 | F19: =RANK(E19,$E$7:$E$56,0) -> 13
B20: 14 | C20: 81 | D20: 89 | E20: =SUM($C20:$D20) -> 170 | F20: =RANK(E20,$E$7:$E$56,0) -> 13
B21: 15 | C21: 72 | D21: 94 | E21: =SUM($C21:$D21) -> 166 | F21: =RANK(E21,$E$7:$E$56,0) -> 15
B22: 16 | C22: 88 | D22: 78 | E22: =SUM($C22:$D22) -> 166 | F22: =RANK(E22,$E$7:$E$56,0) -> 15
B23: 17 | C23: 78 | D23: 88 | E23: =SUM($C23:$D23) -> 166 | F23: =RANK(E23,$E$7:$E$56,0) -> 15
B24: 18 | C24: 83 | D24: 83 | E24: =SUM($C24:$D24) -> 166 | F24: =RANK(E24,$E$7:$E$56,0) -> 15
B25: 19 | C25: 87 | D25: 78 | E25: =SUM($C25:$D25) -> 165 | F25: =RANK(E25,$E$7:$E$56,0) -> 19
B26: 20 | C26: 96 | D26: 67 | E26: =SUM($C26:$D26) -> 163 | F26: =RANK(E26,$E$7:$E$56,0) -> 20
B27: 21 | C27: 83 | D27: 78 | E27: =SUM($C27:$D27) -> 161 | F27: =RANK(E27,$E$7:$E$56,0) -> 21
B28: 22 | C28: 66 | D28: 94 | E28: =SUM($C28:$D28) -> 160 | F28: =RANK(E28,$E$7:$E$56,0) -> 22
B29: 23 | C29: 78 | D29: 82 | E29: =SUM($C29:$D29) -> 160 | F29: =RANK(E29,$E$7:$E$56,0) -> 22
B30: 24 | C30: 85 | D30: 75 | E30: =SUM($C30:$D30) -> 160 | F30: =RANK(E30,$E$7:$E$56,0) -> 22
B31: 25 | C31: 92 | D31: 68 | E31: =SUM($C31:$D31) -> 160 | F31: =RANK(E31,$E$7:$E$56,0) -> 22
B32: 26 | C32: 89 | D32: 70 | E32: =SUM($C32:$D32) -> 159 | F32: =RANK(E32,$E$7:$E$56,0) -> 26
B33: 27 | C33: 57 | D33: 98 | E33: =SUM($C33:$D33) -> 155 | F33: =RANK(E33,$E$7:$E$56,0) -> 27
B34: 28 | C34: 83 | D34: 70 | E34: =SUM($C34:$D34) -> 153 | F34: =RANK(E34,$E$7:$E$56,0) -> 28
B35: 29 | C35: 83 | D35: 69 | E35: =SUM($C35:$D35) -> 152 | F35: =RANK(E35,$E$7:$E$56,0) -> 29
B36: 30 | C36: 75 | D36: 75 | E36: =SUM($C36:$D36) -> 150 | F36: =RANK(E36,$E$7:$E$56,0) -> 30
B37: 31 | C37: 51 | D37: 99 | E37: =SUM($C37:$D37) -> 150 | F37: =RANK(E37,$E$7:$E$56,0) -> 30
B38: 32 | C38: 65 | D38: 83 | E38: =SUM($C38:$D38) -> 148 | F38: =RANK(E38,$E$7:$E$56,0) -> 32
B39: 33 | C39: 79 | D39: 69 | E39: =SUM($C39:$D39) -> 148 | F39: =RANK(E39,$E$7:$E$56,0) -> 32
B40: 34 | C40: 69 | D40: 77 | E40: =SUM($C40:$D40) -> 146 | F40: =RANK(E40,$E$7:$E$56,0) -> 34
B41: 35 | C41: 61 | D41: 84 | E41: =SUM($C41:$D41) -> 145 | F41: =RANK(E41,$E$7:$E$56,0) -> 35
B42: 36 | C42: 84 | D42: 61 | E42: =SUM($C42:$D42) -> 145 | F42: =RANK(E42,$E$7:$E$56,0) -> 35
B43: 37 | C43: 77 | D43: 68 | E43: =SUM($C43:$D43) -> 145 | F43: =RANK(E43,$E$7:$E$56,0) -> 35
B44: 38 | C44: 80 | D44: 65 | E44: =SUM($C44:$D44) -> 145 | F44: =RANK(E44,$E$7:$E$56,0) -> 35
B45: 39 | C45: 56 | D45: 88 | E45: =SUM($C45:$D45) -> 144 | F45: =RANK(E45,$E$7:$E$56,0) -> 39
B46: 40 | C46: 73 | D46: 70 | E46: =SUM($C46:$D46) -> 143 | F46: =RANK(E46,$E$7:$E$56,0) -> 40
B47: 41 | C47: 46 | D47: 91 | E47: =SUM($C47:$D47) -> 137 | F47: =RANK(E47,$E$7:$E$56,0) -> 41
B48: 42 | C48: 91 | D48: 45 | E48: =SUM($C48:$D48) -> 136 | F48: =RANK(E48,$E$7:$E$56,0) -> 42
B49: 43 | C49: 88 | D49: 46 | E49: =SUM($C49:$D49) -> 134 | F49: =RANK(E49,$E$7:$E$56,0) -> 43
B50: 44 | C50: 74 | D50: 56 | E50: =SUM($C50:$D50) -> 130 | F50: =RANK(E50,$E$7:$E$56,0) -> 44
B51: 45 | C51: 57 | D51: 67 | E51: =SUM($C51:$D51) -> 124 | F51: =RANK(E51,$E$7:$E$56,0) -> 45
B52: 46 | C52: 52 | D52: 67 | E52: =SUM($C52:$D52) -> 119 | F52: =RANK(E52,$E$7:$E$56,0) -> 46
B53: 47 | C53: 58 | D53: 61 | E53: =SUM($C53:$D53) -> 119 | F53: =RANK(E53,$E$7:$E$56,0) -> 46
B54: 48 | C54: 45 | D54: 72 | E54: =SUM($C54:$D54) -> 117 | F54: =RANK(E54,$E$7:$E$56,0) -> 48
B55: 49 | C55: 71 | D55: 34 | E55: =SUM($C55:$D55) -> 105 | F55: =RANK(E55,$E$7:$E$56,0) -> 49
B56: 50 | C56: 54 | D56: 0 | E56: =SUM($C56:$D56) -> 54 | F56: =RANK(E56,$E$7:$E$56,0) -> 50

Sheet P. Friedli
A1: Name
A2: Friedli Peter
A3: Gutschein | B3: Denner
A4: Waffe | B4: St
B5: Sau Stich | N5: Glück | Q5: Auszahlung
B6: Nr. Passe | C6: 1. Schuss | D6: 2. Schuss | E6: Total | F6: Rang | H6: Besten Passen | J6: Besten Einzel | L6: Total Passen und Einzel
B7: 1 | C7: 100 | D7: 98 | E7: =SUM($C7:$D7) -> 198 | F7: =RANK(E7,$E$7:$E$106,0) -> 1 | H7: =LARGE(E7:E56,1) -> 198 | J7: =IF($B$4=90,LARGE(C10:D56,1),IF($B$4="St",LARGE(C11:D56,1),IF($B$4=57,LARGE(C9:D56,1)))) -> 100
B8: 2 | C8: 96 | D8: 100 | E8: =SUM($C8:$D8) -> 196 | F8: =RANK(E8,$E$7:$E$106,0) -> 2 | H8: =LARGE(E7:E56,2) -> 196 | J8: =IF($B$4=90,LARGE(C10:D56,2),IF($B$4="St",LARGE(C11:D56,2),IF($B$4=57,LARGE(C9:D56,2)))) -> 97 | L8: =IF($B$4=57,SUM(H7:H8,J7:J12),IF($B$4=90,SUM(H7:H9,J7:J10),IF($B$4="St",SUM(H7:H10,J7:J8)))) -> 980 | N8: Ansage | O8: 268 | Q8: 1. Schuss | R8: 10
B9: 3 | C9: 97 | D9: 98 | E9: =SUM($C9:$D9) -> 195 | F9: =RANK(E9,$E$7:$E$106,0) -> 3 | H9: =LARGE(E7:E56,3) -> 195 | J9: =IF($B$4=90,LARGE($C$10:$D$56,3),IF($B$4="St",LARGE($C$11:$D$56,3),IF($B$4=57,LARGE($C$9:$D$56,3)))) -> 97 | N9: Geschossen | O9: 244 | Q9: 2. Schuss | R9: 10
B10: 4 | C10: 99 | D10: 95 | E10: =SUM($C10:$D10) -> 194 | F10: =RANK(E10,$E$7:$E$106,0) -> 4 | H10: =LARGE(E7:E56,4) -> 194 | J10: =IF($B$4=90,LARGE(C10:D56,4),IF($B$4="St",LARGE(C11:D56,4),IF($B$4=57,LARGE(C9:D56,4)))) -> 96 | N10: Differenz | O10: =IF(O8>0,IF(O8>O9,O8-O9,O9-O8),"") -> 24 | Q10: 3. Schuss | R10: 10
B11: 5 | C11: 96 | D11: 96 | E11: =SUM($C11:$D11) -> 192 | F11: =RANK(E11,$E$7:$E$106,0) -> 5 | J11: =IF($B$4=90,LARGE(C10:D56,5),IF($B$4="St",LARGE(C11:D56,5),IF($B$4=57,LARGE(C9:D56,5)))) -> 96 | Q11: 4. Schuss | R11: 9
B12: 6 | C12: 100 | D12: 91 | E12: =SUM($C12:$D12) -> 191 | F12: =RANK(E12,$E$7:$E$106,0) -> 6 | J12: =IF($B$4=90,LARGE(C10:D56,6),IF($B$4="St",LARGE(C11:D56,6),IF($B$4=57,LARGE(C9:D56,6)))) -> 96 | Q12: 5. Schuss | R12: 8
B13: 7 | C13: 96 | D13: 95 | E13: =SUM($C13:$D13) -> 191 | F13: =RANK(E13,$E$7:$E$106,0) -> 6 | J13: =IF($B$4=90,LARGE(C11:D57,7),IF($B$4="St",LARGE(C12:D57,7),IF($B$4=57,LARGE(C10:D57,7)))) -> 95 | Q13: 6. Schuss | R13: 6
B14: 8 | C14: 97 | D14: 94 | E14: =SUM($C14:$D14) -> 191 | F14: =RANK(E14,$E$7:$E$106,0) -> 6 | J14: =IF($B$4=90,LARGE(C12:D58,8),IF($B$4="St",LARGE(C13:D58,8),IF($B$4=57,LARGE(C11:D58,8)))) -> 95 | Q14: 7. Schuss | R14: 7
B15: 9 | C15: 94 | D15: 95 | E15: =SUM($C15:$D15) -> 189 | F15: =RANK(E15,$E$7:$E$106,0) -> 9 | J15: =IF($B$4=90,LARGE(C13:D59,9),IF($B$4="St",LARGE(C14:D59,9),IF($B$4=57,LARGE(C12:D59,9)))) -> 94 | Q15: 8. Schuss | R15: 8
B16: 10 | C16: 93 | D16: 95 | E16: =SUM($C16:$D16) -> 188 | F16: =RANK(E16,$E$7:$E$106,0) -> 10 | Q16: 9. Schuss | R16: 8
B17: 11 | C17: 93 | D17: 92 | E17: =SUM($C17:$D17) -> 185 | F17: =RANK(E17,$E$7:$E$106,0) -> 11 | Q17: 10. Schuss | R17: 6
B18: 12 | C18: 95 | D18: 87 | E18: =SUM($C18:$D18) -> 182 | F18: =RANK(E18,$E$7:$E$106,0) -> 12 | Q18: Total | R18: =SUM(R8:R17) -> 82
B19: 13 | C19: 88 | D19: 94 | E19: =SUM($C19:$D19) -> 182 | F19: =RANK(E19,$E$7:$E$106,0) -> 12
B20: 14 | C20: 91 | D20: 88 | E20: =SUM($C20:$D20) -> 179 | F20: =RANK(E20,$E$7:$E$106,0) -> 14
B21: 15 | C21: 90 | D21: 87 | E21: =SUM($C21:$D21) -> 177 | F21: =RANK(E21,$E$7:$E$106,0) -> 15
B22: 16 | C22: 92 | D22: 84 | E22: =SUM($C22:$D22) -> 176 | F22: =RANK(E22,$E$7:$E$106,0) -> 16
B23: 17 | C23: 85 | D23: 91 | E23: =SUM($C23:$D23) -> 176 | F23: =RANK(E23,$E$7:$E$106,0) -> 16
B24: 18 | C24: 89 | D24: 85 | E24: =SUM($C24:$D24) -> 174 | F24: =RANK(E24,$E$7:$E$106,0) -> 18
B25: 19 | C25: 97 | D25: 77 | E25: =SUM($C25:$D25) -> 174 | F25: =RANK(E25,$E$7:$E$106,0) -> 18
B26: 20 | C26: 88 | D26: 85 | E26: =SUM($C26:$D26) -> 173 | F26: =RANK(E26,$E$7:$E$106,0) -> 20
B27: 21 | C27: 85 | D27: 87 | E27: =SUM($C27:$D27) -> 172 | F27: =RANK(E27,$E$7:$E$106,0) -> 21
B28: 22 | C28: 92 | D28: 79 | E28: =SUM($C28:$D28) -> 171 | F28: =RANK(E28,$E$7:$E$106,0) -> 22
B29: 23 | C29: 95 | D29: 73 | E29: =SUM($C29:$D29) -> 168 | F29: =RANK(E29,$E$7:$E$106,0) -> 23
B30: 24 | C30: 82 | D30: 86 | E30: =SUM($C30:$D30) -> 168 | F30: =RANK(E30,$E$7:$E$106,0) -> 23
B31: 25 | C31: 80 | D31: 87 | E31: =SUM($C31:$D31) -> 167 | F31: =RANK(E31,$E$7:$E$106,0) -> 25
B32: 26 | C32: 89 | D32: 78 | E32: =SUM($C32:$D32) -> 167 | F32: =RANK(E32,$E$7:$E$106,0) -> 25
B33: 27 | C33: 88 | D33: 75 | E33: =SUM($C33:$D33) -> 163 | F33: =RANK(E33,$E$7:$E$106,0) -> 27
B34: 28 | C34: 83 | D34: 80 | E34: =SUM($C34:$D34) -> 163 | F34: =RANK(E34,$E$7:$E$106,0) -> 27
B35: 29 | C35: 76 | D35: 87 | E35: =SUM($C35:$D35) -> 163 | F35: =RANK(E35,$E$7:$E$106,0) -> 27
B36: 30 | C36: 82 | D36: 80 | E36: =SUM($C36:$D36) -> 162 | F36: =RANK(E36,$E$7:$E$106,0) -> 30
B37: 31 | C37: 74 | D37: 84 | E37: =SUM($C37:$D37) -> 158 | F37: =RANK(E37,$E$7:$E$106,0) -> 31
B38: 32 | C38: 74 | D38: 82 | E38: =SUM($C38:$D38) -> 156 | F38: =RANK(E38,$E$7:$E$106,0) -> 32
B39: 33 | C39: 70 | D39: 82 | E39: =SUM($C39:$D39) -> 152 | F39: =RANK(E39,$E$7:$E$106,0) -> 33
B40: 34 | C40: 74 | D40: 77 | E40: =SUM($C40:$D40) -> 151 | F40: =RANK(E40,$E$7:$E$106,0) -> 34
B41: 35 | C41: 73 | D41: 77 | E41: =SUM($C41:$D41) -> 150 | F41: =RANK(E41,$E$7:$E$106,0) -> 35
B42: 36 | C42: 73 | D42: 75 | E42: =SUM($C42:$D42) -> 148 | F42: =RANK(E42,$E$7:$E$106,0) -> 36
B43: 37 | C43: 90 | D43: 56 | E43: =SUM($C43:$D43) -> 146 | F43: =RANK(E43,$E$7:$E$106,0) -> 37
B44: 38 | C44: 68 | D44: 75 | E44: =SUM($C44:$D44) -> 143 | F44: =RANK(E44,$E$7:$E$106,0) -> 38
B45: 39 | C45: 12 | D45: 76 | E45: =SUM($C45:$D45) -> 88 | F45: =RANK(E45,$E$7:$E$106,0) -> 39
B46: 40 | C46: 0 | D46: 72 | E46: =SUM($C46:$D46) -> 72 | F46: =RANK(E46,$E$7:$E$106,0) -> 40
B47: 41 | E47: =SUM($C47:$D47) -> 0 | F47: =RANK(E47,$E$7:$E$106,0) -> 41
B48: 42 | E48: =SUM($C48:$D48) -> 0 | F48: =RANK(E48,$E$7:$E$106,0) -> 41
B49: 43 | E49: =SUM($C49:$D49) -> 0 | F49: =RANK(E49,$E$7:$E$106,0) -> 41
B50: 44 | E50: =SUM($C50:$D50) -> 0 | F50: =RANK(E50,$E$7:$E$106,0) -> 41
B51: 45 | E51: =SUM($C51:$D51) -> 0 | F51: =RANK(E51,$E$7:$E$106,0) -> 41
B52: 46 | E52: =SUM($C52:$D52) -> 0 | F52: =RANK(E52,$E$7:$E$106,0) -> 41
B53: 47 | E53: =SUM($C53:$D53) -> 0 | F53: =RANK(E53,$E$7:$E$106,0) -> 41
B54: 48 | E54: =SUM($C54:$D54) -> 0 | F54: =RANK(E54,$E$7:$E$106,0) -> 41
B55: 49 | E55: =SUM($C55:$D55) -> 0 | F55: =RANK(E55,$E$7:$E$106,0) -> 41
B56: 50 | E56: =SUM($C56:$D56) -> 0 | F56: =RANK(E56,$E$7:$E$106,0) -> 41
B57: 51 | E57: =SUM($C57:$D57) -> 0 | F57: =RANK(E57,$E$7:$E$106,0) -> 41
B58: 52 | E58: =SUM($C58:$D58) -> 0 | F58: =RANK(E58,$E$7:$E$106,0) -> 41
B59: 53 | E59: =SUM($C59:$D59) -> 0 | F59: =RANK(E59,$E$7:$E$106,0) -> 41
B60: 54 | E60: =SUM($C60:$D60) -> 0 | F60: =RANK(E60,$E$7:$E$106,0) -> 41
B61: 55 | E61: =SUM($C61:$D61) -> 0 | F61: =RANK(E61,$E$7:$E$106,0) -> 41
B62: 56 | E62: =SUM($C62:$D62) -> 0 | F62: =RANK(E62,$E$7:$E$106,0) -> 41
B63: 57 | E63: =SUM($C63:$D63) -> 0 | F63: =RANK(E63,$E$7:$E$106,0) -> 41
B64: 58 | E64: =SUM($C64:$D64) -> 0 | F64: =RANK(E64,$E$7:$E$106,0) -> 41
B65: 59 | E65: =SUM($C65:$D65) -> 0 | F65: =RANK(E65,$E$7:$E$106,0) -> 41
B66: 60 | E66: =SUM($C66:$D66) -> 0 | F66: =RANK(E66,$E$7:$E$106,0) -> 41
B67: 61 | E67: =SUM($C67:$D67) -> 0 | F67: =RANK(E67,$E$7:$E$106,0) -> 41
B68: 62 | E68: =SUM($C68:$D68) -> 0 | F68: =RANK(E68,$E$7:$E$106,0) -> 41
B69: 63 | E69: =SUM($C69:$D69) -> 0 | F69: =RANK(E69,$E$7:$E$106,0) -> 41
B70: 64 | E70: =SUM($C70:$D70) -> 0 | F70: =RANK(E70,$E$7:$E$106,0) -> 41
B71: 65 | E71: =SUM($C71:$D71) -> 0 | F71: =RANK(E71,$E$7:$E$106,0) -> 41
B72: 66 | E72: =SUM($C72:$D72) -> 0 | F72: =RANK(E72,$E$7:$E$106,0) -> 41
B73: 67 | E73: =SUM($C73:$D73) -> 0 | F73: =RANK(E73,$E$7:$E$106,0) -> 41
B74: 68 | E74: =SUM($C74:$D74) -> 0 | F74: =RANK(E74,$E$7:$E$106,0) -> 41
B75: 69 | E75: =SUM($C75:$D75) -> 0 | F75: =RANK(E75,$E$7:$E$106,0) -> 41
B76: 70 | E76: =SUM($C76:$D76) -> 0 | F76: =RANK(E76,$E$7:$E$106,0) -> 41
B77: 71 | E77: =SUM($C77:$D77) -> 0 | F77: =RANK(E77,$E$7:$E$106,0) -> 41
B78: 72 | E78: =SUM($C78:$D78) -> 0 | F78: =RANK(E78,$E$7:$E$106,0) -> 41
B79: 73 | E79: =SUM($C79:$D79) -> 0 | F79: =RANK(E79,$E$7:$E$106,0) -> 41
B80: 74 | E80: =SUM($C80:$D80) -> 0 | F80: =RANK(E80,$E$7:$E$106,0) -> 41
B81: 75 | E81: =SUM($C81:$D81) -> 0 | F81: =RANK(E81,$E$7:$E$106,0) -> 41
B82: 76 | E82: =SUM($C82:$D82) -> 0 | F82: =RANK(E82,$E$7:$E$106,0) -> 41
B83: 77 | E83: =SUM($C83:$D83) -> 0 | F83: =RANK(E83,$E$7:$E$106,0) -> 41
B84: 78 | E84: =SUM($C84:$D84) -> 0 | F84: =RANK(E84,$E$7:$E$106,0) -> 41
B85: 79 | E85: =SUM($C85:$D85) -> 0 | F85: =RANK(E85,$E$7:$E$106,0) -> 41
B86: 80 | E86: =SUM($C86:$D86) -> 0 | F86: =RANK(E86,$E$7:$E$106,0) -> 41
B87: 81 | E87: =SUM($C87:$D87) -> 0 | F87: =RANK(E87,$E$7:$E$106,0) -> 41
B88: 82 | E88: =SUM($C88:$D88) -> 0 | F88: =RANK(E88,$E$7:$E$106,0) -> 41
B89: 83 | E89: =SUM($C89:$D89) -> 0 | F89: =RANK(E89,$E$7:$E$106,0) -> 41
B90: 84 | E90: =SUM($C90:$D90) -> 0 | F90: =RANK(E90,$E$7:$E$106,0) -> 41
B91: 85 | E91: =SUM($C91:$D91) -> 0 | F91: =RANK(E91,$E$7:$E$106,0) -> 41
B92: 86 | E92: =SUM($C92:$D92) -> 0 | F92: =RANK(E92,$E$7:$E$106,0) -> 41
B93: 87 | E93: =SUM($C93:$D93) -> 0 | F93: =RANK(E93,$E$7:$E$106,0) -> 41
B94: 88 | E94: =SUM($C94:$D94) -> 0 | F94: =RANK(E94,$E$7:$E$106,0) -> 41
B95: 89 | E95: =SUM($C95:$D95) -> 0 | F95: =RANK(E95,$E$7:$E$106,0) -> 41
B96: 90 | E96: =SUM($C96:$D96) -> 0 | F96: =RANK(E96,$E$7:$E$106,0) -> 41
B97: 91 | E97: =SUM($C97:$D97) -> 0 | F97: =RANK(E97,$E$7:$E$106,0) -> 41
B98: 92 | E98: =SUM($C98:$D98) -> 0 | F98: =RANK(E98,$E$7:$E$106,0) -> 41
B99: 93 | E99: =SUM($C99:$D99) -> 0 | F99: =RANK(E99,$E$7:$E$106,0) -> 41
B100: 94 | E100: =SUM($C100:$D100) -> 0 | F100: =RANK(E100,$E$7:$E$106,0) -> 41
B101: 95 | E101: =SUM($C101:$D101) -> 0 | F101: =RANK(E101,$E$7:$E$106,0) -> 41
B102: 96 | E102: =SUM($C102:$D102) -> 0 | F102: =RANK(E102,$E$7:$E$106,0) -> 41
B103: 97 | E103: =SUM($C103:$D103) -> 0 | F103: =RANK(E103,$E$7:$E$106,0) -> 41
B104: 98 | E104: =SUM($C104:$D104) -> 0 | F104: =RANK(E104,$E$7:$E$106,0) -> 41
B105: 99 | E105: =SUM($C105:$D105) -> 0 | F105: =RANK(E105,$E$7:$E$106,0) -> 41
B106: 100 | E106: =SUM($C106:$D106) -> 0 | F106: =RANK(E106,$E$7:$E$106,0) -> 41

Sheet T. Abrecht
A1: Name
A2: Abrecht Theodor
A3: Gutschein | B3: Migros
A4: Waffe | B4: 90
B5: Sau Stich | N5: Glück | Q5: Auszahlung
B6: Nr. Passe | C6: 1. Schuss | D6: 2. Schuss | E6: Total | F6: Rang | H6: Besten Passen | J6: Besten Einzel | L6: Total Passen und Einzel
B7: 1 | C7: 95 | D7: 92 | E7: =SUM($C7:$D7) -> 187 | F7: =RANK(E7,$E$7:$E$56,0) -> 1 | H7: =LARGE(E7:E56,1) -> 187 | J7: =IF($B$4=90,LARGE(C10:D56,1),IF($B$4="St",LARGE(C11:D56,1),IF($B$4=57,LARGE(C9:D56,1)))) -> 98
B8: 2 | C8: 88 | D8: 92 | E8: =SUM($C8:$D8) -> 180 | F8: =RANK(E8,$E$7:$E$56,0) -> 2 | H8: =LARGE(E7:E56,2) -> 180 | J8: =IF($B$4=90,LARGE(C10:D56,2),IF($B$4="St",LARGE(C11:D56,2),IF($B$4=57,LARGE(C9:D56,2)))) -> 96 | L8: =IF($B$4=57,SUM(H7:H8,J7:J12),IF($B$4=90,SUM(H7:H9,J7:J10),IF($B$4="St",SUM(H7:H10,J7:J8)))) -> 925 | N8: Ansage | O8: 256 | Q8: 1. Schuss | R8: 9
B9: 3 | C9: 81 | D9: 96 | E9: =SUM($C9:$D9) -> 177 | F9: =RANK(E9,$E$7:$E$56,0) -> 3 | H9: =LARGE(E7:E56,3) -> 177 | J9: =IF($B$4=90,LARGE($C$10:$D$56,3),IF($B$4="St",LARGE($C$11:$D$56,3),IF($B$4=57,LARGE($C$9:$D$56,3)))) -> 94 | N9: Geschossen | O9: 179 | Q9: 2. Schuss | R9: 8
B10: 4 | C10: 98 | D10: 79 | E10: =SUM($C10:$D10) -> 177 | F10: =RANK(E10,$E$7:$E$56,0) -> 3 | H10: =LARGE(E7:E56,4) -> 177 | J10: =IF($B$4=90,LARGE(C10:D56,4),IF($B$4="St",LARGE(C11:D56,4),IF($B$4=57,LARGE(C9:D56,4)))) -> 93 | N10: Differenz | O10: =IF(O8>0,IF(O8>O9,O8-O9,O9-O8),"") -> 77 | Q10: 3. Schuss | R10: 9
B11: 5 | C11: 90 | D11: 82 | E11: =SUM($C11:$D11) -> 172 | F11: =RANK(E11,$E$7:$E$56,0) -> 5 | J11: =IF($B$4=90,LARGE(C10:D56,5),IF($B$4="St",LARGE(C11:D56,5),IF($B$4=57,LARGE(C9:D56,5)))) -> 91 | Q11: 4. Schuss | R11: 9
B12: 6 | C12: 75 | D12: 91 | E12: =SUM($C12:$D12) -> 166 | F12: =RANK(E12,$E$7:$E$56,0) -> 6 | J12: =IF($B$4=90,LARGE(C10:D56,6),IF($B$4="St",LARGE(C11:D56,6),IF($B$4=57,LARGE(C9:D56,6)))) -> 90 | Q12: 5. Schuss | R12: 10
B13: 7 | C13: 84 | D13: 73 | E13: =SUM($C13:$D13) -> 157 | F13: =RANK(E13,$E$7:$E$56,0) -> 7 | J13: =IF($B$4=90,LARGE(C11:D57,7),IF($B$4="St",LARGE(C12:D57,7),IF($B$4=57,LARGE(C10:D57,7)))) -> 84 | Q13: 6. Schuss | R13: 8
B14: 8 | C14: 73 | D14: 84 | E14: =SUM($C14:$D14) -> 157 | F14: =RANK(E14,$E$7:$E$56,0) -> 7 | J14: =IF($B$4=90,LARGE(C12:D58,8),IF($B$4="St",LARGE(C13:D58,8),IF($B$4=57,LARGE(C11:D58,8)))) -> 83 | Q14: 7. Schuss | R14: 7
B15: 9 | C15: 93 | D15: 63 | E15: =SUM($C15:$D15) -> 156 | F15: =RANK(E15,$E$7:$E$56,0) -> 9 | J15: =IF($B$4=90,LARGE(C13:D59,9),IF($B$4="St",LARGE(C14:D59,9),IF($B$4=57,LARGE(C12:D59,9)))) -> 81 | Q15: 8. Schuss | R15: 8
B16: 10 | C16: 60 | D16: 89 | E16: =SUM($C16:$D16) -> 149 | F16: =RANK(E16,$E$7:$E$56,0) -> 10 | Q16: 9. Schuss | R16: 9
B17: 11 | C17: 77 | D17: 71 | E17: =SUM($C17:$D17) -> 148 | F17: =RANK(E17,$E$7:$E$56,0) -> 11 | Q17: 10. Schuss | R17: 8
B18: 12 | C18: 73 | D18: 74 | E18: =SUM($C18:$D18) -> 147 | F18: =RANK(E18,$E$7:$E$56,0) -> 12 | Q18: Total | R18: =SUM(R8:R17) -> 85
B19: 13 | C19: 50 | D19: 94 | E19: =SUM($C19:$D19) -> 144 | F19: =RANK(E19,$E$7:$E$56,0) -> 13
B20: 14 | C20: 83 | D20: 60 | E20: =SUM($C20:$D20) -> 143 | F20: =RANK(E20,$E$7:$E$56,0) -> 14
B21: 15 | C21: 82 | D21: 60 | E21: =SUM($C21:$D21) -> 142 | F21: =RANK(E21,$E$7:$E$56,0) -> 15
B22: 16 | C22: 59 | D22: 81 | E22: =SUM($C22:$D22) -> 140 | F22: =RANK(E22,$E$7:$E$56,0) -> 16
B23: 17 | C23: 96 | D23: 39 | E23: =SUM($C23:$D23) -> 135 | F23: =RANK(E23,$E$7:$E$56,0) -> 17
B24: 18 | C24: 62 | D24: 66 | E24: =SUM($C24:$D24) -> 128 | F24: =RANK(E24,$E$7:$E$56,0) -> 18
B25: 19 | C25: 33 | D25: 80 | E25: =SUM($C25:$D25) -> 113 | F25: =RANK(E25,$E$7:$E$56,0) -> 19
B26: 20 | C26: 78 | D26: 28 | E26: =SUM($C26:$D26) -> 106 | F26: =RANK(E26,$E$7:$E$56,0) -> 20
B27: 21 | E27: =SUM($C27:$D27) -> 0 | F27: =RANK(E27,$E$7:$E$56,0) -> 21
B28: 22 | E28: =SUM($C28:$D28) -> 0 | F28: =RANK(E28,$E$7:$E$56,0) -> 21
B29: 23 | E29: =SUM($C29:$D29) -> 0 | F29: =RANK(E29,$E$7:$E$56,0) -> 21
B30: 24 | E30: =SUM($C30:$D30) -> 0 | F30: =RANK(E30,$E$7:$E$56,0) -> 21
B31: 25 | E31: =SUM($C31:$D31) -> 0 | F31: =RANK(E31,$E$7:$E$56,0) -> 21
B32: 26 | E32: =SUM($C32:$D32) -> 0 | F32: =RANK(E32,$E$7:$E$56,0) -> 21
B33: 27 | E33: =SUM($C33:$D33) -> 0 | F33: =RANK(E33,$E$7:$E$56,0) -> 21
B34: 28 | E34: =SUM($C34:$D34) -> 0 | F34: =RANK(E34,$E$7:$E$56,0) -> 21
B35: 29 | E35: =SUM($C35:$D35) -> 0 | F35: =RANK(E35,$E$7:$E$56,0) -> 21
B36: 30 | E36: =SUM($C36:$D36) -> 0 | F36: =RANK(E36,$E$7:$E$56,0) -> 21
B37: 31 | E37: =SUM($C37:$D37) -> 0 | F37: =RANK(E37,$E$7:$E$56,0) -> 21
B38: 32 | E38: =SUM($C38:$D38) -> 0 | F38: =RANK(E38,$E$7:$E$56,0) -> 21
B39: 33 | E39: =SUM($C39:$D39) -> 0 | F39: =RANK(E39,$E$7:$E$56,0) -> 21
B40: 34 | E40: =SUM($C40:$D40) -> 0 | F40: =RANK(E40,$E$7:$E$56,0) -> 21
B41: 35 | E41: =SUM($C41:$D41) -> 0 | F41: =RANK(E41,$E$7:$E$56,0) -> 21
B42: 36 | E42: =SUM($C42:$D42) -> 0 | F42: =RANK(E42,$E$7:$E$56,0) -> 21
B43: 37 | E43: =SUM($C43:$D43) -> 0 | F43: =RANK(E43,$E$7:$E$56,0) -> 21
B44: 38 | E44: =SUM($C44:$D44) -> 0 | F44: =RANK(E44,$E$7:$E$56,0) -> 21
B45: 39 | E45: =SUM($C45:$D45) -> 0 | F45: =RANK(E45,$E$7:$E$56,0) -> 21
B46: 40 | E46: =SUM($C46:$D46) -> 0 | F46: =RANK(E46,$E$7:$E$56,0) -> 21
B47: 41 | E47: =SUM($C47:$D47) -> 0 | F47: =RANK(E47,$E$7:$E$56,0) -> 21
B48: 42 | E48: =SUM($C48:$D48) -> 0 | F48: =RANK(E48,$E$7:$E$56,0) -> 21
B49: 43 | E49: =SUM($C49:$D49) -> 0 | F49: =RANK(E49,$E$7:$E$56,0) -> 21
B50: 44 | E50: =SUM($C50:$D50) -> 0 | F50: =RANK(E50,$E$7:$E$56,0) -> 21
B51: 45 | E51: =SUM($C51:$D51) -> 0 | F51: =RANK(E51,$E$7:$E$56,0) -> 21
B52: 46 | E52: =SUM($C52:$D52) -> 0 | F52: =RANK(E52,$E$7:$E$56,0) -> 21
B53: 47 | E53: =SUM($C53:$D53) -> 0 | F53: =RANK(E53,$E$7:$E$56,0) -> 21
B54: 48 | E54: =SUM($C54:$D54) -> 0 | F54: =RANK(E54,$E$7:$E$56,0) -> 21
B55: 49 | E55: =SUM($C55:$D55) -> 0 | F55: =RANK(E55,$E$7:$E$56,0) -> 21
B56: 50 | E56: =SUM($C56:$D56) -> 0 | F56: =RANK(E56,$E$7:$E$56,0) -> 21

Sheet S. Wälti
A1: Name
A2: Wälti Sascha
A3: Gutschein | B3: Migros
A4: Waffe | B4: 90
B5: Sau Stich | N5: Glück | Q5: Auszahlung
B6: Nr. Passe | C6: 1. Schuss | D6: 2. Schuss | E6: Total | F6: Rang | H6: Besten Passen | J6: Besten Einzel | L6: Total Passen und Einzel
B7: 1 | C7: 96 | D7: 90 | E7: =SUM($C7:$D7) -> 186 | F7: =RANK(E7,$E$7:$E$56,0) -> 1 | H7: =LARGE(E7:E56,1) -> 186 | J7: =IF($B$4=90,LARGE(C10:D56,1),IF($B$4="St",LARGE(C11:D56,1),IF($B$4=57,LARGE(C9:D56,1)))) -> 97
B8: 2 | C8: 94 | D8: 92 | E8: =SUM($C8:$D8) -> 186 | F8: =RANK(E8,$E$7:$E$56,0) -> 1 | H8: =LARGE(E7:E56,2) -> 186 | J8: =IF($B$4=90,LARGE(C10:D56,2),IF($B$4="St",LARGE(C11:D56,2),IF($B$4=57,LARGE(C9:D56,2)))) -> 95 | L8: =IF($B$4=57,SUM(H7:H8,J7:J12),IF($B$4=90,SUM(H7:H9,J7:J10),IF($B$4="St",SUM(H7:H10,J7:J8)))) -> 934 | N8: Ansage | O8: 246 | Q8: 1. Schuss | R8: 10
B9: 3 | C9: 99 | D9: 85 | E9: =SUM($C9:$D9) -> 184 | F9: =RANK(E9,$E$7:$E$56,0) -> 3 | H9: =LARGE(E7:E56,3) -> 184 | J9: =IF($B$4=90,LARGE($C$10:$D$56,3),IF($B$4="St",LARGE($C$11:$D$56,3),IF($B$4=57,LARGE($C$9:$D$56,3)))) -> 94 | N9: Geschossen | O9: 283 | Q9: 2. Schuss | R9: 10
B10: 4 | C10: 95 | D10: 87 | E10: =SUM($C10:$D10) -> 182 | F10: =RANK(E10,$E$7:$E$56,0) -> 4 | H10: =LARGE(E7:E56,4) -> 182 | J10: =IF($B$4=90,LARGE(C10:D56,4),IF($B$4="St",LARGE(C11:D56,4),IF($B$4=57,LARGE(C9:D56,4)))) -> 92 | N10: Differenz | O10: =IF(O8>0,IF(O8>O9,O8-O9,O9-O8),"") -> 37 | Q10: 3. Schuss | R10: 10
B11: 5 | C11: 92 | D11: 88 | E11: =SUM($C11:$D11) -> 180 | F11: =RANK(E11,$E$7:$E$56,0) -> 5 | J11: =IF($B$4=90,LARGE(C10:D56,5),IF($B$4="St",LARGE(C11:D56,5),IF($B$4=57,LARGE(C9:D56,5)))) -> 92 | Q11: 4. Schuss | R11: 7
B12: 6 | C12: 90 | D12: 90 | E12: =SUM($C12:$D12) -> 180 | F12: =RANK(E12,$E$7:$E$56,0) -> 5 | J12: =IF($B$4=90,LARGE(C10:D56,6),IF($B$4="St",LARGE(C11:D56,6),IF($B$4=57,LARGE(C9:D56,6)))) -> 90 | Q12: 5. Schuss | R12: 10
B13: 7 | C13: 84 | D13: 94 | E13: =SUM($C13:$D13) -> 178 | F13: =RANK(E13,$E$7:$E$56,0) -> 7 | J13: =IF($B$4=90,LARGE(C11:D57,7),IF($B$4="St",LARGE(C12:D57,7),IF($B$4=57,LARGE(C10:D57,7)))) -> 90 | Q13: 6. Schuss | R13: 8
B14: 8 | C14: 89 | D14: 88 | E14: =SUM($C14:$D14) -> 177 | F14: =RANK(E14,$E$7:$E$56,0) -> 8 | J14: =IF($B$4=90,LARGE(C12:D58,8),IF($B$4="St",LARGE(C13:D58,8),IF($B$4=57,LARGE(C11:D58,8)))) -> 89 | Q14: 7. Schuss | R14: 10
B15: 9 | C15: 83 | D15: 92 | E15: =SUM($C15:$D15) -> 175 | F15: =RANK(E15,$E$7:$E$56,0) -> 9 | J15: =IF($B$4=90,LARGE(C13:D59,9),IF($B$4="St",LARGE(C14:D59,9),IF($B$4=57,LARGE(C12:D59,9)))) -> 86 | Q15: 8. Schuss | R15: 8
B16: 10 | C16: 90 | D16: 85 | E16: =SUM($C16:$D16) -> 175 | F16: =RANK(E16,$E$7:$E$56,0) -> 9 | Q16: 9. Schuss | R16: 9
B17: 11 | C17: 90 | D17: 80 | E17: =SUM($C17:$D17) -> 170 | F17: =RANK(E17,$E$7:$E$56,0) -> 11 | Q17: 10. Schuss | R17: 10
B18: 12 | C18: 84 | D18: 86 | E18: =SUM($C18:$D18) -> 170 | F18: =RANK(E18,$E$7:$E$56,0) -> 11 | Q18: Total | R18: =SUM(R8:R17) -> 92
B19: 13 | C19: 82 | D19: 83 | E19: =SUM($C19:$D19) -> 165 | F19: =RANK(E19,$E$7:$E$56,0) -> 13
B20: 14 | C20: 83 | D20: 82 | E20: =SUM($C20:$D20) -> 165 | F20: =RANK(E20,$E$7:$E$56,0) -> 13
B21: 15 | C21: 66 | D21: 97 | E21: =SUM($C21:$D21) -> 163 | F21: =RANK(E21,$E$7:$E$56,0) -> 15
B22: 16 | C22: 86 | D22: 77 | E22: =SUM($C22:$D22) -> 163 | F22: =RANK(E22,$E$7:$E$56,0) -> 15
B23: 17 | C23: 78 | D23: 85 | E23: =SUM($C23:$D23) -> 163 | F23: =RANK(E23,$E$7:$E$56,0) -> 15
B24: 18 | C24: 78 | D24: 76 | E24: =SUM($C24:$D24) -> 154 | F24: =RANK(E24,$E$7:$E$56,0) -> 18
B25: 19 | C25: 65 | D25: 84 | E25: =SUM($C25:$D25) -> 149 | F25: =RANK(E25,$E$7:$E$56,0) -> 19
B26: 20 | C26: 76 | D26: 65 | E26: =SUM($C26:$D26) -> 141 | F26: =RANK(E26,$E$7:$E$56,0) -> 20
B27: 21 | E27: =SUM($C27:$D27) -> 0 | F27: =RANK(E27,$E$7:$E$56,0) -> 21
B28: 22 | E28: =SUM($C28:$D28) -> 0 | F28: =RANK(E28,$E$7:$E$56,0) -> 21
B29: 23 | E29: =SUM($C29:$D29) -> 0 | F29: =RANK(E29,$E$7:$E$56,0) -> 21
B30: 24 | E30: =SUM($C30:$D30) -> 0 | F30: =RANK(E30,$E$7:$E$56,0) -> 21
B31: 25 | E31: =SUM($C31:$D31) -> 0 | F31: =RANK(E31,$E$7:$E$56,0) -> 21
B32: 26 | E32: =SUM($C32:$D32) -> 0 | F32: =RANK(E32,$E$7:$E$56,0) -> 21
B33: 27 | E33: =SUM($C33:$D33) -> 0 | F33: =RANK(E33,$E$7:$E$56,0) -> 21
B34: 28 | E34: =SUM($C34:$D34) -> 0 | F34: =RANK(E34,$E$7:$E$56,0) -> 21
B35: 29 | E35: =SUM($C35:$D35) -> 0 | F35: =RANK(E35,$E$7:$E$56,0) -> 21
B36: 30 | E36: =SUM($C36:$D36) -> 0 | F36: =RANK(E36,$E$7:$E$56,0) -> 21
B37: 31 | E37: =SUM($C37:$D37) -> 0 | F37: =RANK(E37,$E$7:$E$56,0) -> 21
B38: 32 | E38: =SUM($C38:$D38) -> 0 | F38: =RANK(E38,$E$7:$E$56,0) -> 21
B39: 33 | E39: =SUM($C39:$D39) -> 0 | F39: =RANK(E39,$E$7:$E$56,0) -> 21
B40: 34 | E40: =SUM($C40:$D40) -> 0 | F40: =RANK(E40,$E$7:$E$56,0) -> 21
B41: 35 | E41: =SUM($C41:$D41) -> 0 | F41: =RANK(E41,$E$7:$E$56,0) -> 21
B42: 36 | E42: =SUM($C42:$D42) -> 0 | F42: =RANK(E42,$E$7:$E$56,0) -> 21
B43: 37 | E43: =SUM($C43:$D43) -> 0 | F43: =RANK(E43,$E$7:$E$56,0) -> 21
B44: 38 | E44: =SUM($C44:$D44) -> 0 | F44: =RANK(E44,$E$7:$E$56,0) -> 21
B45: 39 | E45: =SUM($C45:$D45) -> 0 | F45: =RANK(E45,$E$7:$E$56,0) -> 21
B46: 40 | E46: =SUM($C46:$D46) -> 0 | F46: =RANK(E46,$E$7:$E$56,0) -> 21
B47: 41 | E47: =SUM($C47:$D47) -> 0 | F47: =RANK(E47,$E$7:$E$56,0) -> 21
B48: 42 | E48: =SUM($C48:$D48) -> 0 | F48: =RANK(E48,$E$7:$E$56,0) -> 21
B49: 43 | E49: =SUM($C49:$D49) -> 0 | F49: =RANK(E49,$E$7:$E$56,0) -> 21
B50: 44 | E50: =SUM($C50:$D50) -> 0 | F50: =RANK(E50,$E$7:$E$56,0) -> 21
B51: 45 | E51: =SUM($C51:$D51) -> 0 | F51: =RANK(E51,$E$7:$E$56,0) -> 21
B52: 46 | E52: =SUM($C52:$D52) -> 0 | F52: =RANK(E52,$E$7:$E$56,0) -> 21
B53: 47 | E53: =SUM($C53:$D53) -> 0 | F53: =RANK(E53,$E$7:$E$56,0) -> 21
B54: 48 | E54: =SUM($C54:$D54) -> 0 | F54: =RANK(E54,$E$7:$E$56,0) -> 21
B55: 49 | E55: =SUM($C55:$D55) -> 0 | F55: =RANK(E55,$E$7:$E$56,0) -> 21
B56: 50 | E56: =SUM($C56:$D56) -> 0 | F56: =RANK(E56,$E$7:$E$56,0) -> 21

Sheet H. Bürgi
A1: Name
A2: Bürgi Heinz
A3: Gutschein | B3: Migros
A4: Waffe | B4: 90
B5: Sau Stich | N5: Glück | Q5: Auszahlung
B6: Nr. Passe | C6: 1. Schuss | D6: 2. Schuss | E6: Total | F6: Rang | H6: Besten Passen | J6: Besten Einzel | L6: Total Passen und Einzel
B7: 1 | C7: 92 | D7: 99 | E7: =SUM($C7:$D7) -> 191 | F7: =RANK(E7,$E$7:$E$56,0) -> 1 | H7: =LARGE(E7:E56,1) -> 191 | J7: =IF($B$4=90,LARGE(C10:D56,1),IF($B$4="St",LARGE(C11:D56,1),IF($B$4=57,LARGE(C9:D56,1)))) -> 97
B8: 2 | C8: 95 | D8: 93 | E8: =SUM($C8:$D8) -> 188 | F8: =RANK(E8,$E$7:$E$56,0) -> 2 | H8: =LARGE(E7:E56,2) -> 188 | J8: =IF($B$4=90,LARGE(C10:D56,2),IF($B$4="St",LARGE(C11:D56,2),IF($B$4=57,LARGE(C9:D56,2)))) -> 97 | L8: =IF($B$4=57,SUM(H7:H8,J7:J12),IF($B$4=90,SUM(H7:H9,J7:J10),IF($B$4="St",SUM(H7:H10,J7:J8)))) -> 951 | N8: Ansage | O8: 237 | Q8: 1. Schuss | R8: 8
B9: 3 | C9: 91 | D9: 95 | E9: =SUM($C9:$D9) -> 186 | F9: =RANK(E9,$E$7:$E$56,0) -> 3 | H9: =LARGE(E7:E56,3) -> 186 | J9: =IF($B$4=90,LARGE($C$10:$D$56,3),IF($B$4="St",LARGE($C$11:$D$56,3),IF($B$4=57,LARGE($C$9:$D$56,3)))) -> 96 | N9: Geschossen | O9: 224 | Q9: 2. Schuss | R9: 8
B10: 4 | C10: 89 | D10: 97 | E10: =SUM($C10:$D10) -> 186 | F10: =RANK(E10,$E$7:$E$56,0) -> 3 | H10: =LARGE(E7:E56,4) -> 186 | J10: =IF($B$4=90,LARGE(C10:D56,4),IF($B$4="St",LARGE(C11:D56,4),IF($B$4=57,LARGE(C9:D56,4)))) -> 96 | N10: Differenz | O10: =IF(O8>0,IF(O8>O9,O8-O9,O9-O8),"") -> 13 | Q10: 3. Schuss | R10: 9
B11: 5 | C11: 91 | D11: 94 | E11: =SUM($C11:$D11) -> 185 | F11: =RANK(E11,$E$7:$E$56,0) -> 5 | J11: =IF($B$4=90,LARGE(C10:D56,5),IF($B$4="St",LARGE(C11:D56,5),IF($B$4=57,LARGE(C9:D56,5)))) -> 94 | Q11: 4. Schuss | R11: 9
B12: 6 | C12: 91 | D12: 94 | E12: =SUM($C12:$D12) -> 185 | F12: =RANK(E12,$E$7:$E$56,0) -> 5 | J12: =IF($B$4=90,LARGE(C10:D56,6),IF($B$4="St",LARGE(C11:D56,6),IF($B$4=57,LARGE(C9:D56,6)))) -> 94 | Q12: 5. Schuss | R12: 10
B13: 7 | C13: 96 | D13: 85 | E13: =SUM($C13:$D13) -> 181 | F13: =RANK(E13,$E$7:$E$56,0) -> 7 | J13: =IF($B$4=90,LARGE(C11:D57,7),IF($B$4="St",LARGE(C12:D57,7),IF($B$4=57,LARGE(C10:D57,7)))) -> 93 | Q13: 6. Schuss | R13: 8
B14: 8 | C14: 81 | D14: 97 | E14: =SUM($C14:$D14) -> 178 | F14: =RANK(E14,$E$7:$E$56,0) -> 8 | J14: =IF($B$4=90,LARGE(C12:D58,8),IF($B$4="St",LARGE(C13:D58,8),IF($B$4=57,LARGE(C11:D58,8)))) -> 93 | Q14: 7. Schuss | R14: 9
B15: 9 | C15: 93 | D15: 83 | E15: =SUM($C15:$D15) -> 176 | F15: =RANK(E15,$E$7:$E$56,0) -> 9 | J15: =IF($B$4=90,LARGE(C13:D59,9),IF($B$4="St",LARGE(C14:D59,9),IF($B$4=57,LARGE(C12:D59,9)))) -> 90 | Q15: 8. Schuss | R15: 9
B16: 10 | C16: 82 | D16: 93 | E16: =SUM($C16:$D16) -> 175 | F16: =RANK(E16,$E$7:$E$56,0) -> 10 | Q16: 9. Schuss | R16: 10
B17: 11 | C17: 84 | D17: 89 | E17: =SUM($C17:$D17) -> 173 | F17: =RANK(E17,$E$7:$E$56,0) -> 11 | Q17: 10. Schuss | R17: 10
B18: 12 | C18: 91 | D18: 82 | E18: =SUM($C18:$D18) -> 173 | F18: =RANK(E18,$E$7:$E$56,0) -> 11 | Q18: Total | R18: =SUM(R8:R17) -> 90
B19: 13 | C19: 86 | D19: 87 | E19: =SUM($C19:$D19) -> 173 | F19: =RANK(E19,$E$7:$E$56,0) -> 11
B20: 14 | C20: 87 | D20: 86 | E20: =SUM($C20:$D20) -> 173 | F20: =RANK(E20,$E$7:$E$56,0) -> 11
B21: 15 | C21: 78 | D21: 94 | E21: =SUM($C21:$D21) -> 172 | F21: =RANK(E21,$E$7:$E$56,0) -> 15
B22: 16 | C22: 85 | D22: 86 | E22: =SUM($C22:$D22) -> 171 | F22: =RANK(E22,$E$7:$E$56,0) -> 16
B23: 17 | C23: 81 | D23: 90 | E23: =SUM($C23:$D23) -> 171 | F23: =RANK(E23,$E$7:$E$56,0) -> 16
B24: 18 | C24: 88 | D24: 82 | E24: =SUM($C24:$D24) -> 170 | F24: =RANK(E24,$E$7:$E$56,0) -> 18
B25: 19 | C25: 76 | D25: 93 | E25: =SUM($C25:$D25) -> 169 | F25: =RANK(E25,$E$7:$E$56,0) -> 19
B26: 20 | C26: 86 | D26: 83 | E26: =SUM($C26:$D26) -> 169 | F26: =RANK(E26,$E$7:$E$56,0) -> 19
B27: 21 | C27: 89 | D27: 79 | E27: =SUM($C27:$D27) -> 168 | F27: =RANK(E27,$E$7:$E$56,0) -> 21
B28: 22 | C28: 80 | D28: 86 | E28: =SUM($C28:$D28) -> 166 | F28: =RANK(E28,$E$7:$E$56,0) -> 22
B29: 23 | C29: 89 | D29: 76 | E29: =SUM($C29:$D29) -> 165 | F29: =RANK(E29,$E$7:$E$56,0) -> 23
B30: 24 | C30: 79 | D30: 86 | E30: =SUM($C30:$D30) -> 165 | F30: =RANK(E30,$E$7:$E$56,0) -> 23
B31: 25 | C31: 76 | D31: 89 | E31: =SUM($C31:$D31) -> 165 | F31: =RANK(E31,$E$7:$E$56,0) -> 23
B32: 26 | C32: 68 | D32: 96 | E32: =SUM($C32:$D32) -> 164 | F32: =RANK(E32,$E$7:$E$56,0) -> 26
B33: 27 | C33: 88 | D33: 73 | E33: =SUM($C33:$D33) -> 161 | F33: =RANK(E33,$E$7:$E$56,0) -> 27
B34: 28 | C34: 89 | D34: 67 | E34: =SUM($C34:$D34) -> 156 | F34: =RANK(E34,$E$7:$E$56,0) -> 28
B35: 29 | C35: 73 | D35: 82 | E35: =SUM($C35:$D35) -> 155 | F35: =RANK(E35,$E$7:$E$56,0) -> 29
B36: 30 | C36: 76 | D36: 78 | E36: =SUM($C36:$D36) -> 154 | F36: =RANK(E36,$E$7:$E$56,0) -> 30
B37: 31 | C37: 74 | D37: 78 | E37: =SUM($C37:$D37) -> 152 | F37: =RANK(E37,$E$7:$E$56,0) -> 31
B38: 32 | C38: 86 | D38: 66 | E38: =SUM($C38:$D38) -> 152 | F38: =RANK(E38,$E$7:$E$56,0) -> 31
B39: 33 | C39: 77 | D39: 73 | E39: =SUM($C39:$D39) -> 150 | F39: =RANK(E39,$E$7:$E$56,0) -> 33
B40: 34 | C40: 67 | D40: 82 | E40: =SUM($C40:$D40) -> 149 | F40: =RANK(E40,$E$7:$E$56,0) -> 34
B41: 35 | C41: 78 | D41: 71 | E41: =SUM($C41:$D41) -> 149 | F41: =RANK(E41,$E$7:$E$56,0) -> 34
B42: 36 | C42: 79 | D42: 69 | E42: =SUM($C42:$D42) -> 148 | F42: =RANK(E42,$E$7:$E$56,0) -> 36
B43: 37 | C43: 84 | D43: 55 | E43: =SUM($C43:$D43) -> 139 | F43: =RANK(E43,$E$7:$E$56,0) -> 37
B44: 38 | C44: 68 | D44: 71 | E44: =SUM($C44:$D44) -> 139 | F44: =RANK(E44,$E$7:$E$56,0) -> 37
B45: 39 | C45: 62 | D45: 76 | E45: =SUM($C45:$D45) -> 138 | F45: =RANK(E45,$E$7:$E$56,0) -> 39
B46: 40 | C46: 70 | D46: 64 | E46: =SUM($C46:$D46) -> 134 | F46: =RANK(E46,$E$7:$E$56,0) -> 40
B47: 41 | E47: =SUM($C47:$D47) -> 0 | F47: =RANK(E47,$E$7:$E$56,0) -> 41
B48: 42 | E48: =SUM($C48:$D48) -> 0 | F48: =RANK(E48,$E$7:$E$56,0) -> 41
B49: 43 | E49: =SUM($C49:$D49) -> 0 | F49: =RANK(E49,$E$7:$E$56,0) -> 41
B50: 44 | E50: =SUM($C50:$D50) -> 0 | F50: =RANK(E50,$E$7:$E$56,0) -> 41
B51: 45 | E51: =SUM($C51:$D51) -> 0 | F51: =RANK(E51,$E$7:$E$56,0) -> 41
B52: 46 | E52: =SUM($C52:$D52) -> 0 | F52: =RANK(E52,$E$7:$E$56,0) -> 41
B53: 47 | E53: =SUM($C53:$D53) -> 0 | F53: =RANK(E53,$E$7:$E$56,0) -> 41
B54: 48 | E54: =SUM($C54:$D54) -> 0 | F54: =RANK(E54,$E$7:$E$56,0) -> 41
B55: 49 | E55: =SUM($C55:$D55) -> 0 | F55: =RANK(E55,$E$7:$E$56,0) -> 41
B56: 50 | E56: =SUM($C56:$D56) -> 0 | F56: =RANK(E56,$E$7:$E$56,0) -> 41

Sheet D. Jenni
A1: Name
A2: Jenni Daniel
A3: Gutschein | B3: Coop
A4: Waffe | B4: 57
B5: Sau Stich | N5: Glück | Q5: Auszahlung
B6: Nr. Passe | C6: 1. Schuss | D6: 2. Schuss | E6: Total | F6: Rang | H6: Besten Passen | J6: Besten Einzel | L6: Total Passen und Einzel
B7: 1 | C7: 98 | D7: 71 | E7: =SUM($C7:$D7) -> 169 | F7: =RANK(E7,$E$7:$E$56,0) -> 1 | H7: =LARGE(E7:E56,1) -> 169 | J7: =IF($B$4=90,LARGE(C10:D56,1),IF($B$4="St",LARGE(C11:D56,1),IF($B$4=57,LARGE(C9:D56,1)))) -> 91
B8: 2 | C8: 98 | D8: 71 | E8: =SUM($C8:$D8) -> 169 | F8: =RANK(E8,$E$7:$E$56,0) -> 1 | H8: =LARGE(E7:E56,2) -> 169 | J8: =IF($B$4=90,LARGE(C10:D56,2),IF($B$4="St",LARGE(C11:D56,2),IF($B$4=57,LARGE(C9:D56,2)))) -> 89 | L8: =IF($B$4=57,SUM(H7:H8,J7:J12),IF($B$4=90,SUM(H7:H9,J7:J10),IF($B$4="St",SUM(H7:H10,J7:J8)))) -> 850 | N8: Ansage | O8: 243 | Q8: 1. Schuss | R8: 7
B9: 3 | C9: 81 | D9: 83 | E9: =SUM($C9:$D9) -> 164 | F9: =RANK(E9,$E$7:$E$56,0) -> 3 | H9: =LARGE(E7:E56,3) -> 164 | J9: =IF($B$4=90,LARGE($C$10:$D$56,3),IF($B$4="St",LARGE($C$11:$D$56,3),IF($B$4=57,LARGE($C$9:$D$56,3)))) -> 84 | N9: Geschossen | O9: 193 | Q9: 2. Schuss | R9: 10
B10: 4 | C10: 89 | D10: 72 | E10: =SUM($C10:$D10) -> 161 | F10: =RANK(E10,$E$7:$E$56,0) -> 4 | H10: =LARGE(E7:E56,4) -> 161 | J10: =IF($B$4=90,LARGE(C10:D56,4),IF($B$4="St",LARGE(C11:D56,4),IF($B$4=57,LARGE(C9:D56,4)))) -> 83 | N10: Differenz | O10: =IF(O8>0,IF(O8>O9,O8-O9,O9-O8),"") -> 50 | Q10: 3. Schuss | R10: 9
B11: 5 | C11: 83 | D11: 78 | E11: =SUM($C11:$D11) -> 161 | F11: =RANK(E11,$E$7:$E$56,0) -> 4 | J11: =IF($B$4=90,LARGE(C10:D56,5),IF($B$4="St",LARGE(C11:D56,5),IF($B$4=57,LARGE(C9:D56,5)))) -> 83 | Q11: 4. Schuss | R11: 10
B12: 6 | C12: 91 | D12: 68 | E12: =SUM($C12:$D12) -> 159 | F12: =RANK(E12,$E$7:$E$56,0) -> 6 | J12: =IF($B$4=90,LARGE(C10:D56,6),IF($B$4="St",LARGE(C11:D56,6),IF($B$4=57,LARGE(C9:D56,6)))) -> 82 | Q12: 5. Schuss | R12: 8
B13: 7 | C13: 80 | D13: 76 | E13: =SUM($C13:$D13) -> 156 | F13: =RANK(E13,$E$7:$E$56,0) -> 7 | J13: =IF($B$4=90,LARGE(C11:D57,7),IF($B$4="St",LARGE(C12:D57,7),IF($B$4=57,LARGE(C10:D57,7)))) -> 79 | Q13: 6. Schuss | R13: 10
B14: 8 | C14: 70 | D14: 82 | E14: =SUM($C14:$D14) -> 152 | F14: =RANK(E14,$E$7:$E$56,0) -> 8 | J14: =IF($B$4=90,LARGE(C12:D58,8),IF($B$4="St",LARGE(C13:D58,8),IF($B$4=57,LARGE(C11:D58,8)))) -> 76 | Q14: 7. Schuss | R14: 8
B15: 9 | C15: 66 | D15: 84 | E15: =SUM($C15:$D15) -> 150 | F15: =RANK(E15,$E$7:$E$56,0) -> 9 | J15: =IF($B$4=90,LARGE(C13:D59,9),IF($B$4="St",LARGE(C14:D59,9),IF($B$4=57,LARGE(C12:D59,9)))) -> 75 | Q15: 8. Schuss | R15: 9
B16: 10 | C16: 75 | D16: 75 | E16: =SUM($C16:$D16) -> 150 | F16: =RANK(E16,$E$7:$E$56,0) -> 9 | H16: ='D. Jenni'!B4 -> 57 | Q16: 9. Schuss | R16: 10
B17: 11 | C17: 68 | D17: 79 | E17: =SUM($C17:$D17) -> 147 | F17: =RANK(E17,$E$7:$E$56,0) -> 11 | Q17: 10. Schuss | R17: 6
B18: 12 | C18: 75 | D18: 70 | E18: =SUM($C18:$D18) -> 145 | F18: =RANK(E18,$E$7:$E$56,0) -> 12 | Q18: Total | R18: =SUM(R8:R17) -> 87
B19: 13 | C19: 69 | D19: 76 | E19: =SUM($C19:$D19) -> 145 | F19: =RANK(E19,$E$7:$E$56,0) -> 12
B20: 14 | C20: 66 | D20: 72 | E20: =SUM($C20:$D20) -> 138 | F20: =RANK(E20,$E$7:$E$56,0) -> 14
B21: 15 | C21: 71 | D21: 55 | E21: =SUM($C21:$D21) -> 126 | F21: =RANK(E21,$E$7:$E$56,0) -> 15
B22: 16 | C22: 67 | D22: 58 | E22: =SUM($C22:$D22) -> 125 | F22: =RANK(E22,$E$7:$E$56,0) -> 16
B23: 17 | C23: 47 | D23: 64 | E23: =SUM($C23:$D23) -> 111 | F23: =RANK(E23,$E$7:$E$56,0) -> 17
B24: 18 | C24: 43 | D24: 65 | E24: =SUM($C24:$D24) -> 108 | F24: =RANK(E24,$E$7:$E$56,0) -> 18
B25: 19 | C25: 51 | D25: 34 | E25: =SUM($C25:$D25) -> 85 | F25: =RANK(E25,$E$7:$E$56,0) -> 19
B26: 20 | C26: 0 | D26: 61 | E26: =SUM($C26:$D26) -> 61 | F26: =RANK(E26,$E$7:$E$56,0) -> 20
B27: 21 | E27: =SUM($C27:$D27) -> 0 | F27: =RANK(E27,$E$7:$E$56,0) -> 21
B28: 22 | E28: =SUM($C28:$D28) -> 0 | F28: =RANK(E28,$E$7:$E$56,0) -> 21
B29: 23 | E29: =SUM($C29:$D29) -> 0 | F29: =RANK(E29,$E$7:$E$56,0) -> 21
B30: 24 | E30: =SUM($C30:$D30) -> 0 | F30: =RANK(E30,$E$7:$E$56,0) -> 21
B31: 25 | E31: =SUM($C31:$D31) -> 0 | F31: =RANK(E31,$E$7:$E$56,0) -> 21
B32: 26 | E32: =SUM($C32:$D32) -> 0 | F32: =RANK(E32,$E$7:$E$56,0) -> 21
B33: 27 | E33: =SUM($C33:$D33) -> 0 | F33: =RANK(E33,$E$7:$E$56,0) -> 21
B34: 28 | E34: =SUM($C34:$D34) -> 0 | F34: =RANK(E34,$E$7:$E$56,0) -> 21
B35: 29 | E35: =SUM($C35:$D35) -> 0 | F35: =RANK(E35,$E$7:$E$56,0) -> 21
B36: 30 | E36: =SUM($C36:$D36) -> 0 | F36: =RANK(E36,$E$7:$E$56,0) -> 21
B37: 31 | E37: =SUM($C37:$D37) -> 0 | F37: =RANK(E37,$E$7:$E$56,0) -> 21
B38: 32 | E38: =SUM($C38:$D38) -> 0 | F38: =RANK(E38,$E$7:$E$56,0) -> 21
B39: 33 | E39: =SUM($C39:$D39) -> 0 | F39: =RANK(E39,$E$7:$E$56,0) -> 21
B40: 34 | E40: =SUM($C40:$D40) -> 0 | F40: =RANK(E40,$E$7:$E$56,0) -> 21
B41: 35 | E41: =SUM($C41:$D41) -> 0 | F41: =RANK(E41,$E$7:$E$56,0) -> 21
B42: 36 | E42: =SUM($C42:$D42) -> 0 | F42: =RANK(E42,$E$7:$E$56,0) -> 21
B43: 37 | E43: =SUM($C43:$D43) -> 0 | F43: =RANK(E43,$E$7:$E$56,0) -> 21
B44: 38 | E44: =SUM($C44:$D44) -> 0 | F44: =RANK(E44,$E$7:$E$56,0) -> 21
B45: 39 | E45: =SUM($C45:$D45) -> 0 | F45: =RANK(E45,$E$7:$E$56,0) -> 21
B46: 40 | E46: =SUM($C46:$D46) -> 0 | F46: =RANK(E46,$E$7:$E$56,0) -> 21
B47: 41 | E47: =SUM($C47:$D47) -> 0 | F47: =RANK(E47,$E$7:$E$56,0) -> 21
B48: 42 | E48: =SUM($C48:$D48) -> 0 | F48: =RANK(E48,$E$7:$E$56,0) -> 21
B49: 43 | E49: =SUM($C49:$D49) -> 0 | F49: =RANK(E49,$E$7:$E$56,0) -> 21
B50: 44 | E50: =SUM($C50:$D50) -> 0 | F50: =RANK(E50,$E$7:$E$56,0) -> 21
B51: 45 | E51: =SUM($C51:$D51) -> 0 | F51: =RANK(E51,$E$7:$E$56,0) -> 21
B52: 46 | E52: =SUM($C52:$D52) -> 0 | F52: =RANK(E52,$E$7:$E$56,0) -> 21
B53: 47 | E53: =SUM($C53:$D53) -> 0 | F53: =RANK(E53,$E$7:$E$56,0) -> 21
B54: 48 | E54: =SUM($C54:$D54) -> 0 | F54: =RANK(E54,$E$7:$E$56,0) -> 21
B55: 49 | E55: =SUM($C55:$D55) -> 0 | F55: =RANK(E55,$E$7:$E$56,0) -> 21
B56: 50 | E56: =SUM($C56:$D56) -> 0 | F56: =RANK(E56,$E$7:$E$56,0) -> 21

Sheet E .Rüfli
A1: Name
A2: Rüfli Ernst
A3: Gutschein | B3: Coop
A4: Waffe | B4: 90
B5: Sau Stich | N5: Glück | Q5: Auszahlung
B6: Nr. Passe | C6: 1. Schuss | D6: 2. Schuss | E6: Total | F6: Rang | H6: Besten Passen | J6: Besten Einzel | L6: Total Passen und Einzel
B7: 1 | C7: 99 | D7: 95 | E7: =SUM($C7:$D7) -> 194 | F7: =RANK(E7,$E$7:$E$56,0) -> 1 | H7: =LARGE(E7:E56,1) -> 194 | J7: =IF($B$4=90,LARGE(C10:D56,1),IF($B$4="St",LARGE(C11:D56,1),IF($B$4=57,LARGE(C9:D56,1)))) -> 98
B8: 2 | C8: 94 | D8: 92 | E8: =SUM($C8:$D8) -> 186 | F8: =RANK(E8,$E$7:$E$56,0) -> 2 | H8: =LARGE(E7:E56,2) -> 186 | J8: =IF($B$4=90,LARGE(C10:D56,2),IF($B$4="St",LARGE(C11:D56,2),IF($B$4=57,LARGE(C9:D56,2)))) -> 95 | L8: =IF($B$4=57,SUM(H7:H8,J7:J12),IF($B$4=90,SUM(H7:H9,J7:J10),IF($B$4="St",SUM(H7:H10,J7:J8)))) -> 940 | N8: Ansage | O8: 230 | Q8: 1. Schuss | R8: 6
B9: 3 | C9: 89 | D9: 94 | E9: =SUM($C9:$D9) -> 183 | F9: =RANK(E9,$E$7:$E$56,0) -> 3 | H9: =LARGE(E7:E56,3) -> 183 | J9: =IF($B$4=90,LARGE($C$10:$D$56,3),IF($B$4="St",LARGE($C$11:$D$56,3),IF($B$4=57,LARGE($C$9:$D$56,3)))) -> 93 | N9: Geschossen | O9: 255 | Q9: 2. Schuss | R9: 7
B10: 4 | C10: 89 | D10: 90 | E10: =SUM($C10:$D10) -> 179 | F10: =RANK(E10,$E$7:$E$56,0) -> 4 | H10: =LARGE(E7:E56,4) -> 179 | J10: =IF($B$4=90,LARGE(C10:D56,4),IF($B$4="St",LARGE(C11:D56,4),IF($B$4=57,LARGE(C9:D56,4)))) -> 91 | N10: Differenz | O10: =IF(O8>0,IF(O8>O9,O8-O9,O9-O8),"") -> 25 | Q10: 3. Schuss | R10: 9
B11: 5 | C11: 81 | D11: 98 | E11: =SUM($C11:$D11) -> 179 | F11: =RANK(E11,$E$7:$E$56,0) -> 4 | J11: =IF($B$4=90,LARGE(C10:D56,5),IF($B$4="St",LARGE(C11:D56,5),IF($B$4=57,LARGE(C9:D56,5)))) -> 90 | Q11: 4. Schuss | R11: 9
B12: 6 | C12: 93 | D12: 84 | E12: =SUM($C12:$D12) -> 177 | F12: =RANK(E12,$E$7:$E$56,0) -> 6 | J12: =IF($B$4=90,LARGE(C10:D56,6),IF($B$4="St",LARGE(C11:D56,6),IF($B$4=57,LARGE(C9:D56,6)))) -> 90 | Q12: 5. Schuss | R12: 9
B13: 7 | C13: 91 | D13: 85 | E13: =SUM($C13:$D13) -> 176 | F13: =RANK(E13,$E$7:$E$56,0) -> 7 | J13: =IF($B$4=90,LARGE(C11:D57,7),IF($B$4="St",LARGE(C12:D57,7),IF($B$4=57,LARGE(C10:D57,7)))) -> 90 | Q13: 6. Schuss | R13: 8
B14: 8 | C14: 88 | D14: 86 | E14: =SUM($C14:$D14) -> 174 | F14: =RANK(E14,$E$7:$E$56,0) -> 8 | J14: =IF($B$4=90,LARGE(C12:D58,8),IF($B$4="St",LARGE(C13:D58,8),IF($B$4=57,LARGE(C11:D58,8)))) -> 90 | Q14: 7. Schuss | R14: 8
B15: 9 | C15: 90 | D15: 83 | E15: =SUM($C15:$D15) -> 173 | F15: =RANK(E15,$E$7:$E$56,0) -> 9 | J15: =IF($B$4=90,LARGE(C13:D59,9),IF($B$4="St",LARGE(C14:D59,9),IF($B$4=57,LARGE(C12:D59,9)))) -> 88 | Q15: 8. Schuss | R15: 10
B16: 10 | C16: 77 | D16: 95 | E16: =SUM($C16:$D16) -> 172 | F16: =RANK(E16,$E$7:$E$56,0) -> 10 | Q16: 9. Schuss | R16: 6
B17: 11 | C17: 80 | D17: 90 | E17: =SUM($C17:$D17) -> 170 | F17: =RANK(E17,$E$7:$E$56,0) -> 11 | Q17: 10. Schuss | R17: 8
B18: 12 | C18: 87 | D18: 82 | E18: =SUM($C18:$D18) -> 169 | F18: =RANK(E18,$E$7:$E$56,0) -> 12 | Q18: Total | R18: =SUM(R8:R17) -> 80
B19: 13 | C19: 90 | D19: 78 | E19: =SUM($C19:$D19) -> 168 | F19: =RANK(E19,$E$7:$E$56,0) -> 13
B20: 14 | C20: 84 | D20: 81 | E20: =SUM($C20:$D20) -> 165 | F20: =RANK(E20,$E$7:$E$56,0) -> 14
B21: 15 | C21: 90 | D21: 74 | E21: =SUM($C21:$D21) -> 164 | F21: =RANK(E21,$E$7:$E$56,0) -> 15
B22: 16 | C22: 86 | D22: 78 | E22: =SUM($C22:$D22) -> 164 | F22: =RANK(E22,$E$7:$E$56,0) -> 15
B23: 17 | C23: 80 | D23: 83 | E23: =SUM($C23:$D23) -> 163 | F23: =RANK(E23,$E$7:$E$56,0) -> 17
B24: 18 | C24: 72 | D24: 90 | E24: =SUM($C24:$D24) -> 162 | F24: =RANK(E24,$E$7:$E$56,0) -> 18
B25: 19 | C25: 74 | D25: 85 | E25: =SUM($C25:$D25) -> 159 | F25: =RANK(E25,$E$7:$E$56,0) -> 19
B26: 20 | C26: 72 | D26: 85 | E26: =SUM($C26:$D26) -> 157 | F26: =RANK(E26,$E$7:$E$56,0) -> 20
B27: 21 | C27: 77 | D27: 79 | E27: =SUM($C27:$D27) -> 156 | F27: =RANK(E27,$E$7:$E$56,0) -> 21
B28: 22 | C28: 61 | D28: 89 | E28: =SUM($C28:$D28) -> 150 | F28: =RANK(E28,$E$7:$E$56,0) -> 22
B29: 23 | C29: 82 | D29: 65 | E29: =SUM($C29:$D29) -> 147 | F29: =RANK(E29,$E$7:$E$56,0) -> 23
B30: 24 | C30: 75 | D30: 71 | E30: =SUM($C30:$D30) -> 146 | F30: =RANK(E30,$E$7:$E$56,0) -> 24
B31: 25 | C31: 77 | D31: 68 | E31: =SUM($C31:$D31) -> 145 | F31: =RANK(E31,$E$7:$E$56,0) -> 25
B32: 26 | C32: 83 | D32: 61 | E32: =SUM($C32:$D32) -> 144 | F32: =RANK(E32,$E$7:$E$56,0) -> 26
B33: 27 | C33: 74 | D33: 69 | E33: =SUM($C33:$D33) -> 143 | F33: =RANK(E33,$E$7:$E$56,0) -> 27
B34: 28 | C34: 74 | D34: 64 | E34: =SUM($C34:$D34) -> 138 | F34: =RANK(E34,$E$7:$E$56,0) -> 28
B35: 29 | C35: 80 | D35: 56 | E35: =SUM($C35:$D35) -> 136 | F35: =RANK(E35,$E$7:$E$56,0) -> 29
B36: 30 | C36: 82 | D36: 51 | E36: =SUM($C36:$D36) -> 133 | F36: =RANK(E36,$E$7:$E$56,0) -> 30
B37: 31 | E37: =SUM($C37:$D37) -> 0 | F37: =RANK(E37,$E$7:$E$56,0) -> 31
B38: 32 | E38: =SUM($C38:$D38) -> 0 | F38: =RANK(E38,$E$7:$E$56,0) -> 31
B39: 33 | E39: =SUM($C39:$D39) -> 0 | F39: =RANK(E39,$E$7:$E$56,0) -> 31
B40: 34 | E40: =SUM($C40:$D40) -> 0 | F40: =RANK(E40,$E$7:$E$56,0) -> 31
B41: 35 | E41: =SUM($C41:$D41) -> 0 | F41: =RANK(E41,$E$7:$E$56,0) -> 31
B42: 36 | E42: =SUM($C42:$D42) -> 0 | F42: =RANK(E42,$E$7:$E$56,0) -> 31
B43: 37 | E43: =SUM($C43:$D43) -> 0 | F43: =RANK(E43,$E$7:$E$56,0) -> 31
B44: 38 | E44: =SUM($C44:$D44) -> 0 | F44: =RANK(E44,$E$7:$E$56,0) -> 31
B45: 39 | E45: =SUM($C45:$D45) -> 0 | F45: =RANK(E45,$E$7:$E$56,0) -> 31
B46: 40 | E46: =SUM($C46:$D46) -> 0 | F46: =RANK(E46,$E$7:$E$56,0) -> 31
B47: 41 | E47: =SUM($C47:$D47) -> 0 | F47: =RANK(E47,$E$7:$E$56,0) -> 31
B48: 42 | E48: =SUM($C48:$D48) -> 0 | F48: =RANK(E48,$E$7:$E$56,0) -> 31
B49: 43 | E49: =SUM($C49:$D49) -> 0 | F49: =RANK(E49,$E$7:$E$56,0) -> 31
B50: 44 | E50: =SUM($C50:$D50) -> 0 | F50: =RANK(E50,$E$7:$E$56,0) -> 31
B51: 45 | E51: =SUM($C51:$D51) -> 0 | F51: =RANK(E51,$E$7:$E$56,0) -> 31
B52: 46 | E52: =SUM($C52:$D52) -> 0 | F52: =RANK(E52,$E$7:$E$56,0) -> 31
B53: 47 | E53: =SUM($C53:$D53) -> 0 | F53: =RANK(E53,$E$7:$E$56,0) -> 31
B54: 48 | E54: =SUM($C54:$D54) -> 0 | F54: =RANK(E54,$E$7:$E$56,0) -> 31
B55: 49 | E55: =SUM($C55:$D55) -> 0 | F55: =RANK(E55,$E$7:$E$56,0) -> 31
B56: 50 | E56: =SUM($C56:$D56) -> 0 | F56: =RANK(E56,$E$7:$E$56,0) -> 31

Sheet M. Rüfli
A1: Name
A2: Rüfli Magdalena
A3: Gutschein
A4: Waffe | B4: 90
B5: Sau Stich | N5: Glück | Q5: Auszahlung
B6: Nr. Passe | C6: 1. Schuss | D6: 2. Schuss | E6: Total | F6: Rang | H6: Besten Passen | J6: Besten Einzel | L6: Total Passen und Einzel
B7: 1 | E7: =SUM($C7:$D7) -> 0 | F7: =RANK(E7,$E$7:$E$56,0) -> 1 | H7: =LARGE(E7:E56,1) -> 0 | J7: =IF($B$4=90,LARGE(C10:D56,1),IF($B$4="St",LARGE(C11:D56,1),IF($B$4=57,LARGE(C9:D56,1)))) -> 
B8: 2 | E8: 0 | F8: 1 | H8: =LARGE(E7:E56,2) -> 0 | J8: =IF($B$4=90,LARGE(C10:D56,2),IF($B$4="St",LARGE(C11:D56,2),IF($B$4=57,LARGE(C9:D56,2)))) ->  | L8: =IF($B$4=57,SUM(H7:H8,J7:J12),IF($B$4=90,SUM(H7:H9,J7:J10),IF($B$4="St",SUM(H7:H10,J7:J8)))) ->  | N8: Ansage | Q8: 1. Schuss
B9: 3 | E9: 0 | F9: 1 | H9: =LARGE(E7:E56,3) -> 0 | J9: =IF($B$4=90,LARGE($C$10:$D$56,3),IF($B$4="St",LARGE($C$11:$D$56,3),IF($B$4=57,LARGE($C$9:$D$56,3)))) ->  | N9: Geschossen | Q9: 2. Schuss
B10: 4 | E10: 0 | F10: 1 | H10: =LARGE(E7:E56,4) -> 0 | J10: =IF($B$4=90,LARGE(C10:D56,4),IF($B$4="St",LARGE(C11:D56,4),IF($B$4=57,LARGE(C9:D56,4)))) ->  | N10: Differenz | O10: =IF(O8>0,IF(O8>O9,O8-O9,O9-O8),"") ->  | Q10: 3. Schuss
B11: 5 | E11: 0 | F11: 1 | J11: =IF($B$4=90,LARGE(C10:D56,5),IF($B$4="St",LARGE(C11:D56,5),IF($B$4=57,LARGE(C9:D56,5)))) ->  | Q11: 4. Schuss
B12: 6 | E12: 0 | F12: 1 | J12: =IF($B$4=90,LARGE(C10:D56,6),IF($B$4="St",LARGE(C11:D56,6),IF($B$4=57,LARGE(C9:D56,6)))) ->  | Q12: 5. Schuss
B13: 7 | E13: 0 | F13: 1 | J13: =IF($B$4=90,LARGE(C11:D57,7),IF($B$4="St",LARGE(C12:D57,7),IF($B$4=57,LARGE(C10:D57,7)))) ->  | Q13: 6. Schuss
B14: 8 | E14: 0 | F14: 1 | J14: =IF($B$4=90,LARGE(C12:D58,8),IF($B$4="St",LARGE(C13:D58,8),IF($B$4=57,LARGE(C11:D58,8)))) ->  | Q14: 7. Schuss
B15: 9 | E15: 0 | F15: 1 | J15: =IF($B$4=90,LARGE(C13:D59,9),IF($B$4="St",LARGE(C14:D59,9),IF($B$4=57,LARGE(C12:D59,9)))) ->  | Q15: 8. Schuss
B16: 10 | E16: 0 | F16: 1 | Q16: 9. Schuss
B17: 11 | E17: 0 | F17: 1 | Q17: 10. Schuss
B18: 12 | E18: 0 | F18: 1 | Q18: Total | R18: =SUM(R8:R17) -> 0
B19: 13 | E19: 0 | F19: 1
B20: 14 | E20: 0 | F20: 1
B21: 15 | E21: 0 | F21: 1
B22: 16 | E22: 0 | F22: 1
B23: 17 | E23: 0 | F23: 1
B24: 18 | E24: 0 | F24: 1
B25: 19 | E25: 0 | F25: 1
B26: 20 | E26: 0 | F26: 1
B27: 21 | E27: 0 | F27: 1
B28: 22 | E28: 0 | F28: 1
B29: 23 | E29: 0 | F29: 1
B30: 24 | E30: 0 | F30: 1
B31: 25 | E31: 0 | F31: 1
B32: 26 | E32: 0 | F32: 1
B33: 27 | E33: 0 | F33: 1
B34: 28 | E34: 0 | F34: 1
B35: 29 | E35: 0 | F35: 1
B36: 30 | E36: 0 | F36: 1
B37: 31 | E37: 0 | F37: 1
B38: 32 | E38: 0 | F38: 1
B39: 33 | E39: =SUM($C39:$D39) -> 0 | F39: =RANK(E39,$E$7:$E$56,0) -> 1
B40: 34 | E40: 0 | F40: 1
B41: 35 | E41: 0 | F41: 1
B42: 36 | E42: 0 | F42: 1
B43: 37 | E43: 0 | F43: 1
B44: 38 | E44: 0 | F44: 1
B45: 39 | E45: 0 | F45: 1
B46: 40 | E46: 0 | F46: 1
B47: 41 | E47: 0 | F47: 1
B48: 42 | E48: 0 | F48: 1
B49: 43 | E49: 0 | F49: 1
B50: 44 | E50: 0 | F50: 1
B51: 45 | E51: 0 | F51: 1
B52: 46 | E52: 0 | F52: 1
B53: 47 | E53: 0 | F53: 1
B54: 48 | E54: 0 | F54: 1
B55: 49 | E55: 0 | F55: 1
B56: 50 | E56: 0 | F56: 1

Sheet H.J. Schneider
A1: Name
A2: Schneider Hans-Jörg
A3: Gutschein
A4: Waffe | B4: 57
B5: Sau Stich | N5: Glück | Q5: Auszahlung
B6: Nr. Passe | C6: 1. Schuss | D6: 2. Schuss | E6: Total | F6: Rang | H6: Besten Passen | J6: Besten Einzel | L6: Total Passen und Einzel
B7: 1 | E7: =SUM($C7:$D7) -> 0 | F7: =RANK(E7,$E$7:$E$56,0) -> 1 | H7: =LARGE(E7:E56,1) -> 0 | J7: =IF($B$4=90,LARGE(C10:D56,1),IF($B$4="St",LARGE(C11:D56,1),IF($B$4=57,LARGE(C9:D56,1)))) -> 
B8: 2 | E8: 0 | F8: 1 | H8: =LARGE(E7:E56,2) -> 0 | J8: =IF($B$4=90,LARGE(C10:D56,2),IF($B$4="St",LARGE(C11:D56,2),IF($B$4=57,LARGE(C9:D56,2)))) ->  | L8: =IF($B$4=57,SUM(H7:H8,J7:J12),IF($B$4=90,SUM(H7:H9,J7:J10),IF($B$4="St",SUM(H7:H10,J7:J8)))) ->  | N8: Ansage | Q8: 1. Schuss
B9: 3 | E9: 0 | F9: 1 | H9: =LARGE(E7:E56,3) -> 0 | J9: =IF($B$4=90,LARGE($C$10:$D$56,3),IF($B$4="St",LARGE($C$11:$D$56,3),IF($B$4=57,LARGE($C$9:$D$56,3)))) ->  | N9: Geschossen | Q9: 2. Schuss
B10: 4 | E10: 0 | F10: 1 | H10: =LARGE(E7:E56,4) -> 0 | J10: =IF($B$4=90,LARGE(C10:D56,4),IF($B$4="St",LARGE(C11:D56,4),IF($B$4=57,LARGE(C9:D56,4)))) ->  | N10: Differenz | O10: =IF(O8>0,IF(O8>O9,O8-O9,O9-O8),"") ->  | Q10: 3. Schuss
B11: 5 | E11: 0 | F11: 1 | J11: =IF($B$4=90,LARGE(C10:D56,5),IF($B$4="St",LARGE(C11:D56,5),IF($B$4=57,LARGE(C9:D56,5)))) ->  | Q11: 4. Schuss
B12: 6 | E12: 0 | F12: 1 | J12: =IF($B$4=90,LARGE(C10:D56,6),IF($B$4="St",LARGE(C11:D56,6),IF($B$4=57,LARGE(C9:D56,6)))) ->  | Q12: 5. Schuss
B13: 7 | E13: 0 | F13: 1 | J13: =IF($B$4=90,LARGE(C11:D57,7),IF($B$4="St",LARGE(C12:D57,7),IF($B$4=57,LARGE(C10:D57,7)))) ->  | Q13: 6. Schuss
B14: 8 | E14: 0 | F14: 1 | J14: =IF($B$4=90,LARGE(C12:D58,8),IF($B$4="St",LARGE(C13:D58,8),IF($B$4=57,LARGE(C11:D58,8)))) ->  | Q14: 7. Schuss
B15: 9 | E15: 0 | F15: 1 | J15: =IF($B$4=90,LARGE(C13:D59,9),IF($B$4="St",LARGE(C14:D59,9),IF($B$4=57,LARGE(C12:D59,9)))) ->  | Q15: 8. Schuss
B16: 10 | E16: 0 | F16: 1 | Q16: 9. Schuss
B17: 11 | E17: 0 | F17: 1 | Q17: 10. Schuss
B18: 12 | E18: 0 | F18: 1 | Q18: Total | R18: =SUM(R8:R17) -> 0
B19: 13 | E19: 0 | F19: 1
B20: 14 | E20: 0 | F20: 1
B21: 15 | E21: 0 | F21: 1
B22: 16 | E22: 0 | F22: 1
B23: 17 | E23: 0 | F23: 1
B24: 18 | E24: 0 | F24: 1
B25: 19 | E25: 0 | F25: 1
B26: 20 | E26: 0 | F26: 1
B27: 21 | E27: 0 | F27: 1
B28: 22 | E28: 0 | F28: 1
B29: 23 | E29: 0 | F29: 1
B30: 24 | E30: 0 | F30: 1
B31: 25 | E31: 0 | F31: 1
B32: 26 | E32: 0 | F32: 1
B33: 27 | E33: 0 | F33: 1
B34: 28 | E34: 0 | F34: 1
B35: 29 | E35: 0 | F35: 1
B36: 30 | E36: 0 | F36: 1
B37: 31 | E37: 0 | F37: 1
B38: 32 | E38: 0 | F38: 1
B39: 33 | E39: =SUM($C39:$D39) -> 0 | F39: =RANK(E39,$E$7:$E$56,0) -> 1
B40: 34 | E40: 0 | F40: 1
B41: 35 | E41: 0 | F41: 1
B42: 36 | E42: 0 | F42: 1
B43: 37 | E43: 0 | F43: 1
B44: 38 | E44: 0 | F44: 1
B45: 39 | E45: 0 | F45: 1
B46: 40 | E46: 0 | F46: 1
B47: 41 | E47: 0 | F47: 1
B48: 42 | E48: 0 | F48: 1
B49: 43 | E49: 0 | F49: 1
B50: 44 | E50: 0 | F50: 1
B51: 45 | E51: 0 | F51: 1
B52: 46 | E52: 0 | F52: 1
B53: 47 | E53: 0 | F53: 1
B54: 48 | E54: 0 | F54: 1
B55: 49 | E55: 0 | F55: 1
B56: 50 | E56: 0 | F56: 1

Sheet H. Stuber
A1: Name
A2: Stuber Hans
A3: Gutschein | B3: Coop
A4: Waffe | B4: 90
B5: Sau Stich | N5: Glück | Q5: Auszahlung
B6: Nr. Passe | C6: 1. Schuss | D6: 2. Schuss | E6: Total | F6: Rang | H6: Besten Passen | J6: Besten Einzel | L6: Total Passen und Einzel
B7: 1 | C7: 91 | D7: 94 | E7: =SUM($C7:$D7) -> 185 | F7: =RANK(E7,$E$7:$E$56,0) -> 1 | H7: =LARGE(E7:E56,1) -> 185 | J7: =IF($B$4=90,LARGE(C10:D56,1),IF($B$4="St",LARGE(C11:D56,1),IF($B$4=57,LARGE(C9:D56,1)))) -> 93
B8: 2 | C8: 95 | D8: 90 | E8: =SUM($C8:$D8) -> 185 | F8: =RANK(E8,$E$7:$E$56,0) -> 1 | H8: =LARGE(E7:E56,2) -> 185 | J8: =IF($B$4=90,LARGE(C10:D56,2),IF($B$4="St",LARGE(C11:D56,2),IF($B$4=57,LARGE(C9:D56,2)))) -> 93 | L8: =IF($B$4=57,SUM(H7:H8,J7:J12),IF($B$4=90,SUM(H7:H9,J7:J10),IF($B$4="St",SUM(H7:H10,J7:J8)))) -> 923 | N8: Ansage | O8: 248 | Q8: 1. Schuss | R8: 9
B9: 3 | C9: 96 | D9: 87 | E9: =SUM($C9:$D9) -> 183 | F9: =RANK(E9,$E$7:$E$56,0) -> 3 | H9: =LARGE(E7:E56,3) -> 183 | J9: =IF($B$4=90,LARGE($C$10:$D$56,3),IF($B$4="St",LARGE($C$11:$D$56,3),IF($B$4=57,LARGE($C$9:$D$56,3)))) -> 92 | N9: Geschossen | O9: 220 | Q9: 2. Schuss | R9: 6
B10: 4 | C10: 91 | D10: 87 | E10: =SUM($C10:$D10) -> 178 | F10: =RANK(E10,$E$7:$E$56,0) -> 4 | H10: =LARGE(E7:E56,4) -> 178 | J10: =IF($B$4=90,LARGE(C10:D56,4),IF($B$4="St",LARGE(C11:D56,4),IF($B$4=57,LARGE(C9:D56,4)))) -> 92 | N10: Differenz | O10: =IF(O8>0,IF(O8>O9,O8-O9,O9-O8),"") -> 28 | Q10: 3. Schuss | R10: 10
B11: 5 | C11: 92 | D11: 86 | E11: =SUM($C11:$D11) -> 178 | F11: =RANK(E11,$E$7:$E$56,0) -> 4 | J11: =IF($B$4=90,LARGE(C10:D56,5),IF($B$4="St",LARGE(C11:D56,5),IF($B$4=57,LARGE(C9:D56,5)))) -> 91 | Q11: 4. Schuss | R11: 10
B12: 6 | C12: 93 | D12: 82 | E12: =SUM($C12:$D12) -> 175 | F12: =RANK(E12,$E$7:$E$56,0) -> 6 | J12: =IF($B$4=90,LARGE(C10:D56,6),IF($B$4="St",LARGE(C11:D56,6),IF($B$4=57,LARGE(C9:D56,6)))) -> 90 | Q12: 5. Schuss | R12: 8
B13: 7 | C13: 83 | D13: 92 | E13: =SUM($C13:$D13) -> 175 | F13: =RANK(E13,$E$7:$E$56,0) -> 6 | J13: =IF($B$4=90,LARGE(C11:D57,7),IF($B$4="St",LARGE(C12:D57,7),IF($B$4=57,LARGE(C10:D57,7)))) -> 90 | Q13: 6. Schuss | R13: 8
B14: 8 | C14: 86 | D14: 89 | E14: =SUM($C14:$D14) -> 175 | F14: =RANK(E14,$E$7:$E$56,0) -> 6 | J14: =IF($B$4=90,LARGE(C12:D58,8),IF($B$4="St",LARGE(C13:D58,8),IF($B$4=57,LARGE(C11:D58,8)))) -> 89 | Q14: 7. Schuss | R14: 9
B15: 9 | C15: 87 | D15: 87 | E15: =SUM($C15:$D15) -> 174 | F15: =RANK(E15,$E$7:$E$56,0) -> 9 | J15: =IF($B$4=90,LARGE(C13:D59,9),IF($B$4="St",LARGE(C14:D59,9),IF($B$4=57,LARGE(C12:D59,9)))) -> 87 | Q15: 8. Schuss | R15: 9
B16: 10 | C16: 90 | D16: 82 | E16: =SUM($C16:$D16) -> 172 | F16: =RANK(E16,$E$7:$E$56,0) -> 10 | Q16: 9. Schuss | R16: 8
B17: 11 | C17: 79 | D17: 90 | E17: =SUM($C17:$D17) -> 169 | F17: =RANK(E17,$E$7:$E$56,0) -> 11 | Q17: 10. Schuss | R17: 9
B18: 12 | C18: 78 | D18: 88 | E18: =SUM($C18:$D18) -> 166 | F18: =RANK(E18,$E$7:$E$56,0) -> 12 | Q18: Total | R18: =SUM(R8:R17) -> 86
B19: 13 | C19: 83 | D19: 83 | E19: =SUM($C19:$D19) -> 166 | F19: =RANK(E19,$E$7:$E$56,0) -> 12
B20: 14 | C20: 75 | D20: 90 | E20: =SUM($C20:$D20) -> 165 | F20: =RANK(E20,$E$7:$E$56,0) -> 14
B21: 15 | C21: 79 | D21: 80 | E21: =SUM($C21:$D21) -> 159 | F21: =RANK(E21,$E$7:$E$56,0) -> 15
B22: 16 | C22: 76 | D22: 79 | E22: =SUM($C22:$D22) -> 155 | F22: =RANK(E22,$E$7:$E$56,0) -> 16
B23: 17 | C23: 86 | D23: 68 | E23: =SUM($C23:$D23) -> 154 | F23: =RANK(E23,$E$7:$E$56,0) -> 17
B24: 18 | C24: 79 | D24: 75 | E24: =SUM($C24:$D24) -> 154 | F24: =RANK(E24,$E$7:$E$56,0) -> 17
B25: 19 | C25: 60 | D25: 89 | E25: =SUM($C25:$D25) -> 149 | F25: =RANK(E25,$E$7:$E$56,0) -> 19
B26: 20 | C26: 61 | D26: 81 | E26: =SUM($C26:$D26) -> 142 | F26: =RANK(E26,$E$7:$E$56,0) -> 20
B27: 21 | C27: 87 | D27: 54 | E27: =SUM($C27:$D27) -> 141 | F27: =RANK(E27,$E$7:$E$56,0) -> 21
B28: 22 | C28: 60 | D28: 75 | E28: =SUM($C28:$D28) -> 135 | F28: =RANK(E28,$E$7:$E$56,0) -> 22
B29: 23 | C29: 72 | D29: 59 | E29: =SUM($C29:$D29) -> 131 | F29: =RANK(E29,$E$7:$E$56,0) -> 23
B30: 24 | C30: 61 | D30: 61 | E30: =SUM($C30:$D30) -> 122 | F30: =RANK(E30,$E$7:$E$56,0) -> 24
B31: 25 | C31: 22 | D31: 93 | E31: =SUM($C31:$D31) -> 115 | F31: =RANK(E31,$E$7:$E$56,0) -> 25
B32: 26 | E32: =SUM($C32:$D32) -> 0 | F32: =RANK(E32,$E$7:$E$56,0) -> 26
B33: 27 | E33: =SUM($C33:$D33) -> 0 | F33: =RANK(E33,$E$7:$E$56,0) -> 26
B34: 28 | E34: =SUM($C34:$D34) -> 0 | F34: =RANK(E34,$E$7:$E$56,0) -> 26
B35: 29 | E35: =SUM($C35:$D35) -> 0 | F35: =RANK(E35,$E$7:$E$56,0) -> 26
B36: 30 | E36: =SUM($C36:$D36) -> 0 | F36: =RANK(E36,$E$7:$E$56,0) -> 26
B37: 31 | E37: =SUM($C37:$D37) -> 0 | F37: =RANK(E37,$E$7:$E$56,0) -> 26
B38: 32 | E38: =SUM($C38:$D38) -> 0 | F38: =RANK(E38,$E$7:$E$56,0) -> 26
B39: 33 | E39: =SUM($C39:$D39) -> 0 | F39: =RANK(E39,$E$7:$E$56,0) -> 26
B40: 34 | E40: =SUM($C40:$D40) -> 0 | F40: =RANK(E40,$E$7:$E$56,0) -> 26
B41: 35 | E41: =SUM($C41:$D41) -> 0 | F41: =RANK(E41,$E$7:$E$56,0) -> 26
B42: 36 | E42: =SUM($C42:$D42) -> 0 | F42: =RANK(E42,$E$7:$E$56,0) -> 26
B43: 37 | E43: =SUM($C43:$D43) -> 0 | F43: =RANK(E43,$E$7:$E$56,0) -> 26
B44: 38 | E44: =SUM($C44:$D44) -> 0 | F44: =RANK(E44,$E$7:$E$56,0) -> 26
B45: 39 | E45: =SUM($C45:$D45) -> 0 | F45: =RANK(E45,$E$7:$E$56,0) -> 26
B46: 40 | E46: =SUM($C46:$D46) -> 0 | F46: =RANK(E46,$E$7:$E$56,0) -> 26
B47: 41 | E47: =SUM($C47:$D47) -> 0 | F47: =RANK(E47,$E$7:$E$56,0) -> 26
B48: 42 | E48: =SUM($C48:$D48) -> 0 | F48: =RANK(E48,$E$7:$E$56,0) -> 26
B49: 43 | E49: =SUM($C49:$D49) -> 0 | F49: =RANK(E49,$E$7:$E$56,0) -> 26
B50: 44 | E50: =SUM($C50:$D50) -> 0 | F50: =RANK(E50,$E$7:$E$56,0) -> 26
B51: 45 | E51: =SUM($C51:$D51) -> 0 | F51: =RANK(E51,$E$7:$E$56,0) -> 26
B52: 46 | E52: =SUM($C52:$D52) -> 0 | F52: =RANK(E52,$E$7:$E$56,0) -> 26
B53: 47 | E53: =SUM($C53:$D53) -> 0 | F53: =RANK(E53,$E$7:$E$56,0) -> 26
B54: 48 | E54: =SUM($C54:$D54) -> 0 | F54: =RANK(E54,$E$7:$E$56,0) -> 26
B55: 49 | E55: =SUM($C55:$D55) -> 0 | F55: =RANK(E55,$E$7:$E$56,0) -> 26
B56: 50 | E56: =SUM($C56:$D56) -> 0 | F56: =RANK(E56,$E$7:$E$56,0) -> 26

Sheet R. Eschmann
A1: Name
A2: Eschmann Roger
A3: Gutschein | B3: Migros
A4: Waffe | B4: 90
B5: Sau Stich | N5: Glück | Q5: Auszahlung
B6: Nr. Passe | C6: 1. Schuss | D6: 2. Schuss | E6: Total | F6: Rang | H6: Besten Passen | J6: Besten Einzel | L6: Total Passen und Einzel
B7: 1 | C7: 96 | D7: 96 | E7: =SUM($C7:$D7) -> 192 | F7: =RANK(E7,$E$7:$E$56,0) -> 1 | H7: =LARGE(E7:E56,1) -> 192 | J7: =IF($B$4=90,LARGE(C10:D56,1),IF($B$4="St",LARGE(C11:D56,1),IF($B$4=57,LARGE(C9:D56,1)))) -> 100
B8: 2 | C8: 100 | D8: 91 | E8: =SUM($C8:$D8) -> 191 | F8: =RANK(E8,$E$7:$E$56,0) -> 2 | H8: =LARGE(E7:E56,2) -> 191 | J8: =IF($B$4=90,LARGE(C10:D56,2),IF($B$4="St",LARGE(C11:D56,2),IF($B$4=57,LARGE(C9:D56,2)))) -> 99 | L8: =IF($B$4=57,SUM(H7:H8,J7:J12),IF($B$4=90,SUM(H7:H9,J7:J10),IF($B$4="St",SUM(H7:H10,J7:J8)))) -> 964 | N8: Ansage | O8: 236 | Q8: 1. Schuss | R8: 7
B9: 3 | C9: 93 | D9: 93 | E9: =SUM($C9:$D9) -> 186 | F9: =RANK(E9,$E$7:$E$56,0) -> 3 | H9: =LARGE(E7:E56,3) -> 186 | J9: =IF($B$4=90,LARGE($C$10:$D$56,3),IF($B$4="St",LARGE($C$11:$D$56,3),IF($B$4=57,LARGE($C$9:$D$56,3)))) -> 98 | N9: Geschossen | O9: 254 | Q9: 2. Schuss | R9: 8
B10: 4 | C10: 93 | D10: 93 | E10: =SUM($C10:$D10) -> 186 | F10: =RANK(E10,$E$7:$E$56,0) -> 3 | H10: =LARGE(E7:E56,4) -> 186 | J10: =IF($B$4=90,LARGE(C10:D56,4),IF($B$4="St",LARGE(C11:D56,4),IF($B$4=57,LARGE(C9:D56,4)))) -> 98 | N10: Differenz | O10: =IF(O8>0,IF(O8>O9,O8-O9,O9-O8),"") -> 18 | Q10: 3. Schuss | R10: 9
B11: 5 | C11: 96 | D11: 90 | E11: =SUM($C11:$D11) -> 186 | F11: =RANK(E11,$E$7:$E$56,0) -> 3 | J11: =IF($B$4=90,LARGE(C10:D56,5),IF($B$4="St",LARGE(C11:D56,5),IF($B$4=57,LARGE(C9:D56,5)))) -> 98 | Q11: 4. Schuss | R11: 10
B12: 6 | C12: 89 | D12: 96 | E12: =SUM($C12:$D12) -> 185 | F12: =RANK(E12,$E$7:$E$56,0) -> 6 | J12: =IF($B$4=90,LARGE(C10:D56,6),IF($B$4="St",LARGE(C11:D56,6),IF($B$4=57,LARGE(C9:D56,6)))) -> 98 | Q12: 5. Schuss | R12: 10
B13: 7 | C13: 92 | D13: 92 | E13: =SUM($C13:$D13) -> 184 | F13: =RANK(E13,$E$7:$E$56,0) -> 7 | J13: =IF($B$4=90,LARGE(C11:D57,7),IF($B$4="St",LARGE(C12:D57,7),IF($B$4=57,LARGE(C10:D57,7)))) -> 96 | Q13: 6. Schuss | R13: 9
B14: 8 | C14: 92 | D14: 91 | E14: =SUM($C14:$D14) -> 183 | F14: =RANK(E14,$E$7:$E$56,0) -> 8 | J14: =IF($B$4=90,LARGE(C12:D58,8),IF($B$4="St",LARGE(C13:D58,8),IF($B$4=57,LARGE(C11:D58,8)))) -> 96 | Q14: 7. Schuss | R14: 9
B15: 9 | C15: 84 | D15: 98 | E15: =SUM($C15:$D15) -> 182 | F15: =RANK(E15,$E$7:$E$56,0) -> 9 | J15: =IF($B$4=90,LARGE(C13:D59,9),IF($B$4="St",LARGE(C14:D59,9),IF($B$4=57,LARGE(C12:D59,9)))) -> 95 | Q15: 8. Schuss | R15: 8
B16: 10 | C16: 92 | D16: 89 | E16: =SUM($C16:$D16) -> 181 | F16: =RANK(E16,$E$7:$E$56,0) -> 10 | Q16: 9. Schuss | R16: 8
B17: 11 | C17: 98 | D17: 82 | E17: =SUM($C17:$D17) -> 180 | F17: =RANK(E17,$E$7:$E$56,0) -> 11 | Q17: 10. Schuss | R17: 8
B18: 12 | C18: 98 | D18: 81 | E18: =SUM($C18:$D18) -> 179 | F18: =RANK(E18,$E$7:$E$56,0) -> 12 | Q18: Total | R18: =SUM(R8:R17) -> 86
B19: 13 | C19: 90 | D19: 87 | E19: =SUM($C19:$D19) -> 177 | F19: =RANK(E19,$E$7:$E$56,0) -> 13
B20: 14 | C20: 89 | D20: 86 | E20: =SUM($C20:$D20) -> 175 | F20: =RANK(E20,$E$7:$E$56,0) -> 14
B21: 15 | C21: 83 | D21: 91 | E21: =SUM($C21:$D21) -> 174 | F21: =RANK(E21,$E$7:$E$56,0) -> 15
B22: 16 | C22: 86 | D22: 87 | E22: =SUM($C22:$D22) -> 173 | F22: =RANK(E22,$E$7:$E$56,0) -> 16
B23: 17 | C23: 98 | D23: 73 | E23: =SUM($C23:$D23) -> 171 | F23: =RANK(E23,$E$7:$E$56,0) -> 17
B24: 18 | C24: 86 | D24: 85 | E24: =SUM($C24:$D24) -> 171 | F24: =RANK(E24,$E$7:$E$56,0) -> 17
B25: 19 | C25: 96 | D25: 73 | E25: =SUM($C25:$D25) -> 169 | F25: =RANK(E25,$E$7:$E$56,0) -> 19
B26: 20 | C26: 83 | D26: 86 | E26: =SUM($C26:$D26) -> 169 | F26: =RANK(E26,$E$7:$E$56,0) -> 19
B27: 21 | C27: 95 | D27: 73 | E27: =SUM($C27:$D27) -> 168 | F27: =RANK(E27,$E$7:$E$56,0) -> 21
B28: 22 | C28: 95 | D28: 72 | E28: =SUM($C28:$D28) -> 167 | F28: =RANK(E28,$E$7:$E$56,0) -> 22
B29: 23 | C29: 84 | D29: 83 | E29: =SUM($C29:$D29) -> 167 | F29: =RANK(E29,$E$7:$E$56,0) -> 22
B30: 24 | C30: 81 | D30: 84 | E30: =SUM($C30:$D30) -> 165 | F30: =RANK(E30,$E$7:$E$56,0) -> 24
B31: 25 | C31: 79 | D31: 85 | E31: =SUM($C31:$D31) -> 164 | F31: =RANK(E31,$E$7:$E$56,0) -> 25
B32: 26 | C32: 78 | D32: 86 | E32: =SUM($C32:$D32) -> 164 | F32: =RANK(E32,$E$7:$E$56,0) -> 25
B33: 27 | C33: 84 | D33: 79 | E33: =SUM($C33:$D33) -> 163 | F33: =RANK(E33,$E$7:$E$56,0) -> 27
B34: 28 | C34: 70 | D34: 92 | E34: =SUM($C34:$D34) -> 162 | F34: =RANK(E34,$E$7:$E$56,0) -> 28
B35: 29 | C35: 90 | D35: 72 | E35: =SUM($C35:$D35) -> 162 | F35: =RANK(E35,$E$7:$E$56,0) -> 28
B36: 30 | C36: 61 | D36: 100 | E36: =SUM($C36:$D36) -> 161 | F36: =RANK(E36,$E$7:$E$56,0) -> 30
B37: 31 | C37: 88 | D37: 73 | E37: =SUM($C37:$D37) -> 161 | F37: =RANK(E37,$E$7:$E$56,0) -> 30
B38: 32 | C38: 75 | D38: 85 | E38: =SUM($C38:$D38) -> 160 | F38: =RANK(E38,$E$7:$E$56,0) -> 32
B39: 33 | C39: 88 | D39: 72 | E39: =SUM($C39:$D39) -> 160 | F39: =RANK(E39,$E$7:$E$56,0) -> 32
B40: 34 | C40: 78 | D40: 81 | E40: =SUM($C40:$D40) -> 159 | F40: =RANK(E40,$E$7:$E$56,0) -> 34
B41: 35 | C41: 74 | D41: 81 | E41: =SUM($C41:$D41) -> 155 | F41: =RANK(E41,$E$7:$E$56,0) -> 35
B42: 36 | C42: 78 | D42: 77 | E42: =SUM($C42:$D42) -> 155 | F42: =RANK(E42,$E$7:$E$56,0) -> 35
B43: 37 | C43: 55 | D43: 99 | E43: =SUM($C43:$D43) -> 154 | F43: =RANK(E43,$E$7:$E$56,0) -> 37
B44: 38 | C44: 76 | D44: 78 | E44: =SUM($C44:$D44) -> 154 | F44: =RANK(E44,$E$7:$E$56,0) -> 37
B45: 39 | C45: 89 | D45: 63 | E45: =SUM($C45:$D45) -> 152 | F45: =RANK(E45,$E$7:$E$56,0) -> 39
B46: 40 | C46: 80 | D46: 72 | E46: =SUM($C46:$D46) -> 152 | F46: =RANK(E46,$E$7:$E$56,0) -> 39
B47: 41 | C47: 67 | D47: 84 | E47: =SUM($C47:$D47) -> 151 | F47: =RANK(E47,$E$7:$E$56,0) -> 41
B48: 42 | C48: 77 | D48: 72 | E48: =SUM($C48:$D48) -> 149 | F48: =RANK(E48,$E$7:$E$56,0) -> 42
B49: 43 | C49: 82 | D49: 65 | E49: =SUM($C49:$D49) -> 147 | F49: =RANK(E49,$E$7:$E$56,0) -> 43
B50: 44 | C50: 80 | D50: 65 | E50: =SUM($C50:$D50) -> 145 | F50: =RANK(E50,$E$7:$E$56,0) -> 44
B51: 45 | C51: 68 | D51: 77 | E51: =SUM($C51:$D51) -> 145 | F51: =RANK(E51,$E$7:$E$56,0) -> 44
B52: 46 | C52: 89 | D52: 53 | E52: =SUM($C52:$D52) -> 142 | F52: =RANK(E52,$E$7:$E$56,0) -> 46
B53: 47 | C53: 68 | D53: 73 | E53: =SUM($C53:$D53) -> 141 | F53: =RANK(E53,$E$7:$E$56,0) -> 47
B54: 48 | C54: 74 | D54: 56 | E54: =SUM($C54:$D54) -> 130 | F54: =RANK(E54,$E$7:$E$56,0) -> 48
B55: 49 | C55: 71 | D55: 53 | E55: =SUM($C55:$D55) -> 124 | F55: =RANK(E55,$E$7:$E$56,0) -> 49
B56: 50 | C56: 5 | D56: 92 | E56: =SUM($C56:$D56) -> 97 | F56: =RANK(E56,$E$7:$E$56,0) -> 50

Sheet S. Morello
A1: Name
A2: Morello Sandro
A3: Gutschein | B3: Migros
A4: Waffe | B4: St
B5: Sau Stich | N5: Glück | Q5: Auszahlung
B6: Nr. Passe | C6: 1. Schuss | D6: 2. Schuss | E6: Total | F6: Rang | H6: Besten Passen | J6: Besten Einzel | L6: Total Passen und Einzel
B7: 1 | C7: 97 | D7: 98 | E7: =SUM($C7:$D7) -> 195 | F7: =RANK(E7,$E$7:$E$56,0) -> 1 | H7: =LARGE(E7:E56,1) -> 195 | J7: =IF($B$4=90,LARGE(C10:D56,1),IF($B$4="St",LARGE(C11:D56,1),IF($B$4=57,LARGE(C9:D56,1)))) -> 100
B8: 2 | C8: 96 | D8: 96 | E8: =SUM($C8:$D8) -> 192 | F8: =RANK(E8,$E$7:$E$56,0) -> 2 | H8: =LARGE(E7:E56,2) -> 192 | J8: =IF($B$4=90,LARGE(C10:D56,2),IF($B$4="St",LARGE(C11:D56,2),IF($B$4=57,LARGE(C9:D56,2)))) -> 100 | L8: =IF($B$4=57,SUM(H7:H8,J7:J12),IF($B$4=90,SUM(H7:H9,J7:J10),IF($B$4="St",SUM(H7:H10,J7:J8)))) -> 963 | N8: Ansage | O8: 278 | Q8: 1. Schuss | R8: 8
B9: 3 | C9: 98 | D9: 91 | E9: =SUM($C9:$D9) -> 189 | F9: =RANK(E9,$E$7:$E$56,0) -> 3 | H9: =LARGE(E7:E56,3) -> 189 | J9: =IF($B$4=90,LARGE($C$10:$D$56,3),IF($B$4="St",LARGE($C$11:$D$56,3),IF($B$4=57,LARGE($C$9:$D$56,3)))) -> 99 | N9: Geschossen | O9: 259 | Q9: 2. Schuss | R9: 10
B10: 4 | C10: 88 | D10: 99 | E10: =SUM($C10:$D10) -> 187 | F10: =RANK(E10,$E$7:$E$56,0) -> 4 | H10: =LARGE(E7:E56,4) -> 187 | J10: =IF($B$4=90,LARGE(C10:D56,4),IF($B$4="St",LARGE(C11:D56,4),IF($B$4=57,LARGE(C9:D56,4)))) -> 98 | N10: Differenz | O10: =IF(O8>0,IF(O8>O9,O8-O9,O9-O8),"") -> 19 | Q10: 3. Schuss | R10: 10
B11: 5 | C11: 88 | D11: 98 | E11: =SUM($C11:$D11) -> 186 | F11: =RANK(E11,$E$7:$E$56,0) -> 5 | J11: =IF($B$4=90,LARGE(C10:D56,5),IF($B$4="St",LARGE(C11:D56,5),IF($B$4=57,LARGE(C9:D56,5)))) -> 96 | Q11: 4. Schuss | R11: 10
B12: 6 | C12: 90 | D12: 96 | E12: =SUM($C12:$D12) -> 186 | F12: =RANK(E12,$E$7:$E$56,0) -> 5 | J12: =IF($B$4=90,LARGE(C10:D56,6),IF($B$4="St",LARGE(C11:D56,6),IF($B$4=57,LARGE(C9:D56,6)))) -> 96 | Q12: 5. Schuss | R12: 7
B13: 7 | C13: 85 | D13: 100 | E13: =SUM($C13:$D13) -> 185 | F13: =RANK(E13,$E$7:$E$56,0) -> 7 | J13: =IF($B$4=90,LARGE(C11:D57,7),IF($B$4="St",LARGE(C12:D57,7),IF($B$4=57,LARGE(C10:D57,7)))) -> 94 | Q13: 6. Schuss | R13: 9
B14: 8 | C14: 91 | D14: 94 | E14: =SUM($C14:$D14) -> 185 | F14: =RANK(E14,$E$7:$E$56,0) -> 7 | J14: =IF($B$4=90,LARGE(C12:D58,8),IF($B$4="St",LARGE(C13:D58,8),IF($B$4=57,LARGE(C11:D58,8)))) -> 94 | Q14: 7. Schuss | R14: 10
B15: 9 | C15: 92 | D15: 91 | E15: =SUM($C15:$D15) -> 183 | F15: =RANK(E15,$E$7:$E$56,0) -> 9 | J15: =IF($B$4=90,LARGE(C13:D59,9),IF($B$4="St",LARGE(C14:D59,9),IF($B$4=57,LARGE(C12:D59,9)))) -> 93 | Q15: 8. Schuss | R15: 9
B16: 10 | C16: 94 | D16: 88 | E16: =SUM($C16:$D16) -> 182 | F16: =RANK(E16,$E$7:$E$56,0) -> 10 | Q16: 9. Schuss | R16: 10
B17: 11 | C17: 88 | D17: 94 | E17: =SUM($C17:$D17) -> 182 | F17: =RANK(E17,$E$7:$E$56,0) -> 10 | Q17: 10. Schuss | R17: 10
B18: 12 | C18: 81 | D18: 100 | E18: =SUM($C18:$D18) -> 181 | F18: =RANK(E18,$E$7:$E$56,0) -> 12 | Q18: Total | R18: =SUM(R8:R17) -> 93
B19: 13 | C19: 93 | D19: 88 | E19: =SUM($C19:$D19) -> 181 | F19: =RANK(E19,$E$7:$E$56,0) -> 12
B20: 14 | C20: 86 | D20: 93 | E20: =SUM($C20:$D20) -> 179 | F20: =RANK(E20,$E$7:$E$56,0) -> 14
B21: 15 | C21: 87 | D21: 92 | E21: =SUM($C21:$D21) -> 179 | F21: =RANK(E21,$E$7:$E$56,0) -> 14
B22: 16 | C22: 84 | D22: 94 | E22: =SUM($C22:$D22) -> 178 | F22: =RANK(E22,$E$7:$E$56,0) -> 16
B23: 17 | C23: 88 | D23: 90 | E23: =SUM($C23:$D23) -> 178 | F23: =RANK(E23,$E$7:$E$56,0) -> 16
B24: 18 | C24: 80 | D24: 96 | E24: =SUM($C24:$D24) -> 176 | F24: =RANK(E24,$E$7:$E$56,0) -> 18
B25: 19 | C25: 77 | D25: 99 | E25: =SUM($C25:$D25) -> 176 | F25: =RANK(E25,$E$7:$E$56,0) -> 18
B26: 20 | C26: 94 | D26: 81 | E26: =SUM($C26:$D26) -> 175 | F26: =RANK(E26,$E$7:$E$56,0) -> 20
B27: 21 | C27: 86 | D27: 88 | E27: =SUM($C27:$D27) -> 174 | F27: =RANK(E27,$E$7:$E$56,0) -> 21
B28: 22 | C28: 84 | D28: 90 | E28: =SUM($C28:$D28) -> 174 | F28: =RANK(E28,$E$7:$E$56,0) -> 21
B29: 23 | C29: 89 | D29: 84 | E29: =SUM($C29:$D29) -> 173 | F29: =RANK(E29,$E$7:$E$56,0) -> 23
B30: 24 | C30: 88 | D30: 84 | E30: =SUM($C30:$D30) -> 172 | F30: =RANK(E30,$E$7:$E$56,0) -> 24
B31: 25 | C31: 86 | D31: 86 | E31: =SUM($C31:$D31) -> 172 | F31: =RANK(E31,$E$7:$E$56,0) -> 24
B32: 26 | C32: 91 | D32: 81 | E32: =SUM($C32:$D32) -> 172 | F32: =RANK(E32,$E$7:$E$56,0) -> 24
B33: 27 | C33: 80 | D33: 89 | E33: =SUM($C33:$D33) -> 169 | F33: =RANK(E33,$E$7:$E$56,0) -> 27
B34: 28 | C34: 87 | D34: 82 | E34: =SUM($C34:$D34) -> 169 | F34: =RANK(E34,$E$7:$E$56,0) -> 27
B35: 29 | C35: 79 | D35: 89 | E35: =SUM($C35:$D35) -> 168 | F35: =RANK(E35,$E$7:$E$56,0) -> 29
B36: 30 | C36: 84 | D36: 84 | E36: =SUM($C36:$D36) -> 168 | F36: =RANK(E36,$E$7:$E$56,0) -> 29
B37: 31 | C37: 78 | D37: 89 | E37: =SUM($C37:$D37) -> 167 | F37: =RANK(E37,$E$7:$E$56,0) -> 31
B38: 32 | C38: 84 | D38: 83 | E38: =SUM($C38:$D38) -> 167 | F38: =RANK(E38,$E$7:$E$56,0) -> 31
B39: 33 | C39: 88 | D39: 78 | E39: =SUM($C39:$D39) -> 166 | F39: =RANK(E39,$E$7:$E$56,0) -> 33
B40: 34 | C40: 86 | D40: 78 | E40: =SUM($C40:$D40) -> 164 | F40: =RANK(E40,$E$7:$E$56,0) -> 34
B41: 35 | C41: 71 | D41: 92 | E41: =SUM($C41:$D41) -> 163 | F41: =RANK(E41,$E$7:$E$56,0) -> 35
B42: 36 | C42: 89 | D42: 73 | E42: =SUM($C42:$D42) -> 162 | F42: =RANK(E42,$E$7:$E$56,0) -> 36
B43: 37 | C43: 82 | D43: 79 | E43: =SUM($C43:$D43) -> 161 | F43: =RANK(E43,$E$7:$E$56,0) -> 37
B44: 38 | C44: 87 | D44: 74 | E44: =SUM($C44:$D44) -> 161 | F44: =RANK(E44,$E$7:$E$56,0) -> 37
B45: 39 | C45: 79 | D45: 79 | E45: =SUM($C45:$D45) -> 158 | F45: =RANK(E45,$E$7:$E$56,0) -> 39
B46: 40 | C46: 76 | D46: 81 | E46: =SUM($C46:$D46) -> 157 | F46: =RANK(E46,$E$7:$E$56,0) -> 40
B47: 41 | C47: 88 | D47: 64 | E47: =SUM($C47:$D47) -> 152 | F47: =RANK(E47,$E$7:$E$56,0) -> 41
B48: 42 | C48: 71 | D48: 76 | E48: =SUM($C48:$D48) -> 147 | F48: =RANK(E48,$E$7:$E$56,0) -> 42
B49: 43 | C49: 74 | D49: 73 | E49: =SUM($C49:$D49) -> 147 | F49: =RANK(E49,$E$7:$E$56,0) -> 42
B50: 44 | C50: 75 | D50: 68 | E50: =SUM($C50:$D50) -> 143 | F50: =RANK(E50,$E$7:$E$56,0) -> 44
B51: 45 | C51: 73 | D51: 67 | E51: =SUM($C51:$D51) -> 140 | F51: =RANK(E51,$E$7:$E$56,0) -> 45
B52: 46 | E52: =SUM($C52:$D52) -> 0 | F52: =RANK(E52,$E$7:$E$56,0) -> 46
B53: 47 | E53: =SUM($C53:$D53) -> 0 | F53: =RANK(E53,$E$7:$E$56,0) -> 46
B54: 48 | E54: =SUM($C54:$D54) -> 0 | F54: =RANK(E54,$E$7:$E$56,0) -> 46
B55: 49 | E55: =SUM($C55:$D55) -> 0 | F55: =RANK(E55,$E$7:$E$56,0) -> 46
B56: 50 | E56: =SUM($C56:$D56) -> 0 | F56: =RANK(E56,$E$7:$E$56,0) -> 46

Sheet M. Käppeli
A1: Name
A2: Käppeli Mathias
A3: Gutschein | B3: Denner
A4: Waffe | B4: 90
B5: Sau Stich | N5: Glück | Q5: Auszahlung
B6: Nr. Passe | C6: 1. Schuss | D6: 2. Schuss | E6: Total | F6: Rang | H6: Besten Passen | J6: Besten Einzel | L6: Total Passen und Einzel
B7: 1 | C7: 96 | D7: 97 | E7: =SUM($C7:$D7) -> 193 | F7: =RANK(E7,$E$7:$E$56,0) -> 1 | H7: =LARGE(E7:E56,1) -> 193 | J7: =IF($B$4=90,LARGE(C10:D56,1),IF($B$4="St",LARGE(C11:D56,1),IF($B$4=57,LARGE(C9:D56,1)))) -> 95
B8: 2 | C8: 88 | D8: 93 | E8: =SUM($C8:$D8) -> 181 | F8: =RANK(E8,$E$7:$E$56,0) -> 2 | H8: =LARGE(E7:E56,2) -> 181 | J8: =IF($B$4=90,LARGE(C10:D56,2),IF($B$4="St",LARGE(C11:D56,2),IF($B$4=57,LARGE(C9:D56,2)))) -> 94 | L8: =IF($B$4=57,SUM(H7:H8,J7:J12),IF($B$4=90,SUM(H7:H9,J7:J10),IF($B$4="St",SUM(H7:H10,J7:J8)))) -> 928 | N8: Ansage | O8: 230 | Q8: 1. Schuss | R8: 9
B9: 3 | C9: 81 | D9: 99 | E9: =SUM($C9:$D9) -> 180 | F9: =RANK(E9,$E$7:$E$56,0) -> 3 | H9: =LARGE(E7:E56,3) -> 180 | J9: =IF($B$4=90,LARGE($C$10:$D$56,3),IF($B$4="St",LARGE($C$11:$D$56,3),IF($B$4=57,LARGE($C$9:$D$56,3)))) -> 93 | N9: Geschossen | O9: 264 | Q9: 2. Schuss | R9: 10
B10: 4 | C10: 91 | D10: 87 | E10: =SUM($C10:$D10) -> 178 | F10: =RANK(E10,$E$7:$E$56,0) -> 4 | H10: =LARGE(E7:E56,4) -> 178 | J10: =IF($B$4=90,LARGE(C10:D56,4),IF($B$4="St",LARGE(C11:D56,4),IF($B$4=57,LARGE(C9:D56,4)))) -> 92 | N10: Differenz | O10: =IF(O8>0,IF(O8>O9,O8-O9,O9-O8),"") -> 34 | Q10: 3. Schuss | R10: 8
B11: 5 | C11: 84 | D11: 94 | E11: =SUM($C11:$D11) -> 178 | F11: =RANK(E11,$E$7:$E$56,0) -> 4 | J11: =IF($B$4=90,LARGE(C10:D56,5),IF($B$4="St",LARGE(C11:D56,5),IF($B$4=57,LARGE(C9:D56,5)))) -> 91 | Q11: 4. Schuss | R11: 9
B12: 6 | C12: 88 | D12: 90 | E12: =SUM($C12:$D12) -> 178 | F12: =RANK(E12,$E$7:$E$56,0) -> 4 | J12: =IF($B$4=90,LARGE(C10:D56,6),IF($B$4="St",LARGE(C11:D56,6),IF($B$4=57,LARGE(C9:D56,6)))) -> 91 | Q12: 5. Schuss | R12: 8
B13: 7 | C13: 92 | D13: 85 | E13: =SUM($C13:$D13) -> 177 | F13: =RANK(E13,$E$7:$E$56,0) -> 7 | J13: =IF($B$4=90,LARGE(C11:D57,7),IF($B$4="St",LARGE(C12:D57,7),IF($B$4=57,LARGE(C10:D57,7)))) -> 91 | Q13: 6. Schuss | R13: 8
B14: 8 | C14: 87 | D14: 87 | E14: =SUM($C14:$D14) -> 174 | F14: =RANK(E14,$E$7:$E$56,0) -> 8 | J14: =IF($B$4=90,LARGE(C12:D58,8),IF($B$4="St",LARGE(C13:D58,8),IF($B$4=57,LARGE(C11:D58,8)))) -> 90 | Q14: 7. Schuss | R14: 8
B15: 9 | C15: 93 | D15: 81 | E15: =SUM($C15:$D15) -> 174 | F15: =RANK(E15,$E$7:$E$56,0) -> 8 | J15: =IF($B$4=90,LARGE(C13:D59,9),IF($B$4="St",LARGE(C14:D59,9),IF($B$4=57,LARGE(C12:D59,9)))) -> 90 | Q15: 8. Schuss | R15: 9
B16: 10 | C16: 91 | D16: 82 | E16: =SUM($C16:$D16) -> 173 | F16: =RANK(E16,$E$7:$E$56,0) -> 10 | Q16: 9. Schuss | R16: 9
B17: 11 | C17: 85 | D17: 88 | E17: =SUM($C17:$D17) -> 173 | F17: =RANK(E17,$E$7:$E$56,0) -> 10 | Q17: 10. Schuss | R17: 8
B18: 12 | C18: 80 | D18: 90 | E18: =SUM($C18:$D18) -> 170 | F18: =RANK(E18,$E$7:$E$56,0) -> 12 | Q18: Total | R18: =SUM(R8:R17) -> 86
B19: 13 | C19: 79 | D19: 90 | E19: =SUM($C19:$D19) -> 169 | F19: =RANK(E19,$E$7:$E$56,0) -> 13
B20: 14 | C20: 79 | D20: 90 | E20: =SUM($C20:$D20) -> 169 | F20: =RANK(E20,$E$7:$E$56,0) -> 13
B21: 15 | C21: 87 | D21: 81 | E21: =SUM($C21:$D21) -> 168 | F21: =RANK(E21,$E$7:$E$56,0) -> 15
B22: 16 | C22: 78 | D22: 90 | E22: =SUM($C22:$D22) -> 168 | F22: =RANK(E22,$E$7:$E$56,0) -> 15
B23: 17 | C23: 91 | D23: 74 | E23: =SUM($C23:$D23) -> 165 | F23: =RANK(E23,$E$7:$E$56,0) -> 17
B24: 18 | C24: 85 | D24: 76 | E24: =SUM($C24:$D24) -> 161 | F24: =RANK(E24,$E$7:$E$56,0) -> 18
B25: 19 | C25: 75 | D25: 84 | E25: =SUM($C25:$D25) -> 159 | F25: =RANK(E25,$E$7:$E$56,0) -> 19
B26: 20 | C26: 84 | D26: 74 | E26: =SUM($C26:$D26) -> 158 | F26: =RANK(E26,$E$7:$E$56,0) -> 20
B27: 21 | C27: 80 | D27: 76 | E27: =SUM($C27:$D27) -> 156 | F27: =RANK(E27,$E$7:$E$56,0) -> 21
B28: 22 | C28: 74 | D28: 82 | E28: =SUM($C28:$D28) -> 156 | F28: =RANK(E28,$E$7:$E$56,0) -> 21
B29: 23 | C29: 91 | D29: 65 | E29: =SUM($C29:$D29) -> 156 | F29: =RANK(E29,$E$7:$E$56,0) -> 21
B30: 24 | C30: 70 | D30: 85 | E30: =SUM($C30:$D30) -> 155 | F30: =RANK(E30,$E$7:$E$56,0) -> 24
B31: 25 | C31: 70 | D31: 74 | E31: =SUM($C31:$D31) -> 144 | F31: =RANK(E31,$E$7:$E$56,0) -> 25
B32: 26 | C32: 49 | D32: 95 | E32: =SUM($C32:$D32) -> 144 | F32: =RANK(E32,$E$7:$E$56,0) -> 25
B33: 27 | C33: 84 | D33: 59 | E33: =SUM($C33:$D33) -> 143 | F33: =RANK(E33,$E$7:$E$56,0) -> 27
B34: 28 | C34: 66 | D34: 76 | E34: =SUM($C34:$D34) -> 142 | F34: =RANK(E34,$E$7:$E$56,0) -> 28
B35: 29 | C35: 61 | D35: 68 | E35: =SUM($C35:$D35) -> 129 | F35: =RANK(E35,$E$7:$E$56,0) -> 29
B36: 30 | C36: 50 | D36: 40 | E36: =SUM($C36:$D36) -> 90 | F36: =RANK(E36,$E$7:$E$56,0) -> 30
B37: 31 | E37: =SUM($C37:$D37) -> 0 | F37: =RANK(E37,$E$7:$E$56,0) -> 31
B38: 32 | E38: =SUM($C38:$D38) -> 0 | F38: =RANK(E38,$E$7:$E$56,0) -> 31
B39: 33 | E39: =SUM($C39:$D39) -> 0 | F39: =RANK(E39,$E$7:$E$56,0) -> 31
B40: 34 | E40: =SUM($C40:$D40) -> 0 | F40: =RANK(E40,$E$7:$E$56,0) -> 31
B41: 35 | E41: =SUM($C41:$D41) -> 0 | F41: =RANK(E41,$E$7:$E$56,0) -> 31
B42: 36 | E42: =SUM($C42:$D42) -> 0 | F42: =RANK(E42,$E$7:$E$56,0) -> 31
B43: 37 | E43: =SUM($C43:$D43) -> 0 | F43: =RANK(E43,$E$7:$E$56,0) -> 31
B44: 38 | E44: =SUM($C44:$D44) -> 0 | F44: =RANK(E44,$E$7:$E$56,0) -> 31
B45: 39 | E45: =SUM($C45:$D45) -> 0 | F45: =RANK(E45,$E$7:$E$56,0) -> 31
B46: 40 | E46: =SUM($C46:$D46) -> 0 | F46: =RANK(E46,$E$7:$E$56,0) -> 31
B47: 41 | E47: =SUM($C47:$D47) -> 0 | F47: =RANK(E47,$E$7:$E$56,0) -> 31
B48: 42 | E48: =SUM($C48:$D48) -> 0 | F48: =RANK(E48,$E$7:$E$56,0) -> 31
B49: 43 | E49: =SUM($C49:$D49) -> 0 | F49: =RANK(E49,$E$7:$E$56,0) -> 31
B50: 44 | E50: =SUM($C50:$D50) -> 0 | F50: =RANK(E50,$E$7:$E$56,0) -> 31
B51: 45 | E51: =SUM($C51:$D51) -> 0 | F51: =RANK(E51,$E$7:$E$56,0) -> 31
B52: 46 | E52: =SUM($C52:$D52) -> 0 | F52: =RANK(E52,$E$7:$E$56,0) -> 31
B53: 47 | E53: =SUM($C53:$D53) -> 0 | F53: =RANK(E53,$E$7:$E$56,0) -> 31
B54: 48 | E54: =SUM($C54:$D54) -> 0 | F54: =RANK(E54,$E$7:$E$56,0) -> 31
B55: 49 | E55: =SUM($C55:$D55) -> 0 | F55: =RANK(E55,$E$7:$E$56,0) -> 31
B56: 50 | E56: =SUM($C56:$D56) -> 0 | F56: =RANK(E56,$E$7:$E$56,0) -> 31

Sheet C. Erb
A1: Name
A2: Erb Corinne
A3: Gutschein
A4: Waffe | B4: 90
B5: Sau Stich | N5: Glück | Q5: Auszahlung
B6: Nr. Passe | C6: 1. Schuss | D6: 2. Schuss | E6: Total | F6: Rang | H6: Besten Passen | J6: Besten Einzel | L6: Total Passen und Einzel
B7: 1 | E7: =SUM($C7:$D7) -> 0 | F7: =RANK(E7,$E$7:$E$56,0) -> 1 | H7: =LARGE(E7:E56,1) -> 0 | J7: =IF($B$4=90,LARGE(C10:D56,1),IF($B$4="St",LARGE(C11:D56,1),IF($B$4=57,LARGE(C9:D56,1)))) -> 
B8: 2 | E8: 0 | F8: 1 | H8: =LARGE(E7:E56,2) -> 0 | J8: =IF($B$4=90,LARGE(C10:D56,2),IF($B$4="St",LARGE(C11:D56,2),IF($B$4=57,LARGE(C9:D56,2)))) ->  | L8: =IF($B$4=57,SUM(H7:H8,J7:J12),IF($B$4=90,SUM(H7:H9,J7:J10),IF($B$4="St",SUM(H7:H10,J7:J8)))) ->  | N8: Ansage | Q8: 1. Schuss
B9: 3 | E9: 0 | F9: 1 | H9: =LARGE(E7:E56,3) -> 0 | J9: =IF($B$4=90,LARGE($C$10:$D$56,3),IF($B$4="St",LARGE($C$11:$D$56,3),IF($B$4=57,LARGE($C$9:$D$56,3)))) ->  | N9: Geschossen | Q9: 2. Schuss
B10: 4 | E10: 0 | F10: 1 | H10: =LARGE(E7:E56,4) -> 0 | J10: =IF($B$4=90,LARGE(C10:D56,4),IF($B$4="St",LARGE(C11:D56,4),IF($B$4=57,LARGE(C9:D56,4)))) ->  | N10: Differenz | O10: =IF(O8>0,IF(O8>O9,O8-O9,O9-O8),"") ->  | Q10: 3. Schuss
B11: 5 | E11: 0 | F11: 1 | J11: =IF($B$4=90,LARGE(C10:D56,5),IF($B$4="St",LARGE(C11:D56,5),IF($B$4=57,LARGE(C9:D56,5)))) ->  | Q11: 4. Schuss
B12: 6 | E12: 0 | F12: 1 | J12: =IF($B$4=90,LARGE(C10:D56,6),IF($B$4="St",LARGE(C11:D56,6),IF($B$4=57,LARGE(C9:D56,6)))) ->  | Q12: 5. Schuss
B13: 7 | E13: 0 | F13: 1 | J13: =IF($B$4=90,LARGE(C11:D57,7),IF($B$4="St",LARGE(C12:D57,7),IF($B$4=57,LARGE(C10:D57,7)))) ->  | Q13: 6. Schuss
B14: 8 | E14: 0 | F14: 1 | J14: =IF($B$4=90,LARGE(C12:D58,8),IF($B$4="St",LARGE(C13:D58,8),IF($B$4=57,LARGE(C11:D58,8)))) ->  | Q14: 7. Schuss
B15: 9 | E15: 0 | F15: 1 | J15: =IF($B$4=90,LARGE(C13:D59,9),IF($B$4="St",LARGE(C14:D59,9),IF($B$4=57,LARGE(C12:D59,9)))) ->  | Q15: 8. Schuss
B16: 10 | E16: 0 | F16: 1 | Q16: 9. Schuss
B17: 11 | E17: 0 | F17: 1 | Q17: 10. Schuss
B18: 12 | E18: 0 | F18: 1 | Q18: Total
B19: 13 | E19: 0 | F19: 1
B20: 14 | E20: 0 | F20: 1
B21: 15 | E21: 0 | F21: 1
B22: 16 | E22: 0 | F22: 1
B23: 17 | E23: 0 | F23: 1
B24: 18 | E24: 0 | F24: 1
B25: 19 | E25: 0 | F25: 1
B26: 20 | E26: 0 | F26: 1
B27: 21 | E27: 0 | F27: 1
B28: 22 | E28: 0 | F28: 1
B29: 23 | E29: 0 | F29: 1
B30: 24 | E30: 0 | F30: 1
B31: 25 | E31: 0 | F31: 1
B32: 26 | E32: 0 | F32: 1
B33: 27 | E33: 0 | F33: 1
B34: 28 | E34: 0 | F34: 1
B35: 29 | E35: 0 | F35: 1
B36: 30 | E36: 0 | F36: 1
B37: 31 | E37: 0 | F37: 1
B38: 32 | E38: 0 | F38: 1
B39: 33 | E39: =SUM($C39:$D39) -> 0 | F39: 1
B40: 34 | E40: 0 | F40: =RANK(E40,$E$7:$E$56,0) -> 1
B41: 35 | E41: 0 | F41: 1
B42: 36 | E42: 0 | F42: 1
B43: 37 | E43: 0 | F43: 1
B44: 38 | E44: 0 | F44: 1
B45: 39 | E45: 0 | F45: 1
B46: 40 | E46: 0 | F46: 1
B47: 41 | E47: 0 | F47: 1
B48: 42 | E48: 0 | F48: 1
B49: 43 | E49: 0 | F49: 1
B50: 44 | E50: 0 | F50: 1
B51: 45 | E51: 0 | F51: 1
B52: 46 | E52: 0 | F52: 1
B53: 47 | E53: 0 | F53: 1
B54: 48 | E54: 0 | F54: 1
B55: 49 | E55: 0 | F55: 1
B56: 50 | E56: 0 | F56: 1

Sheet J. Zbinden
A1: Name
A2: Zbinden Jakob
A3: Gutschein | B3: Coop
A4: Waffe | B4: 90
B5: Sau Stich | N5: Glück | Q5: Auszahlung
B6: Nr. Passe | C6: 1. Schuss | D6: 2. Schuss | E6: Total | F6: Rang | H6: Besten Passen | J6: Besten Einzel | L6: Total Passen und Einzel
B7: 1 | C7: 91 | D7: 95 | E7: =SUM($C7:$D7) -> 186 | F7: =RANK(E7,$E$7:$E$56,0) -> 1 | H7: =LARGE(E7:E56,1) -> 186 | J7: =IF($B$4=90,LARGE(C10:D56,1),IF($B$4="St",LARGE(C11:D56,1),IF($B$4=57,LARGE(C9:D56,1)))) -> 95
B8: 2 | C8: 92 | D8: 89 | E8: =SUM($C8:$D8) -> 181 | F8: =RANK(E8,$E$7:$E$56,0) -> 2 | H8: =LARGE(E7:E56,2) -> 181 | J8: =IF($B$4=90,LARGE(C10:D56,2),IF($B$4="St",LARGE(C11:D56,2),IF($B$4=57,LARGE(C9:D56,2)))) -> 94 | L8: =IF($B$4=57,SUM(H7:H8,J7:J12),IF($B$4=90,SUM(H7:H9,J7:J10),IF($B$4="St",SUM(H7:H10,J7:J8)))) -> 916 | N8: Ansage | O8: 256 | Q8: 1. Schuss | R8: 8
B9: 3 | C9: 88 | D9: 92 | E9: =SUM($C9:$D9) -> 180 | F9: =RANK(E9,$E$7:$E$56,0) -> 3 | H9: =LARGE(E7:E56,3) -> 180 | J9: =IF($B$4=90,LARGE($C$10:$D$56,3),IF($B$4="St",LARGE($C$11:$D$56,3),IF($B$4=57,LARGE($C$9:$D$56,3)))) -> 90 | N9: Geschossen | O9: 279 | Q9: 2. Schuss | R9: 8
B10: 4 | C10: 94 | D10: 85 | E10: =SUM($C10:$D10) -> 179 | F10: =RANK(E10,$E$7:$E$56,0) -> 4 | H10: =LARGE(E7:E56,4) -> 179 | J10: =IF($B$4=90,LARGE(C10:D56,4),IF($B$4="St",LARGE(C11:D56,4),IF($B$4=57,LARGE(C9:D56,4)))) -> 90 | N10: Differenz | O10: =IF(O8>0,IF(O8>O9,O8-O9,O9-O8),"") -> 23 | Q10: 3. Schuss | R10: 10
B11: 5 | C11: 89 | D11: 89 | E11: =SUM($C11:$D11) -> 178 | F11: =RANK(E11,$E$7:$E$56,0) -> 5 | J11: =IF($B$4=90,LARGE(C10:D56,5),IF($B$4="St",LARGE(C11:D56,5),IF($B$4=57,LARGE(C9:D56,5)))) -> 89 | Q11: 4. Schuss | R11: 10
B12: 6 | C12: 95 | D12: 82 | E12: =SUM($C12:$D12) -> 177 | F12: =RANK(E12,$E$7:$E$56,0) -> 6 | J12: =IF($B$4=90,LARGE(C10:D56,6),IF($B$4="St",LARGE(C11:D56,6),IF($B$4=57,LARGE(C9:D56,6)))) -> 89 | Q12: 5. Schuss | R12: 8
B13: 7 | C13: 88 | D13: 87 | E13: =SUM($C13:$D13) -> 175 | F13: =RANK(E13,$E$7:$E$56,0) -> 7 | J13: =IF($B$4=90,LARGE(C11:D57,7),IF($B$4="St",LARGE(C12:D57,7),IF($B$4=57,LARGE(C10:D57,7)))) -> 88 | Q13: 6. Schuss | R13: 8
B14: 8 | C14: 82 | D14: 90 | E14: =SUM($C14:$D14) -> 172 | F14: =RANK(E14,$E$7:$E$56,0) -> 8 | J14: =IF($B$4=90,LARGE(C12:D58,8),IF($B$4="St",LARGE(C13:D58,8),IF($B$4=57,LARGE(C11:D58,8)))) -> 86 | Q14: 7. Schuss | R14: 9
B15: 9 | C15: 79 | D15: 90 | E15: =SUM($C15:$D15) -> 169 | F15: =RANK(E15,$E$7:$E$56,0) -> 9 | J15: =IF($B$4=90,LARGE(C13:D59,9),IF($B$4="St",LARGE(C14:D59,9),IF($B$4=57,LARGE(C12:D59,9)))) -> 86 | Q15: 8. Schuss | R15: 10
B16: 10 | C16: 80 | D16: 88 | E16: =SUM($C16:$D16) -> 168 | F16: =RANK(E16,$E$7:$E$56,0) -> 10 | Q16: 9. Schuss | R16: 8
B17: 11 | C17: 80 | D17: 86 | E17: =SUM($C17:$D17) -> 166 | F17: =RANK(E17,$E$7:$E$56,0) -> 11 | Q17: 10. Schuss | R17: 9
B18: 12 | C18: 75 | D18: 89 | E18: =SUM($C18:$D18) -> 164 | F18: =RANK(E18,$E$7:$E$56,0) -> 12 | Q18: Total | R18: =SUM(R8:R17) -> 88
B19: 13 | C19: 84 | D19: 80 | E19: =SUM($C19:$D19) -> 164 | F19: =RANK(E19,$E$7:$E$56,0) -> 12
B20: 14 | C20: 73 | D20: 86 | E20: =SUM($C20:$D20) -> 159 | F20: =RANK(E20,$E$7:$E$56,0) -> 14
B21: 15 | C21: 77 | D21: 80 | E21: =SUM($C21:$D21) -> 157 | F21: =RANK(E21,$E$7:$E$56,0) -> 15
B22: 16 | C22: 63 | D22: 86 | E22: =SUM($C22:$D22) -> 149 | F22: =RANK(E22,$E$7:$E$56,0) -> 16
B23: 17 | C23: 69 | D23: 74 | E23: =SUM($C23:$D23) -> 143 | F23: =RANK(E23,$E$7:$E$56,0) -> 17
B24: 18 | C24: 58 | D24: 74 | E24: =SUM($C24:$D24) -> 132 | F24: =RANK(E24,$E$7:$E$56,0) -> 18
B25: 19 | C25: 52 | D25: 64 | E25: =SUM($C25:$D25) -> 116 | F25: =RANK(E25,$E$7:$E$56,0) -> 19
B26: 20 | C26: 22 | D26: 48 | E26: =SUM($C26:$D26) -> 70 | F26: =RANK(E26,$E$7:$E$56,0) -> 20
B27: 21 | E27: =SUM($C27:$D27) -> 0 | F27: =RANK(E27,$E$7:$E$56,0) -> 21
B28: 22 | E28: =SUM($C28:$D28) -> 0 | F28: =RANK(E28,$E$7:$E$56,0) -> 21
B29: 23 | E29: =SUM($C29:$D29) -> 0 | F29: =RANK(E29,$E$7:$E$56,0) -> 21
B30: 24 | E30: =SUM($C30:$D30) -> 0 | F30: =RANK(E30,$E$7:$E$56,0) -> 21
B31: 25 | E31: =SUM($C31:$D31) -> 0 | F31: =RANK(E31,$E$7:$E$56,0) -> 21
B32: 26 | E32: =SUM($C32:$D32) -> 0 | F32: =RANK(E32,$E$7:$E$56,0) -> 21
B33: 27 | E33: =SUM($C33:$D33) -> 0 | F33: =RANK(E33,$E$7:$E$56,0) -> 21
B34: 28 | E34: =SUM($C34:$D34) -> 0 | F34: =RANK(E34,$E$7:$E$56,0) -> 21
B35: 29 | E35: =SUM($C35:$D35) -> 0 | F35: =RANK(E35,$E$7:$E$56,0) -> 21
B36: 30 | E36: =SUM($C36:$D36) -> 0 | F36: =RANK(E36,$E$7:$E$56,0) -> 21
B37: 31 | E37: =SUM($C37:$D37) -> 0 | F37: =RANK(E37,$E$7:$E$56,0) -> 21
B38: 32 | E38: =SUM($C38:$D38) -> 0 | F38: =RANK(E38,$E$7:$E$56,0) -> 21
B39: 33 | E39: =SUM($C39:$D39) -> 0 | F39: =RANK(E39,$E$7:$E$56,0) -> 21
B40: 34 | E40: =SUM($C40:$D40) -> 0 | F40: =RANK(E40,$E$7:$E$56,0) -> 21
B41: 35 | E41: =SUM($C41:$D41) -> 0 | F41: =RANK(E41,$E$7:$E$56,0) -> 21
B42: 36 | E42: =SUM($C42:$D42) -> 0 | F42: =RANK(E42,$E$7:$E$56,0) -> 21
B43: 37 | E43: =SUM($C43:$D43) -> 0 | F43: =RANK(E43,$E$7:$E$56,0) -> 21
B44: 38 | E44: =SUM($C44:$D44) -> 0 | F44: =RANK(E44,$E$7:$E$56,0) -> 21
B45: 39 | E45: =SUM($C45:$D45) -> 0 | F45: =RANK(E45,$E$7:$E$56,0) -> 21
B46: 40 | E46: =SUM($C46:$D46) -> 0 | F46: =RANK(E46,$E$7:$E$56,0) -> 21
B47: 41 | E47: =SUM($C47:$D47) -> 0 | F47: =RANK(E47,$E$7:$E$56,0) -> 21
B48: 42 | E48: =SUM($C48:$D48) -> 0 | F48: =RANK(E48,$E$7:$E$56,0) -> 21
B49: 43 | E49: =SUM($C49:$D49) -> 0 | F49: =RANK(E49,$E$7:$E$56,0) -> 21
B50: 44 | E50: =SUM($C50:$D50) -> 0 | F50: =RANK(E50,$E$7:$E$56,0) -> 21
B51: 45 | E51: =SUM($C51:$D51) -> 0 | F51: =RANK(E51,$E$7:$E$56,0) -> 21
B52: 46 | E52: =SUM($C52:$D52) -> 0 | F52: =RANK(E52,$E$7:$E$56,0) -> 21
B53: 47 | E53: =SUM($C53:$D53) -> 0 | F53: =RANK(E53,$E$7:$E$56,0) -> 21
B54: 48 | E54: =SUM($C54:$D54) -> 0 | F54: =RANK(E54,$E$7:$E$56,0) -> 21
B55: 49 | E55: =SUM($C55:$D55) -> 0 | F55: =RANK(E55,$E$7:$E$56,0) -> 21
B56: 50 | E56: =SUM($C56:$D56) -> 0 | F56: =RANK(E56,$E$7:$E$56,0) -> 21

Sheet H. Wanner
A1: Name
A2: Wanner Heinz
A3: Gutschein
A4: Waffe | B4: 90
B5: Sau Stich | N5: Glück | Q5: Auszahlung
B6: Nr. Passe | C6: 1. Schuss | D6: 2. Schuss | E6: Total | F6: Rang | H6: Besten Passen | J6: Besten Einzel | L6: Total Passen und Einzel
B7: 1 | E7: =SUM($C7:$D7) -> 0 | F7: =RANK(E7,$E$7:$E$56,0) -> 1 | H7: =LARGE(E7:E56,1) -> 0 | J7: =IF($B$4=90,LARGE(C10:D56,1),IF($B$4="St",LARGE(C11:D56,1),IF($B$4=57,LARGE(C9:D56,1)))) -> 
B8: 2 | E8: 0 | F8: 1 | H8: =LARGE(E7:E56,2) -> 0 | J8: =IF($B$4=90,LARGE(C10:D56,2),IF($B$4="St",LARGE(C11:D56,2),IF($B$4=57,LARGE(C9:D56,2)))) ->  | L8: =IF($B$4=57,SUM(H7:H8,J7:J12),IF($B$4=90,SUM(H7:H9,J7:J10),IF($B$4="St",SUM(H7:H10,J7:J8)))) ->  | N8: Ansage | Q8: 1. Schuss
B9: 3 | E9: 0 | F9: 1 | H9: =LARGE(E7:E56,3) -> 0 | J9: =IF($B$4=90,LARGE($C$10:$D$56,3),IF($B$4="St",LARGE($C$11:$D$56,3),IF($B$4=57,LARGE($C$9:$D$56,3)))) ->  | N9: Geschossen | Q9: 2. Schuss
B10: 4 | E10: 0 | F10: 1 | H10: =LARGE(E7:E56,4) -> 0 | J10: =IF($B$4=90,LARGE(C10:D56,4),IF($B$4="St",LARGE(C11:D56,4),IF($B$4=57,LARGE(C9:D56,4)))) ->  | N10: Differenz | O10: =IF(O8>0,IF(O8>O9,O8-O9,O9-O8),"") ->  | Q10: 3. Schuss
B11: 5 | E11: 0 | F11: 1 | J11: =IF($B$4=90,LARGE(C10:D56,5),IF($B$4="St",LARGE(C11:D56,5),IF($B$4=57,LARGE(C9:D56,5)))) ->  | Q11: 4. Schuss
B12: 6 | E12: 0 | F12: 1 | J12: =IF($B$4=90,LARGE(C10:D56,6),IF($B$4="St",LARGE(C11:D56,6),IF($B$4=57,LARGE(C9:D56,6)))) ->  | Q12: 5. Schuss
B13: 7 | E13: 0 | F13: 1 | J13: =IF($B$4=90,LARGE(C11:D57,7),IF($B$4="St",LARGE(C12:D57,7),IF($B$4=57,LARGE(C10:D57,7)))) ->  | Q13: 6. Schuss
B14: 8 | E14: 0 | F14: 1 | J14: =IF($B$4=90,LARGE(C12:D58,8),IF($B$4="St",LARGE(C13:D58,8),IF($B$4=57,LARGE(C11:D58,8)))) ->  | Q14: 7. Schuss
B15: 9 | E15: 0 | F15: 1 | J15: =IF($B$4=90,LARGE(C13:D59,9),IF($B$4="St",LARGE(C14:D59,9),IF($B$4=57,LARGE(C12:D59,9)))) ->  | Q15: 8. Schuss
B16: 10 | E16: 0 | F16: 1 | Q16: 9. Schuss
B17: 11 | E17: 0 | F17: 1 | Q17: 10. Schuss
B18: 12 | E18: 0 | F18: 1 | Q18: Total | R18: =SUM(R8:R17) -> 0
B19: 13 | E19: 0 | F19: 1
B20: 14 | E20: 0 | F20: 1
B21: 15 | E21: 0 | F21: 1
B22: 16 | E22: 0 | F22: 1
B23: 17 | E23: 0 | F23: 1
B24: 18 | E24: 0 | F24: 1
B25: 19 | E25: 0 | F25: 1
B26: 20 | E26: 0 | F26: 1
B27: 21 | E27: 0 | F27: 1
B28: 22 | E28: 0 | F28: 1
B29: 23 | E29: 0 | F29: 1
B30: 24 | E30: 0 | F30: 1
B31: 25 | E31: 0 | F31: 1
B32: 26 | E32: 0 | F32: 1
B33: 27 | E33: 0 | F33: 1
B34: 28 | E34: 0 | F34: 1
B35: 29 | E35: 0 | F35: 1
B36: 30 | E36: 0 | F36: 1
B37: 31 | E37: 0 | F37: 1
B38: 32 | E38: 0 | F38: 1
B39: 33 | E39: =SUM($C39:$D39) -> 0 | F39: =RANK(E39,$E$7:$E$56,0) -> 1
B40: 34 | E40: 0 | F40: 1
B41: 35 | E41: 0 | F41: 1
B42: 36 | E42: 0 | F42: 1
B43: 37 | E43: 0 | F43: 1
B44: 38 | E44: 0 | F44: 1
B45: 39 | E45: 0 | F45: 1
B46: 40 | E46: 0 | F46: 1
B47: 41 | E47: 0 | F47: 1
B48: 42 | E48: 0 | F48: 1
B49: 43 | E49: 0 | F49: 1
B50: 44 | E50: 0 | F50: 1
B51: 45 | E51: 0 | F51: 1
B52: 46 | E52: 0 | F52: 1
B53: 47 | E53: 0 | F53: 1
B54: 48 | E54: 0 | F54: 1
B55: 49 | E55: 0 | F55: 1
B56: 50 | E56: 0 | F56: 1

Sheet R. Liechti
A1: Name
A2: Rodolphe Liechti
A3: Gutschein | B3: Migros
A4: Waffe | B4: 90
B5: Sau Stich | N5: Glück | Q5: Auszahlung
B6: Nr. Passe | C6: 1. Schuss | D6: 2. Schuss | E6: Total | F6: Rang | H6: Besten Passen | J6: Besten Einzel | L6: Total Passen und Einzel
B7: 1 | C7: 98 | D7: 90 | E7: =SUM($C7:$D7) -> 188 | F7: =RANK(E7,$E$7:$E$106,0) -> 1 | H7: =LARGE(E7:E56,1) -> 188 | J7: =IF($B$4=90,LARGE(C10:D56,1),IF($B$4="St",LARGE(C11:D56,1),IF($B$4=57,LARGE(C9:D56,1)))) -> 98
B8: 2 | C8: 86 | D8: 94 | E8: =SUM($C8:$D8) -> 180 | F8: =RANK(E8,$E$7:$E$106,0) -> 2 | H8: =LARGE(E7:E56,2) -> 180 | J8: =IF($B$4=90,LARGE(C10:D56,2),IF($B$4="St",LARGE(C11:D56,2),IF($B$4=57,LARGE(C9:D56,2)))) -> 98 | L8: =IF($B$4=57,SUM(H7:H8,J7:J12),IF($B$4=90,SUM(H7:H9,J7:J10),IF($B$4="St",SUM(H7:H10,J7:J8)))) -> 929 | N8: Ansage | O8: 236 | Q8: 1. Schuss
B9: 3 | C9: 92 | D9: 86 | E9: =SUM($C9:$D9) -> 178 | F9: =RANK(E9,$E$7:$E$106,0) -> 3 | H9: =LARGE(E7:E56,3) -> 178 | J9: =IF($B$4=90,LARGE($C$10:$D$56,3),IF($B$4="St",LARGE($C$11:$D$56,3),IF($B$4=57,LARGE($C$9:$D$56,3)))) -> 95 | N9: Geschossen | O9: 243 | Q9: 2. Schuss
B10: 4 | C10: 98 | D10: 79 | E10: =SUM($C10:$D10) -> 177 | F10: =RANK(E10,$E$7:$E$106,0) -> 4 | H10: =LARGE(E7:E56,4) -> 177 | J10: =IF($B$4=90,LARGE(C10:D56,4),IF($B$4="St",LARGE(C11:D56,4),IF($B$4=57,LARGE(C9:D56,4)))) -> 92 | N10: Differenz | O10: =IF(O8>0,IF(O8>O9,O8-O9,O9-O8),"") -> 7 | Q10: 3. Schuss
B11: 5 | C11: 86 | D11: 87 | E11: =SUM($C11:$D11) -> 173 | F11: =RANK(E11,$E$7:$E$106,0) -> 5 | J11: =IF($B$4=90,LARGE(C10:D56,5),IF($B$4="St",LARGE(C11:D56,5),IF($B$4=57,LARGE(C9:D56,5)))) -> 92 | Q11: 4. Schuss
B12: 6 | C12: 98 | D12: 74 | E12: =SUM($C12:$D12) -> 172 | F12: =RANK(E12,$E$7:$E$106,0) -> 6 | J12: =IF($B$4=90,LARGE(C10:D56,6),IF($B$4="St",LARGE(C11:D56,6),IF($B$4=57,LARGE(C9:D56,6)))) -> 91 | Q12: 5. Schuss
B13: 7 | C13: 81 | D13: 91 | E13: =SUM($C13:$D13) -> 172 | F13: =RANK(E13,$E$7:$E$106,0) -> 6 | J13: =IF($B$4=90,LARGE(C11:D57,7),IF($B$4="St",LARGE(C12:D57,7),IF($B$4=57,LARGE(C10:D57,7)))) -> 90 | Q13: 6. Schuss
B14: 8 | C14: 87 | D14: 85 | E14: =SUM($C14:$D14) -> 172 | F14: =RANK(E14,$E$7:$E$106,0) -> 6 | J14: =IF($B$4=90,LARGE(C12:D58,8),IF($B$4="St",LARGE(C13:D58,8),IF($B$4=57,LARGE(C11:D58,8)))) -> 87 | Q14: 7. Schuss
B15: 9 | C15: 90 | D15: 81 | E15: =SUM($C15:$D15) -> 171 | F15: =RANK(E15,$E$7:$E$106,0) -> 9 | J15: =IF($B$4=90,LARGE(C13:D59,9),IF($B$4="St",LARGE(C14:D59,9),IF($B$4=57,LARGE(C12:D59,9)))) -> 86 | Q15: 8. Schuss
B16: 10 | C16: 86 | D16: 81 | E16: =SUM($C16:$D16) -> 167 | F16: =RANK(E16,$E$7:$E$106,0) -> 10 | Q16: 9. Schuss
B17: 11 | C17: 78 | D17: 87 | E17: =SUM($C17:$D17) -> 165 | F17: =RANK(E17,$E$7:$E$106,0) -> 11 | Q17: 10. Schuss
B18: 12 | C18: 81 | D18: 84 | E18: =SUM($C18:$D18) -> 165 | F18: =RANK(E18,$E$7:$E$106,0) -> 11 | Q18: Total | R18: =SUM(R8:R17) -> 0
B19: 13 | C19: 67 | D19: 95 | E19: =SUM($C19:$D19) -> 162 | F19: =RANK(E19,$E$7:$E$106,0) -> 13
B20: 14 | C20: 92 | D20: 69 | E20: =SUM($C20:$D20) -> 161 | F20: =RANK(E20,$E$7:$E$106,0) -> 14
B21: 15 | C21: 74 | D21: 86 | E21: =SUM($C21:$D21) -> 160 | F21: =RANK(E21,$E$7:$E$106,0) -> 15
B22: 16 | C22: 91 | D22: 69 | E22: =SUM($C22:$D22) -> 160 | F22: =RANK(E22,$E$7:$E$106,0) -> 15
B23: 17 | C23: 78 | D23: 78 | E23: =SUM($C23:$D23) -> 156 | F23: =RANK(E23,$E$7:$E$106,0) -> 17
B24: 18 | C24: 70 | D24: 85 | E24: =SUM($C24:$D24) -> 155 | F24: =RANK(E24,$E$7:$E$106,0) -> 18
B25: 19 | C25: 82 | D25: 70 | E25: =SUM($C25:$D25) -> 152 | F25: =RANK(E25,$E$7:$E$106,0) -> 19
B26: 20 | C26: 82 | D26: 67 | E26: =SUM($C26:$D26) -> 149 | F26: =RANK(E26,$E$7:$E$106,0) -> 20
B27: 21 | C27: 84 | D27: 63 | E27: =SUM($C27:$D27) -> 147 | F27: =RANK(E27,$E$7:$E$106,0) -> 21
B28: 22 | C28: 67 | D28: 79 | E28: =SUM($C28:$D28) -> 146 | F28: =RANK(E28,$E$7:$E$106,0) -> 22
B29: 23 | C29: 73 | D29: 73 | E29: =SUM($C29:$D29) -> 146 | F29: =RANK(E29,$E$7:$E$106,0) -> 22
B30: 24 | C30: 92 | D30: 54 | E30: =SUM($C30:$D30) -> 146 | F30: =RANK(E30,$E$7:$E$106,0) -> 22
B31: 25 | C31: 68 | D31: 77 | E31: =SUM($C31:$D31) -> 145 | F31: =RANK(E31,$E$7:$E$106,0) -> 25
B32: 26 | C32: 77 | D32: 67 | E32: =SUM($C32:$D32) -> 144 | F32: =RANK(E32,$E$7:$E$106,0) -> 26
B33: 27 | C33: 73 | D33: 67 | E33: =SUM($C33:$D33) -> 140 | F33: =RANK(E33,$E$7:$E$106,0) -> 27
B34: 28 | C34: 75 | D34: 64 | E34: =SUM($C34:$D34) -> 139 | F34: =RANK(E34,$E$7:$E$106,0) -> 28
B35: 29 | C35: 69 | D35: 67 | E35: =SUM($C35:$D35) -> 136 | F35: =RANK(E35,$E$7:$E$106,0) -> 29
B36: 30 | C36: 39 | D36: 21 | E36: =SUM($C36:$D36) -> 60 | F36: =RANK(E36,$E$7:$E$106,0) -> 30
B37: 31 | E37: =SUM($C37:$D37) -> 0 | F37: =RANK(E37,$E$7:$E$106,0) -> 31
B38: 32 | E38: =SUM($C38:$D38) -> 0 | F38: =RANK(E38,$E$7:$E$106,0) -> 31
B39: 33 | E39: =SUM($C39:$D39) -> 0 | F39: =RANK(E39,$E$7:$E$106,0) -> 31
B40: 34 | E40: =SUM($C40:$D40) -> 0 | F40: =RANK(E40,$E$7:$E$106,0) -> 31
B41: 35 | E41: =SUM($C41:$D41) -> 0 | F41: =RANK(E41,$E$7:$E$106,0) -> 31
B42: 36 | E42: =SUM($C42:$D42) -> 0 | F42: =RANK(E42,$E$7:$E$106,0) -> 31
B43: 37 | E43: =SUM($C43:$D43) -> 0 | F43: =RANK(E43,$E$7:$E$106,0) -> 31
B44: 38 | E44: =SUM($C44:$D44) -> 0 | F44: =RANK(E44,$E$7:$E$106,0) -> 31
B45: 39 | E45: =SUM($C45:$D45) -> 0 | F45: =RANK(E45,$E$7:$E$106,0) -> 31
B46: 40 | E46: =SUM($C46:$D46) -> 0 | F46: =RANK(E46,$E$7:$E$106,0) -> 31
B47: 41 | E47: =SUM($C47:$D47) -> 0 | F47: =RANK(E47,$E$7:$E$106,0) -> 31
B48: 42 | E48: =SUM($C48:$D48) -> 0 | F48: =RANK(E48,$E$7:$E$106,0) -> 31
B49: 43 | E49: =SUM($C49:$D49) -> 0 | F49: =RANK(E49,$E$7:$E$106,0) -> 31
B50: 44 | E50: =SUM($C50:$D50) -> 0 | F50: =RANK(E50,$E$7:$E$106,0) -> 31
B51: 45 | E51: =SUM($C51:$D51) -> 0 | F51: =RANK(E51,$E$7:$E$106,0) -> 31
B52: 46 | E52: =SUM($C52:$D52) -> 0 | F52: =RANK(E52,$E$7:$E$106,0) -> 31
B53: 47 | E53: =SUM($C53:$D53) -> 0 | F53: =RANK(E53,$E$7:$E$106,0) -> 31
B54: 48 | E54: =SUM($C54:$D54) -> 0 | F54: =RANK(E54,$E$7:$E$106,0) -> 31
B55: 49 | E55: =SUM($C55:$D55) -> 0 | F55: =RANK(E55,$E$7:$E$106,0) -> 31
B56: 50 | E56: =SUM($C56:$D56) -> 0 | F56: =RANK(E56,$E$7:$E$106,0) -> 31
B57: 51 | E57: =SUM($C57:$D57) -> 0 | F57: =RANK(E57,$E$7:$E$106,0) -> 31
B58: 52 | E58: =SUM($C58:$D58) -> 0 | F58: =RANK(E58,$E$7:$E$106,0) -> 31
B59: 53 | E59: =SUM($C59:$D59) -> 0 | F59: =RANK(E59,$E$7:$E$106,0) -> 31
B60: 54 | E60: =SUM($C60:$D60) -> 0 | F60: =RANK(E60,$E$7:$E$106,0) -> 31
B61: 55 | E61: =SUM($C61:$D61) -> 0 | F61: =RANK(E61,$E$7:$E$106,0) -> 31
B62: 56 | E62: =SUM($C62:$D62) -> 0 | F62: =RANK(E62,$E$7:$E$106,0) -> 31
B63: 57 | E63: =SUM($C63:$D63) -> 0 | F63: =RANK(E63,$E$7:$E$106,0) -> 31
B64: 58 | E64: =SUM($C64:$D64) -> 0 | F64: =RANK(E64,$E$7:$E$106,0) -> 31
B65: 59 | E65: =SUM($C65:$D65) -> 0 | F65: =RANK(E65,$E$7:$E$106,0) -> 31
B66: 60 | E66: =SUM($C66:$D66) -> 0 | F66: =RANK(E66,$E$7:$E$106,0) -> 31
B67: 61 | E67: =SUM($C67:$D67) -> 0 | F67: =RANK(E67,$E$7:$E$106,0) -> 31
B68: 62 | E68: =SUM($C68:$D68) -> 0 | F68: =RANK(E68,$E$7:$E$106,0) -> 31
B69: 63 | E69: =SUM($C69:$D69) -> 0 | F69: =RANK(E69,$E$7:$E$106,0) -> 31
B70: 64 | E70: =SUM($C70:$D70) -> 0 | F70: =RANK(E70,$E$7:$E$106,0) -> 31
B71: 65 | E71: =SUM($C71:$D71) -> 0 | F71: =RANK(E71,$E$7:$E$106,0) -> 31
B72: 66 | E72: =SUM($C72:$D72) -> 0 | F72: =RANK(E72,$E$7:$E$106,0) -> 31
B73: 67 | E73: =SUM($C73:$D73) -> 0 | F73: =RANK(E73,$E$7:$E$106,0) -> 31
B74: 68 | E74: =SUM($C74:$D74) -> 0 | F74: =RANK(E74,$E$7:$E$106,0) -> 31
B75: 69 | E75: =SUM($C75:$D75) -> 0 | F75: =RANK(E75,$E$7:$E$106,0) -> 31
B76: 70 | E76: =SUM($C76:$D76) -> 0 | F76: =RANK(E76,$E$7:$E$106,0) -> 31
B77: 71 | E77: =SUM($C77:$D77) -> 0 | F77: =RANK(E77,$E$7:$E$106,0) -> 31
B78: 72 | E78: =SUM($C78:$D78) -> 0 | F78: =RANK(E78,$E$7:$E$106,0) -> 31
B79: 73 | E79: =SUM($C79:$D79) -> 0 | F79: =RANK(E79,$E$7:$E$106,0) -> 31
B80: 74 | E80: =SUM($C80:$D80) -> 0 | F80: =RANK(E80,$E$7:$E$106,0) -> 31
B81: 75 | E81: =SUM($C81:$D81) -> 0 | F81: =RANK(E81,$E$7:$E$106,0) -> 31
B82: 76 | E82: =SUM($C82:$D82) -> 0 | F82: =RANK(E82,$E$7:$E$106,0) -> 31
B83: 77 | E83: =SUM($C83:$D83) -> 0 | F83: =RANK(E83,$E$7:$E$106,0) -> 31
B84: 78 | E84: =SUM($C84:$D84) -> 0 | F84: =RANK(E84,$E$7:$E$106,0) -> 31
B85: 79 | E85: =SUM($C85:$D85) -> 0 | F85: =RANK(E85,$E$7:$E$106,0) -> 31
B86: 80 | E86: =SUM($C86:$D86) -> 0 | F86: =RANK(E86,$E$7:$E$106,0) -> 31
B87: 81 | E87: =SUM($C87:$D87) -> 0 | F87: =RANK(E87,$E$7:$E$106,0) -> 31
B88: 82 | E88: =SUM($C88:$D88) -> 0 | F88: =RANK(E88,$E$7:$E$106,0) -> 31
B89: 83 | E89: =SUM($C89:$D89) -> 0 | F89: =RANK(E89,$E$7:$E$106,0) -> 31
B90: 84 | E90: =SUM($C90:$D90) -> 0 | F90: =RANK(E90,$E$7:$E$106,0) -> 31
B91: 85 | E91: =SUM($C91:$D91) -> 0 | F91: =RANK(E91,$E$7:$E$106,0) -> 31
B92: 86 | E92: =SUM($C92:$D92) -> 0 | F92: =RANK(E92,$E$7:$E$106,0) -> 31
B93: 87 | E93: =SUM($C93:$D93) -> 0 | F93: =RANK(E93,$E$7:$E$106,0) -> 31
B94: 88 | E94: =SUM($C94:$D94) -> 0 | F94: =RANK(E94,$E$7:$E$106,0) -> 31
B95: 89 | E95: =SUM($C95:$D95) -> 0 | F95: =RANK(E95,$E$7:$E$106,0) -> 31
B96: 90 | E96: =SUM($C96:$D96) -> 0 | F96: =RANK(E96,$E$7:$E$106,0) -> 31
B97: 91 | E97: =SUM($C97:$D97) -> 0 | F97: =RANK(E97,$E$7:$E$106,0) -> 31
B98: 92 | E98: =SUM($C98:$D98) -> 0 | F98: =RANK(E98,$E$7:$E$106,0) -> 31
B99: 93 | E99: =SUM($C99:$D99) -> 0 | F99: =RANK(E99,$E$7:$E$106,0) -> 31
B100: 94 | E100: =SUM($C100:$D100) -> 0 | F100: =RANK(E100,$E$7:$E$106,0) -> 31
B101: 95 | E101: =SUM($C101:$D101) -> 0 | F101: =RANK(E101,$E$7:$E$106,0) -> 31
B102: 96 | E102: =SUM($C102:$D102) -> 0 | F102: =RANK(E102,$E$7:$E$106,0) -> 31
B103: 97 | E103: =SUM($C103:$D103) -> 0 | F103: =RANK(E103,$E$7:$E$106,0) -> 31
B104: 98 | E104: =SUM($C104:$D104) -> 0 | F104: =RANK(E104,$E$7:$E$106,0) -> 31
B105: 99 | E105: =SUM($C105:$D105) -> 0 | F105: =RANK(E105,$E$7:$E$106,0) -> 31
B106: 100 | E106: =SUM($C106:$D106) -> 0 | F106: =RANK(E106,$E$7:$E$106,0) -> 31

Sheet R. Friedelance
A1: Name
A2: Friedelance Roger
A3: Gutschein
A4: Waffe | B4: 90
B5: Sau Stich | N5: Glück | Q5: Auszahlung
B6: Nr. Passe | C6: 1. Schuss | D6: 2. Schuss | E6: Total | F6: Rang | H6: Besten Passen | J6: Besten Einzel | L6: Total Passen und Einzel
B7: 1 | E7: =SUM($C7:$D7) -> 0 | F7: =RANK(E7,$E$7:$E$56,0) -> 1 | H7: =LARGE(E7:E56,1) -> 0 | J7: =IF($B$4=90,LARGE(C10:D56,1),IF($B$4="St",LARGE(C11:D56,1),IF($B$4=57,LARGE(C9:D56,1)))) -> 
B8: 2 | E8: 0 | F8: 1 | H8: =LARGE(E7:E56,2) -> 0 | J8: =IF($B$4=90,LARGE(C10:D56,2),IF($B$4="St",LARGE(C11:D56,2),IF($B$4=57,LARGE(C9:D56,2)))) ->  | L8: =IF($B$4=57,SUM(H7:H8,J7:J12),IF($B$4=90,SUM(H7:H9,J7:J10),IF($B$4="St",SUM(H7:H10,J7:J8)))) ->  | N8: Ansage | Q8: 1. Schuss
B9: 3 | E9: 0 | F9: 1 | H9: =LARGE(E7:E56,3) -> 0 | J9: =IF($B$4=90,LARGE($C$10:$D$56,3),IF($B$4="St",LARGE($C$11:$D$56,3),IF($B$4=57,LARGE($C$9:$D$56,3)))) ->  | N9: Geschossen | Q9: 2. Schuss
B10: 4 | E10: 0 | F10: 1 | H10: =LARGE(E7:E56,4) -> 0 | J10: =IF($B$4=90,LARGE(C10:D56,4),IF($B$4="St",LARGE(C11:D56,4),IF($B$4=57,LARGE(C9:D56,4)))) ->  | N10: Differenz | O10: =IF(O8>0,IF(O8>O9,O8-O9,O9-O8),"") ->  | Q10: 3. Schuss
B11: 5 | E11: 0 | F11: 1 | J11: =IF($B$4=90,LARGE(C10:D56,5),IF($B$4="St",LARGE(C11:D56,5),IF($B$4=57,LARGE(C9:D56,5)))) ->  | Q11: 4. Schuss
B12: 6 | E12: 0 | F12: 1 | J12: =IF($B$4=90,LARGE(C10:D56,6),IF($B$4="St",LARGE(C11:D56,6),IF($B$4=57,LARGE(C9:D56,6)))) ->  | Q12: 5. Schuss
B13: 7 | E13: 0 | F13: 1 | J13: =IF($B$4=90,LARGE(C11:D57,7),IF($B$4="St",LARGE(C12:D57,7),IF($B$4=57,LARGE(C10:D57,7)))) ->  | Q13: 6. Schuss
B14: 8 | E14: 0 | F14: 1 | J14: =IF($B$4=90,LARGE(C12:D58,8),IF($B$4="St",LARGE(C13:D58,8),IF($B$4=57,LARGE(C11:D58,8)))) ->  | Q14: 7. Schuss
B15: 9 | E15: 0 | F15: 1 | J15: =IF($B$4=90,LARGE(C13:D59,9),IF($B$4="St",LARGE(C14:D59,9),IF($B$4=57,LARGE(C12:D59,9)))) ->  | Q15: 8. Schuss
B16: 10 | E16: 0 | F16: 1 | Q16: 9. Schuss
B17: 11 | E17: 0 | F17: 1 | Q17: 10. Schuss
B18: 12 | E18: 0 | F18: 1 | Q18: Total | R18: =SUM(R8:R17) -> 0
B19: 13 | E19: 0 | F19: 1
B20: 14 | E20: 0 | F20: 1
B21: 15 | E21: 0 | F21: 1
B22: 16 | E22: 0 | F22: 1
B23: 17 | E23: 0 | F23: 1
B24: 18 | E24: 0 | F24: 1
B25: 19 | E25: 0 | F25: 1
B26: 20 | E26: 0 | F26: 1
B27: 21 | E27: 0 | F27: 1
B28: 22 | E28: 0 | F28: 1
B29: 23 | E29: 0 | F29: 1
B30: 24 | E30: 0 | F30: 1
B31: 25 | E31: 0 | F31: 1
B32: 26 | E32: 0 | F32: 1
B33: 27 | E33: 0 | F33: 1
B34: 28 | E34: 0 | F34: 1
B35: 29 | E35: 0 | F35: 1
B36: 30 | E36: 0 | F36: 1
B37: 31 | E37: 0 | F37: 1
B38: 32 | E38: 0 | F38: 1
B39: 33 | E39: =SUM($C39:$D39) -> 0 | F39: =RANK(E39,$E$7:$E$56,0) -> 1
B40: 34 | E40: 0 | F40: 1
B41: 35 | E41: 0 | F41: 1
B42: 36 | E42: 0 | F42: 1
B43: 37 | E43: 0 | F43: 1
B44: 38 | E44: 0 | F44: 1
B45: 39 | E45: 0 | F45: 1
B46: 40 | E46: 0 | F46: 1
B47: 41 | E47: 0 | F47: 1
B48: 42 | E48: 0 | F48: 1
B49: 43 | E49: 0 | F49: 1
B50: 44 | E50: 0 | F50: 1
B51: 45 | E51: 0 | F51: 1
B52: 46 | E52: 0 | F52: 1
B53: 47 | E53: 0 | F53: 1
B54: 48 | E54: 0 | F54: 1
B55: 49 | E55: 0 | F55: 1
B56: 50 | E56: 0 | F56: 1

Sheet M. Huggler
A1: Name | B1: Huggler Marylène
A2: Gutschein | B2: Coop
A4: Waffe | B4: 90
B5: Sau Stich | N5: Glück | Q5: Auszahlung
B6: Nr. Passe | C6: 1. Schuss | D6: 2. Schuss | E6: Total | F6: Rang | H6: Besten Passen | J6: Besten Einzel | L6: Total Passen und Einzel
B7: 1 | C7: 98 | D7: 94 | E7: =SUM($C7:$D7) -> 192 | F7: =RANK(E7,$E$7:$E$56,0) -> 1 | H7: =LARGE(E7:E56,1) -> 192 | J7: =IF($B$4=90,LARGE(C10:D56,1),IF($B$4="St",LARGE(C11:D56,1),IF($B$4=57,LARGE(C9:D56,1)))) -> 98
B8: 2 | C8: 95 | D8: 92 | E8: =SUM($C8:$D8) -> 187 | F8: =RANK(E8,$E$7:$E$56,0) -> 2 | H8: =LARGE(E7:E56,2) -> 187 | J8: =IF($B$4=90,LARGE(C10:D56,2),IF($B$4="St",LARGE(C11:D56,2),IF($B$4=57,LARGE(C9:D56,2)))) -> 96 | L8: =IF($B$4=57,SUM(H7:H8,J7:J12),IF($B$4=90,SUM(H7:H9,J7:J10),IF($B$4="St",SUM(H7:H10,J7:J8)))) -> 949 | N8: Ansage | O8: 243 | Q8: 1. Schuss | R8: 9
B9: 3 | C9: 95 | D9: 91 | E9: =SUM($C9:$D9) -> 186 | F9: =RANK(E9,$E$7:$E$56,0) -> 3 | H9: =LARGE(E7:E56,3) -> 186 | J9: =IF($B$4=90,LARGE($C$10:$D$56,3),IF($B$4="St",LARGE($C$11:$D$56,3),IF($B$4=57,LARGE($C$9:$D$56,3)))) -> 96 | N9: Geschossen | O9: 227 | Q9: 2. Schuss | R9: 9
B10: 4 | C10: 90 | D10: 96 | E10: =SUM($C10:$D10) -> 186 | F10: =RANK(E10,$E$7:$E$56,0) -> 3 | H10: =LARGE(E7:E56,4) -> 186 | J10: =IF($B$4=90,LARGE(C10:D56,4),IF($B$4="St",LARGE(C11:D56,4),IF($B$4=57,LARGE(C9:D56,4)))) -> 94 | N10: Differenz | O10: =IF(O8>0,IF(O8>O9,O8-O9,O9-O8),"") -> 16 | Q10: 3. Schuss | R10: 8
B11: 5 | C11: 94 | D11: 91 | E11: =SUM($C11:$D11) -> 185 | F11: =RANK(E11,$E$7:$E$56,0) -> 5 | J11: =IF($B$4=90,LARGE(C10:D56,5),IF($B$4="St",LARGE(C11:D56,5),IF($B$4=57,LARGE(C9:D56,5)))) -> 94 | Q11: 4. Schuss | R11: 10
B12: 6 | C12: 96 | D12: 89 | E12: =SUM($C12:$D12) -> 185 | F12: =RANK(E12,$E$7:$E$56,0) -> 5 | J12: =IF($B$4=90,LARGE(C10:D56,6),IF($B$4="St",LARGE(C11:D56,6),IF($B$4=57,LARGE(C9:D56,6)))) -> 94 | Q12: 5. Schuss | R12: 7
B13: 7 | C13: 82 | D13: 98 | E13: =SUM($C13:$D13) -> 180 | F13: =RANK(E13,$E$7:$E$56,0) -> 7 | J13: =IF($B$4=90,LARGE(C11:D57,7),IF($B$4="St",LARGE(C12:D57,7),IF($B$4=57,LARGE(C10:D57,7)))) -> 91 | Q13: 6. Schuss | R13: 8
B14: 8 | C14: 83 | D14: 94 | E14: =SUM($C14:$D14) -> 177 | F14: =RANK(E14,$E$7:$E$56,0) -> 8 | J14: =IF($B$4=90,LARGE(C12:D58,8),IF($B$4="St",LARGE(C13:D58,8),IF($B$4=57,LARGE(C11:D58,8)))) -> 89 | Q14: 7. Schuss | R14: 10
B15: 9 | C15: 89 | D15: 86 | E15: =SUM($C15:$D15) -> 175 | F15: =RANK(E15,$E$7:$E$56,0) -> 9 | J15: =IF($B$4=90,LARGE(C13:D59,9),IF($B$4="St",LARGE(C14:D59,9),IF($B$4=57,LARGE(C12:D59,9)))) -> 87 | Q15: 8. Schuss | R15: 8
B16: 10 | C16: 86 | D16: 83 | E16: =SUM($C16:$D16) -> 169 | F16: =RANK(E16,$E$7:$E$56,0) -> 10 | Q16: 9. Schuss | R16: 8
B17: 11 | C17: 88 | D17: 81 | E17: =SUM($C17:$D17) -> 169 | F17: =RANK(E17,$E$7:$E$56,0) -> 10 | Q17: 10. Schuss | R17: 9
B18: 12 | C18: 82 | D18: 87 | E18: =SUM($C18:$D18) -> 169 | F18: =RANK(E18,$E$7:$E$56,0) -> 10 | Q18: Total | R18: =SUM(R8:R17) -> 86
B19: 13 | C19: 78 | D19: 87 | E19: =SUM($C19:$D19) -> 165 | F19: =RANK(E19,$E$7:$E$56,0) -> 13
B20: 14 | C20: 94 | D20: 71 | E20: =SUM($C20:$D20) -> 165 | F20: =RANK(E20,$E$7:$E$56,0) -> 13
B21: 15 | C21: 79 | D21: 85 | E21: =SUM($C21:$D21) -> 164 | F21: =RANK(E21,$E$7:$E$56,0) -> 15
B22: 16 | C22: 88 | D22: 75 | E22: =SUM($C22:$D22) -> 163 | F22: =RANK(E22,$E$7:$E$56,0) -> 16
B23: 17 | C23: 89 | D23: 73 | E23: =SUM($C23:$D23) -> 162 | F23: =RANK(E23,$E$7:$E$56,0) -> 17
B24: 18 | C24: 92 | D24: 69 | E24: =SUM($C24:$D24) -> 161 | F24: =RANK(E24,$E$7:$E$56,0) -> 18
B25: 19 | C25: 69 | D25: 84 | E25: =SUM($C25:$D25) -> 153 | F25: =RANK(E25,$E$7:$E$56,0) -> 19
B26: 20 | C26: 83 | D26: 59 | E26: =SUM($C26:$D26) -> 142 | F26: =RANK(E26,$E$7:$E$56,0) -> 20
B27: 21 | E27: =SUM($C27:$D27) -> 0 | F27: =RANK(E27,$E$7:$E$56,0) -> 21
B28: 22 | E28: =SUM($C28:$D28) -> 0 | F28: =RANK(E28,$E$7:$E$56,0) -> 21
B29: 23 | E29: =SUM($C29:$D29) -> 0 | F29: =RANK(E29,$E$7:$E$56,0) -> 21
B30: 24 | E30: =SUM($C30:$D30) -> 0 | F30: =RANK(E30,$E$7:$E$56,0) -> 21
B31: 25 | E31: =SUM($C31:$D31) -> 0 | F31: =RANK(E31,$E$7:$E$56,0) -> 21
B32: 26 | E32: =SUM($C32:$D32) -> 0 | F32: =RANK(E32,$E$7:$E$56,0) -> 21
B33: 27 | E33: =SUM($C33:$D33) -> 0 | F33: =RANK(E33,$E$7:$E$56,0) -> 21
B34: 28 | E34: =SUM($C34:$D34) -> 0 | F34: =RANK(E34,$E$7:$E$56,0) -> 21
B35: 29 | E35: =SUM($C35:$D35) -> 0 | F35: =RANK(E35,$E$7:$E$56,0) -> 21
B36: 30 | E36: =SUM($C36:$D36) -> 0 | F36: =RANK(E36,$E$7:$E$56,0) -> 21
B37: 31 | E37: =SUM($C37:$D37) -> 0 | F37: =RANK(E37,$E$7:$E$56,0) -> 21
B38: 32 | E38: =SUM($C38:$D38) -> 0 | F38: =RANK(E38,$E$7:$E$56,0) -> 21
B39: 33 | E39: =SUM($C39:$D39) -> 0 | F39: =RANK(E39,$E$7:$E$56,0) -> 21
B40: 34 | E40: =SUM($C40:$D40) -> 0 | F40: =RANK(E40,$E$7:$E$56,0) -> 21
B41: 35 | E41: =SUM($C41:$D41) -> 0 | F41: =RANK(E41,$E$7:$E$56,0) -> 21
B42: 36 | E42: =SUM($C42:$D42) -> 0 | F42: =RANK(E42,$E$7:$E$56,0) -> 21
B43: 37 | E43: =SUM($C43:$D43) -> 0 | F43: =RANK(E43,$E$7:$E$56,0) -> 21
B44: 38 | E44: =SUM($C44:$D44) -> 0 | F44: =RANK(E44,$E$7:$E$56,0) -> 21
B45: 39 | E45: =SUM($C45:$D45) -> 0 | F45: =RANK(E45,$E$7:$E$56,0) -> 21
B46: 40 | E46: =SUM($C46:$D46) -> 0 | F46: =RANK(E46,$E$7:$E$56,0) -> 21
B47: 41 | E47: =SUM($C47:$D47) -> 0 | F47: =RANK(E47,$E$7:$E$56,0) -> 21
B48: 42 | E48: =SUM($C48:$D48) -> 0 | F48: =RANK(E48,$E$7:$E$56,0) -> 21
B49: 43 | E49: =SUM($C49:$D49) -> 0 | F49: =RANK(E49,$E$7:$E$56,0) -> 21
B50: 44 | E50: =SUM($C50:$D50) -> 0 | F50: =RANK(E50,$E$7:$E$56,0) -> 21
B51: 45 | E51: =SUM($C51:$D51) -> 0 | F51: =RANK(E51,$E$7:$E$56,0) -> 21
B52: 46 | E52: =SUM($C52:$D52) -> 0 | F52: =RANK(E52,$E$7:$E$56,0) -> 21
B53: 47 | E53: =SUM($C53:$D53) -> 0 | F53: =RANK(E53,$E$7:$E$56,0) -> 21
B54: 48 | E54: =SUM($C54:$D54) -> 0 | F54: =RANK(E54,$E$7:$E$56,0) -> 21
B55: 49 | E55: =SUM($C55:$D55) -> 0 | F55: =RANK(E55,$E$7:$E$56,0) -> 21
B56: 50 | E56: =SUM($C56:$D56) -> 0 | F56: =RANK(E56,$E$7:$E$56,0) -> 21

Sheet P. Abrecht
A1: Name | B1: Abrecht Pascal
A2: Gutschein | B2: Coop
A4: Waffe | B4: 90
B5: Sau Stich | N5: Glück | Q5: Auszahlung
B6: Nr. Passe | C6: 1. Schuss | D6: 2. Schuss | E6: Total | F6: Rang | H6: Besten Passen | J6: Besten Einzel | L6: Total Passen und Einzel
B7: 1 | C7: 92 | D7: 94 | E7: =SUM($C7:$D7) -> 186 | F7: =RANK(E7,$E$7:$E$56,0) -> 1 | H7: =LARGE(E7:E56,1) -> 186 | J7: =IF($B$4=90,LARGE(C10:D56,1),IF($B$4="St",LARGE(C11:D56,1),IF($B$4=57,LARGE(C9:D56,1)))) -> 97
B8: 2 | C8: 83 | D8: 100 | E8: =SUM($C8:$D8) -> 183 | F8: =RANK(E8,$E$7:$E$56,0) -> 2 | H8: =LARGE(E7:E56,2) -> 183 | J8: =IF($B$4=90,LARGE(C10:D56,2),IF($B$4="St",LARGE(C11:D56,2),IF($B$4=57,LARGE(C9:D56,2)))) -> 96 | L8: =IF($B$4=57,SUM(H7:H8,J7:J12),IF($B$4=90,SUM(H7:H9,J7:J10),IF($B$4="St",SUM(H7:H10,J7:J8)))) -> 930 | N8: Ansage | O8: 260 | Q8: 1. Schuss | R8: 7
B9: 3 | C9: 88 | D9: 92 | E9: =SUM($C9:$D9) -> 180 | F9: =RANK(E9,$E$7:$E$56,0) -> 3 | H9: =LARGE(E7:E56,3) -> 180 | J9: =IF($B$4=90,LARGE($C$10:$D$56,3),IF($B$4="St",LARGE($C$11:$D$56,3),IF($B$4=57,LARGE($C$9:$D$56,3)))) -> 95 | N9: Geschossen | O9: 286 | Q9: 2. Schuss | R9: 9
B10: 4 | C10: 86 | D10: 93 | E10: =SUM($C10:$D10) -> 179 | F10: =RANK(E10,$E$7:$E$56,0) -> 4 | H10: =LARGE(E7:E56,4) -> 179 | J10: =IF($B$4=90,LARGE(C10:D56,4),IF($B$4="St",LARGE(C11:D56,4),IF($B$4=57,LARGE(C9:D56,4)))) -> 93 | N10: Differenz | O10: =IF(O8>0,IF(O8>O9,O8-O9,O9-O8),"") -> 26 | Q10: 3. Schuss | R10: 9
B11: 5 | C11: 83 | D11: 95 | E11: =SUM($C11:$D11) -> 178 | F11: =RANK(E11,$E$7:$E$56,0) -> 5 | J11: =IF($B$4=90,LARGE(C10:D56,5),IF($B$4="St",LARGE(C11:D56,5),IF($B$4=57,LARGE(C9:D56,5)))) -> 92 | Q11: 4. Schuss | R11: 8
B12: 6 | C12: 86 | D12: 92 | E12: =SUM($C12:$D12) -> 178 | F12: =RANK(E12,$E$7:$E$56,0) -> 5 | J12: =IF($B$4=90,LARGE(C10:D56,6),IF($B$4="St",LARGE(C11:D56,6),IF($B$4=57,LARGE(C9:D56,6)))) -> 92 | Q12: 5. Schuss | R12: 9
B13: 7 | C13: 85 | D13: 92 | E13: =SUM($C13:$D13) -> 177 | F13: =RANK(E13,$E$7:$E$56,0) -> 7 | J13: =IF($B$4=90,LARGE(C11:D57,7),IF($B$4="St",LARGE(C12:D57,7),IF($B$4=57,LARGE(C10:D57,7)))) -> 91 | Q13: 6. Schuss | R13: 8
B14: 8 | C14: 90 | D14: 87 | E14: =SUM($C14:$D14) -> 177 | F14: =RANK(E14,$E$7:$E$56,0) -> 7 | J14: =IF($B$4=90,LARGE(C12:D58,8),IF($B$4="St",LARGE(C13:D58,8),IF($B$4=57,LARGE(C11:D58,8)))) -> 90 | Q14: 7. Schuss | R14: 9
B15: 9 | C15: 97 | D15: 77 | E15: =SUM($C15:$D15) -> 174 | F15: =RANK(E15,$E$7:$E$56,0) -> 9 | J15: =IF($B$4=90,LARGE(C13:D59,9),IF($B$4="St",LARGE(C14:D59,9),IF($B$4=57,LARGE(C12:D59,9)))) -> 88 | Q15: 8. Schuss | R15: 7
B16: 10 | C16: 85 | D16: 87 | E16: =SUM($C16:$D16) -> 172 | F16: =RANK(E16,$E$7:$E$56,0) -> 10 | Q16: 9. Schuss | R16: 7
B17: 11 | C17: 84 | D17: 88 | E17: =SUM($C17:$D17) -> 172 | F17: =RANK(E17,$E$7:$E$56,0) -> 10 | Q17: 10. Schuss | R17: 9
B18: 12 | C18: 80 | D18: 91 | E18: =SUM($C18:$D18) -> 171 | F18: =RANK(E18,$E$7:$E$56,0) -> 12 | Q18: Total | R18: =SUM(R8:R17) -> 82
B19: 13 | C19: 91 | D19: 78 | E19: =SUM($C19:$D19) -> 169 | F19: =RANK(E19,$E$7:$E$56,0) -> 13
B20: 14 | C20: 84 | D20: 83 | E20: =SUM($C20:$D20) -> 167 | F20: =RANK(E20,$E$7:$E$56,0) -> 14
B21: 15 | C21: 96 | D21: 69 | E21: =SUM($C21:$D21) -> 165 | F21: =RANK(E21,$E$7:$E$56,0) -> 15
B22: 16 | C22: 77 | D22: 88 | E22: =SUM($C22:$D22) -> 165 | F22: =RANK(E22,$E$7:$E$56,0) -> 15
B23: 17 | C23: 77 | D23: 87 | E23: =SUM($C23:$D23) -> 164 | F23: =RANK(E23,$E$7:$E$56,0) -> 17
B24: 18 | C24: 84 | D24: 80 | E24: =SUM($C24:$D24) -> 164 | F24: =RANK(E24,$E$7:$E$56,0) -> 17
B25: 19 | C25: 81 | D25: 81 | E25: =SUM($C25:$D25) -> 162 | F25: =RANK(E25,$E$7:$E$56,0) -> 19
B26: 20 | C26: 90 | D26: 70 | E26: =SUM($C26:$D26) -> 160 | F26: =RANK(E26,$E$7:$E$56,0) -> 20
B27: 21 | C27: 81 | D27: 77 | E27: =SUM($C27:$D27) -> 158 | F27: =RANK(E27,$E$7:$E$56,0) -> 21
B28: 81 | C28: 83 | D28: 73 | E28: =SUM($C28:$D28) -> 156 | F28: =RANK(E28,$E$7:$E$56,0) -> 22
B29: 74 | C29: 80 | D29: 69 | E29: =SUM($C29:$D29) -> 149 | F29: =RANK(E29,$E$7:$E$56,0) -> 23
B30: 24 | C30: 74 | D30: 72 | E30: =SUM($C30:$D30) -> 146 | F30: =RANK(E30,$E$7:$E$56,0) -> 24
B31: 25 | C31: 38 | D31: 84 | E31: =SUM($C31:$D31) -> 122 | F31: =RANK(E31,$E$7:$E$56,0) -> 25
B32: 26 | E32: =SUM($C32:$D32) -> 0 | F32: =RANK(E32,$E$7:$E$56,0) -> 26
B33: 27 | E33: =SUM($C33:$D33) -> 0 | F33: =RANK(E33,$E$7:$E$56,0) -> 26
B34: 28 | E34: =SUM($C34:$D34) -> 0 | F34: =RANK(E34,$E$7:$E$56,0) -> 26
B35: 29 | E35: =SUM($C35:$D35) -> 0 | F35: =RANK(E35,$E$7:$E$56,0) -> 26
B36: 30 | E36: =SUM($C36:$D36) -> 0 | F36: =RANK(E36,$E$7:$E$56,0) -> 26
B37: 31 | E37: =SUM($C37:$D37) -> 0 | F37: =RANK(E37,$E$7:$E$56,0) -> 26
B38: 32 | E38: =SUM($C38:$D38) -> 0 | F38: =RANK(E38,$E$7:$E$56,0) -> 26
B39: 33 | E39: =SUM($C39:$D39) -> 0 | F39: =RANK(E39,$E$7:$E$56,0) -> 26
B40: 34 | E40: =SUM($C40:$D40) -> 0 | F40: =RANK(E40,$E$7:$E$56,0) -> 26
B41: 35 | E41: =SUM($C41:$D41) -> 0 | F41: =RANK(E41,$E$7:$E$56,0) -> 26
B42: 36 | E42: =SUM($C42:$D42) -> 0 | F42: =RANK(E42,$E$7:$E$56,0) -> 26
B43: 37 | E43: =SUM($C43:$D43) -> 0 | F43: =RANK(E43,$E$7:$E$56,0) -> 26
B44: 38 | E44: =SUM($C44:$D44) -> 0 | F44: =RANK(E44,$E$7:$E$56,0) -> 26
B45: 39 | E45: =SUM($C45:$D45) -> 0 | F45: =RANK(E45,$E$7:$E$56,0) -> 26
B46: 40 | E46: =SUM($C46:$D46) -> 0 | F46: =RANK(E46,$E$7:$E$56,0) -> 26
B47: 41 | E47: =SUM($C47:$D47) -> 0 | F47: =RANK(E47,$E$7:$E$56,0) -> 26
B48: 42 | E48: =SUM($C48:$D48) -> 0 | F48: =RANK(E48,$E$7:$E$56,0) -> 26
B49: 43 | E49: =SUM($C49:$D49) -> 0 | F49: =RANK(E49,$E$7:$E$56,0) -> 26
B50: 44 | E50: =SUM($C50:$D50) -> 0 | F50: =RANK(E50,$E$7:$E$56,0) -> 26
B51: 45 | E51: =SUM($C51:$D51) -> 0 | F51: =RANK(E51,$E$7:$E$56,0) -> 26
B52: 46 | E52: =SUM($C52:$D52) -> 0 | F52: =RANK(E52,$E$7:$E$56,0) -> 26
B53: 47 | E53: =SUM($C53:$D53) -> 0 | F53: =RANK(E53,$E$7:$E$56,0) -> 26
B54: 48 | E54: =SUM($C54:$D54) -> 0 | F54: =RANK(E54,$E$7:$E$56,0) -> 26
B55: 49 | E55: =SUM($C55:$D55) -> 0 | F55: =RANK(E55,$E$7:$E$56,0) -> 26
B56: 50 | E56: =SUM($C56:$D56) -> 0 | F56: =RANK(E56,$E$7:$E$56,0) -> 26

Sheet O. Tellenbach
A1: Name | B1: Tellenbach Otto
A2: Gutschein | B2: Coop
A4: Waffe | B4: 57
B5: Sau Stich | N5: Glück | Q5: Auszahlung
B6: Nr. Passe | C6: 1. Schuss | D6: 2. Schuss | E6: Total | F6: Rang | H6: Besten Passen | J6: Besten Einzel | L6: Total Passen und Einzel
B7: 1 | C7: 93 | D7: 100 | E7: =SUM($C7:$D7) -> 193 | F7: =RANK(E7,$E$7:$E$56,0) -> 1 | H7: =LARGE(E7:E56,1) -> 193 | J7: =IF($B$4=90,LARGE(C10:D56,1),IF($B$4="St",LARGE(C11:D56,1),IF($B$4=57,LARGE(C9:D56,1)))) -> 92
B8: 2 | C8: 87 | D8: 75 | E8: =SUM($C8:$D8) -> 162 | F8: =RANK(E8,$E$7:$E$56,0) -> 2 | H8: =LARGE(E7:E56,2) -> 162 | J8: =IF($B$4=90,LARGE(C10:D56,2),IF($B$4="St",LARGE(C11:D56,2),IF($B$4=57,LARGE(C9:D56,2)))) -> 92 | L8: =IF($B$4=57,SUM(H7:H8,J7:J12),IF($B$4=90,SUM(H7:H9,J7:J10),IF($B$4="St",SUM(H7:H10,J7:J8)))) -> 856 | N8: Ansage | O8: 200 | Q8: 1. Schuss | R8: 0
B9: 3 | C9: 65 | D9: 92 | E9: =SUM($C9:$D9) -> 157 | F9: =RANK(E9,$E$7:$E$56,0) -> 3 | H9: =LARGE(E7:E56,3) -> 157 | J9: =IF($B$4=90,LARGE($C$10:$D$56,3),IF($B$4="St",LARGE($C$11:$D$56,3),IF($B$4=57,LARGE($C$9:$D$56,3)))) -> 85 | N9: Geschossen | O9: 255 | Q9: 2. Schuss | R9: 8
B10: 4 | C10: 82 | D10: 75 | E10: =SUM($C10:$D10) -> 157 | F10: =RANK(E10,$E$7:$E$56,0) -> 3 | H10: =LARGE(E7:E56,4) -> 157 | J10: =IF($B$4=90,LARGE(C10:D56,4),IF($B$4="St",LARGE(C11:D56,4),IF($B$4=57,LARGE(C9:D56,4)))) -> 82 | N10: Differenz | O10: =IF(O8>0,IF(O8>O9,O8-O9,O9-O8),"") -> 55 | Q10: 3. Schuss | R10: 6
B11: 5 | C11: 66 | D11: 72 | E11: =SUM($C11:$D11) -> 138 | F11: =RANK(E11,$E$7:$E$56,0) -> 5 | J11: =IF($B$4=90,LARGE(C10:D56,5),IF($B$4="St",LARGE(C11:D56,5),IF($B$4=57,LARGE(C9:D56,5)))) -> 75 | Q11: 4. Schuss | R11: 6
B12: 6 | C12: 44 | D12: 92 | E12: =SUM($C12:$D12) -> 136 | F12: =RANK(E12,$E$7:$E$56,0) -> 6 | J12: =IF($B$4=90,LARGE(C10:D56,6),IF($B$4="St",LARGE(C11:D56,6),IF($B$4=57,LARGE(C9:D56,6)))) -> 75 | Q12: 5. Schuss | R12: 7
B13: 7 | C13: 72 | D13: 61 | E13: =SUM($C13:$D13) -> 133 | F13: =RANK(E13,$E$7:$E$56,0) -> 7 | J13: =IF($B$4=90,LARGE(C11:D57,7),IF($B$4="St",LARGE(C12:D57,7),IF($B$4=57,LARGE(C10:D57,7)))) -> 72 | Q13: 6. Schuss | R13: 10
B14: 8 | C14: 85 | D14: 47 | E14: =SUM($C14:$D14) -> 132 | F14: =RANK(E14,$E$7:$E$56,0) -> 8 | J14: =IF($B$4=90,LARGE(C12:D58,8),IF($B$4="St",LARGE(C13:D58,8),IF($B$4=57,LARGE(C11:D58,8)))) -> 70 | Q14: 7. Schuss | R14: 7
B15: 9 | C15: 71 | D15: 60 | E15: =SUM($C15:$D15) -> 131 | F15: =RANK(E15,$E$7:$E$56,0) -> 9 | J15: =IF($B$4=90,LARGE(C13:D59,9),IF($B$4="St",LARGE(C14:D59,9),IF($B$4=57,LARGE(C12:D59,9)))) -> 67 | Q15: 8. Schuss | R15: 8
B16: 10 | C16: 60 | D16: 70 | E16: =SUM($C16:$D16) -> 130 | F16: =RANK(E16,$E$7:$E$56,0) -> 10 | Q16: 9. Schuss | R16: 7
B17: 11 | C17: 67 | D17: 59 | E17: =SUM($C17:$D17) -> 126 | F17: =RANK(E17,$E$7:$E$56,0) -> 11 | Q17: 10. Schuss | R17: 6
B18: 12 | C18: 59 | D18: 66 | E18: =SUM($C18:$D18) -> 125 | F18: =RANK(E18,$E$7:$E$56,0) -> 12 | Q18: Total | R18: =SUM(R8:R17) -> 65
B19: 13 | C19: 52 | D19: 73 | E19: =SUM($C19:$D19) -> 125 | F19: =RANK(E19,$E$7:$E$56,0) -> 12
B20: 14 | C20: 47 | D20: 75 | E20: =SUM($C20:$D20) -> 122 | F20: =RANK(E20,$E$7:$E$56,0) -> 14
B21: 15 | C21: 48 | D21: 70 | E21: =SUM($C21:$D21) -> 118 | F21: =RANK(E21,$E$7:$E$56,0) -> 15
B22: 16 | C22: 58 | D22: 57 | E22: =SUM($C22:$D22) -> 115 | F22: =RANK(E22,$E$7:$E$56,0) -> 16
B23: 17 | C23: 40 | D23: 67 | E23: =SUM($C23:$D23) -> 107 | F23: =RANK(E23,$E$7:$E$56,0) -> 17
B24: 18 | C24: 62 | D24: 41 | E24: =SUM($C24:$D24) -> 103 | F24: =RANK(E24,$E$7:$E$56,0) -> 18
B25: 19 | C25: 39 | D25: 59 | E25: =SUM($C25:$D25) -> 98 | F25: =RANK(E25,$E$7:$E$56,0) -> 19
B26: 20 | C26: 53 | D26: 44 | E26: =SUM($C26:$D26) -> 97 | F26: =RANK(E26,$E$7:$E$56,0) -> 20
B27: 21 | E27: =SUM($C27:$D27) -> 0 | F27: =RANK(E27,$E$7:$E$56,0) -> 21
B28: 22 | E28: =SUM($C28:$D28) -> 0 | F28: =RANK(E28,$E$7:$E$56,0) -> 21
B29: 23 | E29: =SUM($C29:$D29) -> 0 | F29: =RANK(E29,$E$7:$E$56,0) -> 21
B30: 24 | E30: =SUM($C30:$D30) -> 0 | F30: =RANK(E30,$E$7:$E$56,0) -> 21
B31: 25 | E31: =SUM($C31:$D31) -> 0 | F31: =RANK(E31,$E$7:$E$56,0) -> 21
B32: 26 | E32: =SUM($C32:$D32) -> 0 | F32: =RANK(E32,$E$7:$E$56,0) -> 21
B33: 27 | E33: =SUM($C33:$D33) -> 0 | F33: =RANK(E33,$E$7:$E$56,0) -> 21
B34: 28 | E34: =SUM($C34:$D34) -> 0 | F34: =RANK(E34,$E$7:$E$56,0) -> 21
B35: 29 | E35: =SUM($C35:$D35) -> 0 | F35: =RANK(E35,$E$7:$E$56,0) -> 21
B36: 30 | E36: =SUM($C36:$D36) -> 0 | F36: =RANK(E36,$E$7:$E$56,0) -> 21
B37: 31 | E37: =SUM($C37:$D37) -> 0 | F37: =RANK(E37,$E$7:$E$56,0) -> 21
B38: 32 | E38: =SUM($C38:$D38) -> 0 | F38: =RANK(E38,$E$7:$E$56,0) -> 21
B39: 33 | E39: =SUM($C39:$D39) -> 0 | F39: =RANK(E39,$E$7:$E$56,0) -> 21
B40: 34 | E40: =SUM($C40:$D40) -> 0 | F40: =RANK(E40,$E$7:$E$56,0) -> 21
B41: 35 | E41: =SUM($C41:$D41) -> 0 | F41: =RANK(E41,$E$7:$E$56,0) -> 21
B42: 36 | E42: =SUM($C42:$D42) -> 0 | F42: =RANK(E42,$E$7:$E$56,0) -> 21
B43: 37 | E43: =SUM($C43:$D43) -> 0 | F43: =RANK(E43,$E$7:$E$56,0) -> 21
B44: 38 | E44: =SUM($C44:$D44) -> 0 | F44: =RANK(E44,$E$7:$E$56,0) -> 21
B45: 39 | E45: =SUM($C45:$D45) -> 0 | F45: =RANK(E45,$E$7:$E$56,0) -> 21
B46: 40 | E46: =SUM($C46:$D46) -> 0 | F46: =RANK(E46,$E$7:$E$56,0) -> 21
B47: 41 | E47: =SUM($C47:$D47) -> 0 | F47: =RANK(E47,$E$7:$E$56,0) -> 21
B48: 42 | E48: =SUM($C48:$D48) -> 0 | F48: =RANK(E48,$E$7:$E$56,0) -> 21
B49: 43 | E49: =SUM($C49:$D49) -> 0 | F49: =RANK(E49,$E$7:$E$56,0) -> 21
B50: 44 | E50: =SUM($C50:$D50) -> 0 | F50: =RANK(E50,$E$7:$E$56,0) -> 21
B51: 45 | E51: =SUM($C51:$D51) -> 0 | F51: =RANK(E51,$E$7:$E$56,0) -> 21
B52: 46 | E52: =SUM($C52:$D52) -> 0 | F52: =RANK(E52,$E$7:$E$56,0) -> 21
B53: 47 | E53: =SUM($C53:$D53) -> 0 | F53: =RANK(E53,$E$7:$E$56,0) -> 21
B54: 48 | E54: =SUM($C54:$D54) -> 0 | F54: =RANK(E54,$E$7:$E$56,0) -> 21
B55: 49 | E55: =SUM($C55:$D55) -> 0 | F55: =RANK(E55,$E$7:$E$56,0) -> 21
B56: 50 | E56: =SUM($C56:$D56) -> 0 | F56: =RANK(E56,$E$7:$E$56,0) -> 21

Sheet A. Stähli
A1: Name | B1: Stähli André
A2: Gutschein
A4: Waffe | B4: 90
B5: Sau Stich | N5: Glück | Q5: Auszahlung
B6: Nr. Passe | C6: 1. Schuss | D6: 2. Schuss | E6: Total | F6: Rang | H6: Besten Passen | J6: Besten Einzel | L6: Total Passen und Einzel
B7: 1 | E7: =SUM($C7:$D7) -> 0 | F7: =RANK(E7,$E$7:$E$56,0) -> 1 | H7: =LARGE(E7:E56,1) -> 0 | J7: =IF($B$4=90,LARGE(C10:D56,1),IF($B$4="St",LARGE(C11:D56,1),IF($B$4=57,LARGE(C9:D56,1)))) -> 
B8: 2 | E8: 0 | F8: 1 | H8: =LARGE(E7:E56,2) -> 0 | J8: =IF($B$4=90,LARGE(C10:D56,2),IF($B$4="St",LARGE(C11:D56,2),IF($B$4=57,LARGE(C9:D56,2)))) ->  | L8: =IF($B$4=57,SUM(H7:H8,J7:J12),IF($B$4=90,SUM(H7:H9,J7:J10),IF($B$4="St",SUM(H7:H10,J7:J8)))) ->  | N8: Ansage | Q8: 1. Schuss
B9: 3 | E9: 0 | F9: 1 | H9: =LARGE(E7:E56,3) -> 0 | J9: =IF($B$4=90,LARGE($C$10:$D$56,3),IF($B$4="St",LARGE($C$11:$D$56,3),IF($B$4=57,LARGE($C$9:$D$56,3)))) ->  | N9: Geschossen | Q9: 2. Schuss
B10: 4 | E10: 0 | F10: 1 | H10: =LARGE(E7:E56,4) -> 0 | J10: =IF($B$4=90,LARGE(C10:D56,4),IF($B$4="St",LARGE(C11:D56,4),IF($B$4=57,LARGE(C9:D56,4)))) ->  | N10: Differenz | O10: =IF(O8>0,IF(O8>O9,O8-O9,O9-O8),"") ->  | Q10: 3. Schuss
B11: 5 | E11: 0 | F11: 1 | J11: =IF($B$4=90,LARGE(C10:D56,5),IF($B$4="St",LARGE(C11:D56,5),IF($B$4=57,LARGE(C9:D56,5)))) ->  | Q11: 4. Schuss
B12: 6 | E12: 0 | F12: 1 | J12: =IF($B$4=90,LARGE(C10:D56,6),IF($B$4="St",LARGE(C11:D56,6),IF($B$4=57,LARGE(C9:D56,6)))) ->  | Q12: 5. Schuss
B13: 7 | E13: 0 | F13: 1 | J13: =IF($B$4=90,LARGE(C11:D57,7),IF($B$4="St",LARGE(C12:D57,7),IF($B$4=57,LARGE(C10:D57,7)))) ->  | Q13: 6. Schuss
B14: 8 | E14: 0 | F14: 1 | J14: =IF($B$4=90,LARGE(C12:D58,8),IF($B$4="St",LARGE(C13:D58,8),IF($B$4=57,LARGE(C11:D58,8)))) ->  | Q14: 7. Schuss
B15: 9 | E15: 0 | F15: 1 | J15: =IF($B$4=90,LARGE(C13:D59,9),IF($B$4="St",LARGE(C14:D59,9),IF($B$4=57,LARGE(C12:D59,9)))) ->  | Q15: 8. Schuss
B16: 10 | E16: 0 | F16: 1 | Q16: 9. Schuss
B17: 11 | E17: 0 | F17: 1 | Q17: 10. Schuss
B18: 12 | E18: 0 | F18: 1 | Q18: Total | R18: =SUM(R8:R17) -> 0
B19: 13 | E19: 0 | F19: 1
B20: 14 | E20: 0 | F20: 1
B21: 15 | E21: 0 | F21: 1
B22: 16 | E22: 0 | F22: 1
B23: 17 | E23: 0 | F23: 1
B24: 18 | E24: 0 | F24: 1
B25: 19 | E25: 0 | F25: 1
B26: 20 | E26: 0 | F26: 1
B27: 21 | E27: 0 | F27: 1
B28: 22 | E28: 0 | F28: 1
B29: 23 | E29: 0 | F29: 1
B30: 24 | E30: 0 | F30: 1
B31: 25 | E31: 0 | F31: 1
B32: 26 | E32: 0 | F32: 1
B33: 27 | E33: 0 | F33: 1
B34: 28 | E34: 0 | F34: 1
B35: 29 | E35: 0 | F35: 1
B36: 30 | E36: 0 | F36: 1
B37: 31 | E37: 0 | F37: 1
B38: 32 | E38: 0 | F38: 1
B39: 33 | E39: =SUM($C39:$D39) -> 0 | F39: =RANK(E39,$E$7:$E$56,0) -> 1
B40: 34 | E40: 0 | F40: 1
B41: 35 | E41: 0 | F41: 1
B42: 36 | E42: 0 | F42: 1
B43: 37 | E43: 0 | F43: 1
B44: 38 | E44: 0 | F44: 1
B45: 39 | E45: 0 | F45: 1
B46: 40 | E46: 0 | F46: 1
B47: 41 | E47: 0 | F47: 1
B48: 42 | E48: 0 | F48: 1
B49: 43 | E49: 0 | F49: 1
B50: 44 | E50: 0 | F50: 1
B51: 45 | E51: 0 | F51: 1
B52: 46 | E52: 0 | F52: 1
B53: 47 | E53: 0 | F53: 1
B54: 48 | E54: 0 | F54: 1
B55: 49 | E55: 0 | F55: 1
B56: 50 | E56: 0 | F56: 1

Sheet A. Kunz
A1: Name | B1: Kunz Alfred
A2: Gutschein | B2: Coop
A4: Waffe | B4: 90
B5: Sau Stich | N5: Glück | Q5: Auszahlung
B6: Nr. Passe | C6: 1. Schuss | D6: 2. Schuss | E6: Total | F6: Rang | H6: Besten Passen | J6: Besten Einzel | L6: Total Passen und Einzel
B7: 1 | C7: 97 | D7: 90 | E7: =SUM($C7:$D7) -> 187 | F7: =RANK(E7,$E$7:$E$56,0) -> 1 | H7: =LARGE(E7:E56,1) -> 187 | J7: =IF($B$4=90,LARGE(C10:D56,1),IF($B$4="St",LARGE(C11:D56,1),IF($B$4=57,LARGE(C9:D56,1)))) -> 94
B8: 2 | C8: 81 | D8: 99 | E8: =SUM($C8:$D8) -> 180 | F8: =RANK(E8,$E$7:$E$56,0) -> 2 | H8: =LARGE(E7:E56,2) -> 180 | J8: =IF($B$4=90,LARGE(C10:D56,2),IF($B$4="St",LARGE(C11:D56,2),IF($B$4=57,LARGE(C9:D56,2)))) -> 92 | L8: =IF($B$4=57,SUM(H7:H8,J7:J12),IF($B$4=90,SUM(H7:H9,J7:J10),IF($B$4="St",SUM(H7:H10,J7:J8)))) -> 915 | N8: Ansage | O8: 210 | Q8: 1. Schuss | R8: 9
B9: 3 | C9: 99 | D9: 79 | E9: =SUM($C9:$D9) -> 178 | F9: =RANK(E9,$E$7:$E$56,0) -> 3 | H9: =LARGE(E7:E56,3) -> 178 | J9: =IF($B$4=90,LARGE($C$10:$D$56,3),IF($B$4="St",LARGE($C$11:$D$56,3),IF($B$4=57,LARGE($C$9:$D$56,3)))) -> 92 | N9: Geschossen | O9: 228 | Q9: 2. Schuss | R9: 7
B10: 4 | C10: 92 | D10: 85 | E10: =SUM($C10:$D10) -> 177 | F10: =RANK(E10,$E$7:$E$56,0) -> 4 | H10: =LARGE(E7:E56,4) -> 177 | J10: =IF($B$4=90,LARGE(C10:D56,4),IF($B$4="St",LARGE(C11:D56,4),IF($B$4=57,LARGE(C9:D56,4)))) -> 92 | N10: Differenz | O10: =IF(O8>0,IF(O8>O9,O8-O9,O9-O8),"") -> 18 | Q10: 3. Schuss | R10: 9
B11: 5 | C11: 90 | D11: 81 | E11: =SUM($C11:$D11) -> 171 | F11: =RANK(E11,$E$7:$E$56,0) -> 5 | J11: =IF($B$4=90,LARGE(C10:D56,5),IF($B$4="St",LARGE(C11:D56,5),IF($B$4=57,LARGE(C9:D56,5)))) -> 91 | Q11: 4. Schuss | R11: 8
B12: 6 | C12: 89 | D12: 82 | E12: =SUM($C12:$D12) -> 171 | F12: =RANK(E12,$E$7:$E$56,0) -> 5 | J12: =IF($B$4=90,LARGE(C10:D56,6),IF($B$4="St",LARGE(C11:D56,6),IF($B$4=57,LARGE(C9:D56,6)))) -> 90 | Q12: 5. Schuss | R12: 9
B13: 7 | C13: 92 | D13: 74 | E13: =SUM($C13:$D13) -> 166 | F13: =RANK(E13,$E$7:$E$56,0) -> 7 | J13: =IF($B$4=90,LARGE(C11:D57,7),IF($B$4="St",LARGE(C12:D57,7),IF($B$4=57,LARGE(C10:D57,7)))) -> 89 | Q13: 6. Schuss | R13: 7
B14: 8 | C14: 73 | D14: 89 | E14: =SUM($C14:$D14) -> 162 | F14: =RANK(E14,$E$7:$E$56,0) -> 8 | J14: =IF($B$4=90,LARGE(C12:D58,8),IF($B$4="St",LARGE(C13:D58,8),IF($B$4=57,LARGE(C11:D58,8)))) -> 83 | Q14: 7. Schuss | R14: 6
B15: 9 | C15: 91 | D15: 70 | E15: =SUM($C15:$D15) -> 161 | F15: =RANK(E15,$E$7:$E$56,0) -> 9 | J15: =IF($B$4=90,LARGE(C13:D59,9),IF($B$4="St",LARGE(C14:D59,9),IF($B$4=57,LARGE(C12:D59,9)))) -> 80 | Q15: 8. Schuss | R15: 6
B16: 10 | C16: 61 | D16: 94 | E16: =SUM($C16:$D16) -> 155 | F16: =RANK(E16,$E$7:$E$56,0) -> 10 | Q16: 9. Schuss | R16: 9
B17: 11 | C17: 72 | D17: 81 | E17: =SUM($C17:$D17) -> 153 | F17: =RANK(E17,$E$7:$E$56,0) -> 11 | Q17: 10. Schuss | R17: 7
B18: 12 | C18: 80 | D18: 69 | E18: =SUM($C18:$D18) -> 149 | F18: =RANK(E18,$E$7:$E$56,0) -> 12 | Q18: Total | R18: =SUM(R8:R17) -> 77
B19: 13 | C19: 83 | D19: 64 | E19: =SUM($C19:$D19) -> 147 | F19: =RANK(E19,$E$7:$E$56,0) -> 13
B20: 14 | C20: 75 | D20: 71 | E20: =SUM($C20:$D20) -> 146 | F20: =RANK(E20,$E$7:$E$56,0) -> 14
B21: 15 | C21: 67 | D21: 79 | E21: =SUM($C21:$D21) -> 146 | F21: =RANK(E21,$E$7:$E$56,0) -> 14
B22: 16 | C22: 73 | D22: 73 | E22: =SUM($C22:$D22) -> 146 | F22: =RANK(E22,$E$7:$E$56,0) -> 14
B23: 17 | C23: 83 | D23: 54 | E23: =SUM($C23:$D23) -> 137 | F23: =RANK(E23,$E$7:$E$56,0) -> 17
B24: 18 | C24: 59 | D24: 77 | E24: =SUM($C24:$D24) -> 136 | F24: =RANK(E24,$E$7:$E$56,0) -> 18
B25: 19 | C25: 79 | D25: 54 | E25: =SUM($C25:$D25) -> 133 | F25: =RANK(E25,$E$7:$E$56,0) -> 19
B26: 20 | C26: 76 | D26: 53 | E26: =SUM($C26:$D26) -> 129 | F26: =RANK(E26,$E$7:$E$56,0) -> 20
B27: 21 | C27: 73 | D27: 54 | E27: =SUM($C27:$D27) -> 127 | F27: =RANK(E27,$E$7:$E$56,0) -> 21
B28: 22 | C28: 67 | D28: 59 | E28: =SUM($C28:$D28) -> 126 | F28: =RANK(E28,$E$7:$E$56,0) -> 22
B29: 23 | C29: 79 | D29: 46 | E29: =SUM($C29:$D29) -> 125 | F29: =RANK(E29,$E$7:$E$56,0) -> 23
B30: 24 | C30: 92 | D30: 32 | E30: =SUM($C30:$D30) -> 124 | F30: =RANK(E30,$E$7:$E$56,0) -> 24
B31: 25 | C31: 77 | D31: 46 | E31: =SUM($C31:$D31) -> 123 | F31: =RANK(E31,$E$7:$E$56,0) -> 25
B32: 26 | C32: 72 | D32: 48 | E32: =SUM($C32:$D32) -> 120 | F32: =RANK(E32,$E$7:$E$56,0) -> 26
B33: 27 | C33: 71 | D33: 39 | E33: =SUM($C33:$D33) -> 110 | F33: =RANK(E33,$E$7:$E$56,0) -> 27
B34: 28 | C34: 49 | D34: 54 | E34: =SUM($C34:$D34) -> 103 | F34: =RANK(E34,$E$7:$E$56,0) -> 28
B35: 29 | C35: 27 | D35: 71 | E35: =SUM($C35:$D35) -> 98 | F35: =RANK(E35,$E$7:$E$56,0) -> 29
B36: 30 | C36: 63 | D36: 2 | E36: =SUM($C36:$D36) -> 65 | F36: =RANK(E36,$E$7:$E$56,0) -> 30
B37: 31 | E37: =SUM($C37:$D37) -> 0 | F37: =RANK(E37,$E$7:$E$56,0) -> 31
B38: 32 | E38: =SUM($C38:$D38) -> 0 | F38: =RANK(E38,$E$7:$E$56,0) -> 31
B39: 33 | E39: =SUM($C39:$D39) -> 0 | F39: =RANK(E39,$E$7:$E$56,0) -> 31
B40: 34 | E40: =SUM($C40:$D40) -> 0 | F40: =RANK(E40,$E$7:$E$56,0) -> 31
B41: 35 | E41: =SUM($C41:$D41) -> 0 | F41: =RANK(E41,$E$7:$E$56,0) -> 31
B42: 36 | E42: =SUM($C42:$D42) -> 0 | F42: =RANK(E42,$E$7:$E$56,0) -> 31
B43: 37 | E43: =SUM($C43:$D43) -> 0 | F43: =RANK(E43,$E$7:$E$56,0) -> 31
B44: 38 | E44: =SUM($C44:$D44) -> 0 | F44: =RANK(E44,$E$7:$E$56,0) -> 31
B45: 39 | E45: =SUM($C45:$D45) -> 0 | F45: =RANK(E45,$E$7:$E$56,0) -> 31
B46: 40 | E46: =SUM($C46:$D46) -> 0 | F46: =RANK(E46,$E$7:$E$56,0) -> 31
B47: 41 | E47: =SUM($C47:$D47) -> 0 | F47: =RANK(E47,$E$7:$E$56,0) -> 31
B48: 42 | E48: =SUM($C48:$D48) -> 0 | F48: =RANK(E48,$E$7:$E$56,0) -> 31
B49: 43 | E49: =SUM($C49:$D49) -> 0 | F49: =RANK(E49,$E$7:$E$56,0) -> 31
B50: 44 | E50: =SUM($C50:$D50) -> 0 | F50: =RANK(E50,$E$7:$E$56,0) -> 31
B51: 45 | E51: =SUM($C51:$D51) -> 0 | F51: =RANK(E51,$E$7:$E$56,0) -> 31
B52: 46 | E52: =SUM($C52:$D52) -> 0 | F52: =RANK(E52,$E$7:$E$56,0) -> 31
B53: 47 | E53: =SUM($C53:$D53) -> 0 | F53: =RANK(E53,$E$7:$E$56,0) -> 31
B54: 48 | E54: =SUM($C54:$D54) -> 0 | F54: =RANK(E54,$E$7:$E$56,0) -> 31
B55: 49 | E55: =SUM($C55:$D55) -> 0 | F55: =RANK(E55,$E$7:$E$56,0) -> 31
B56: 50 | E56: =SUM($C56:$D56) -> 0 | F56: =RANK(E56,$E$7:$E$56,0) -> 31

Sheet H. Lüthi
A1: Name | B1: Lüthi Hans
A4: Waffe | B4: 90
B5: Sau Stich | N5: Glück | Q5: Auszahlung
B6: Nr. Passe | C6: 1. Schuss | D6: 2. Schuss | E6: Total | F6: Rang | H6: Besten Passen | J6: Besten Einzel | L6: Total Passen und Einzel
B7: 1 | E7: =SUM($C7:$D7) -> 0 | F7: =RANK(E7,$E$7:$E$56,0) -> 1 | H7: =LARGE(E7:E56,1) -> 0 | J7: =IF($B$4=90,LARGE(C10:D56,1),IF($B$4="St",LARGE(C11:D56,1),IF($B$4=57,LARGE(C9:D56,1)))) -> 
B8: 2 | E8: 0 | F8: 1 | H8: =LARGE(E7:E56,2) -> 0 | J8: =IF($B$4=90,LARGE(C10:D56,2),IF($B$4="St",LARGE(C11:D56,2),IF($B$4=57,LARGE(C9:D56,2)))) ->  | L8: =IF($B$4=57,SUM(H7:H8,J7:J12),IF($B$4=90,SUM(H7:H9,J7:J10),IF($B$4="St",SUM(H7:H10,J7:J8)))) ->  | N8: Ansage | Q8: 1. Schuss
B9: 3 | E9: 0 | F9: 1 | H9: =LARGE(E7:E56,3) -> 0 | J9: =IF($B$4=90,LARGE($C$10:$D$56,3),IF($B$4="St",LARGE($C$11:$D$56,3),IF($B$4=57,LARGE($C$9:$D$56,3)))) ->  | N9: Geschossen | Q9: 2. Schuss
B10: 4 | E10: 0 | F10: 1 | H10: =LARGE(E7:E56,4) -> 0 | J10: =IF($B$4=90,LARGE(C10:D56,4),IF($B$4="St",LARGE(C11:D56,4),IF($B$4=57,LARGE(C9:D56,4)))) ->  | N10: Differenz | O10: =IF(O8>0,IF(O8>O9,O8-O9,O9-O8),"") ->  | Q10: 3. Schuss
B11: 5 | E11: 0 | F11: 1 | J11: =IF($B$4=90,LARGE(C10:D56,5),IF($B$4="St",LARGE(C11:D56,5),IF($B$4=57,LARGE(C9:D56,5)))) ->  | Q11: 4. Schuss
B12: 6 | E12: 0 | F12: 1 | J12: =IF($B$4=90,LARGE(C10:D56,6),IF($B$4="St",LARGE(C11:D56,6),IF($B$4=57,LARGE(C9:D56,6)))) ->  | Q12: 5. Schuss
B13: 7 | E13: 0 | F13: 1 | J13: =IF($B$4=90,LARGE(C11:D57,7),IF($B$4="St",LARGE(C12:D57,7),IF($B$4=57,LARGE(C10:D57,7)))) ->  | Q13: 6. Schuss
B14: 8 | E14: 0 | F14: 1 | J14: =IF($B$4=90,LARGE(C12:D58,8),IF($B$4="St",LARGE(C13:D58,8),IF($B$4=57,LARGE(C11:D58,8)))) ->  | Q14: 7. Schuss
B15: 9 | E15: 0 | F15: 1 | J15: =IF($B$4=90,LARGE(C13:D59,9),IF($B$4="St",LARGE(C14:D59,9),IF($B$4=57,LARGE(C12:D59,9)))) ->  | Q15: 8. Schuss
B16: 10 | E16: 0 | F16: 1 | Q16: 9. Schuss
B17: 11 | E17: 0 | F17: 1 | Q17: 10. Schuss
B18: 12 | E18: 0 | F18: 1 | Q18: Total | R18: =SUM(R8:R17) -> 0
B19: 13 | E19: 0 | F19: 1
B20: 14 | E20: 0 | F20: 1
B21: 15 | E21: 0 | F21: 1
B22: 16 | E22: 0 | F22: 1
B23: 17 | E23: 0 | F23: 1
B24: 18 | E24: 0 | F24: 1
B25: 19 | E25: 0 | F25: 1
B26: 20 | E26: 0 | F26: 1
B27: 21 | E27: 0 | F27: 1
B28: 22 | E28: 0 | F28: 1
B29: 23 | E29: 0 | F29: 1
B30: 24 | E30: 0 | F30: 1
B31: 25 | E31: 0 | F31: 1
B32: 26 | E32: 0 | F32: 1
B33: 27 | E33: 0 | F33: 1
B34: 28 | E34: 0 | F34: 1
B35: 29 | E35: 0 | F35: 1
B36: 30 | E36: 0 | F36: 1
B37: 31 | E37: 0 | F37: 1
B38: 32 | E38: 0 | F38: 1
B39: 33 | E39: =SUM($C39:$D39) -> 0 | F39: =RANK(E39,$E$7:$E$56,0) -> 1
B40: 34 | E40: 0 | F40: 1
B41: 35 | E41: 0 | F41: 1
B42: 36 | E42: 0 | F42: 1
B43: 37 | E43: 0 | F43: 1
B44: 38 | E44: 0 | F44: 1
B45: 39 | E45: 0 | F45: 1
B46: 40 | E46: 0 | F46: 1
B47: 41 | E47: 0 | F47: 1
B48: 42 | E48: 0 | F48: 1
B49: 43 | E49: 0 | F49: 1
B50: 44 | E50: 0 | F50: 1
B51: 45 | E51: 0 | F51: 1
B52: 46 | E52: 0 | F52: 1
B53: 47 | E53: 0 | F53: 1
B54: 48 | E54: 0 | F54: 1
B55: 49 | E55: 0 | F55: 1
B56: 50 | E56: 0 | F56: 1

Sheet F. Brügger
A1: Name | B1: Brügger Fred
A2: Gutschein
A4: Waffe | B4: 90
B5: Sau Stich | N5: Glück | Q5: Auszahlung
B6: Nr. Passe | C6: 1. Schuss | D6: 2. Schuss | E6: Total | F6: Rang | H6: Besten Passen | J6: Besten Einzel | L6: Total Passen und Einzel
B7: 1 | E7: =SUM($C7:$D7) -> 0 | F7: =RANK(E7,$E$7:$E$56,0) -> 1 | H7: =LARGE(E7:E56,1) -> 0 | J7: =IF($B$4=90,LARGE(C10:D56,1),IF($B$4="St",LARGE(C11:D56,1),IF($B$4=57,LARGE(C9:D56,1)))) -> 
B8: 2 | E8: 0 | F8: 1 | H8: =LARGE(E7:E56,2) -> 0 | J8: =IF($B$4=90,LARGE(C10:D56,2),IF($B$4="St",LARGE(C11:D56,2),IF($B$4=57,LARGE(C9:D56,2)))) ->  | L8: =IF($B$4=57,SUM(H7:H8,J7:J12),IF($B$4=90,SUM(H7:H9,J7:J10),IF($B$4="St",SUM(H7:H10,J7:J8)))) ->  | N8: Ansage | Q8: 1. Schuss
B9: 3 | E9: 0 | F9: 1 | H9: =LARGE(E7:E56,3) -> 0 | J9: =IF($B$4=90,LARGE($C$10:$D$56,3),IF($B$4="St",LARGE($C$11:$D$56,3),IF($B$4=57,LARGE($C$9:$D$56,3)))) ->  | N9: Geschossen | Q9: 2. Schuss
B10: 4 | E10: 0 | F10: 1 | H10: =LARGE(E7:E56,4) -> 0 | J10: =IF($B$4=90,LARGE(C10:D56,4),IF($B$4="St",LARGE(C11:D56,4),IF($B$4=57,LARGE(C9:D56,4)))) ->  | N10: Differenz | O10: =IF(O8>0,IF(O8>O9,O8-O9,O9-O8),"") ->  | Q10: 3. Schuss
B11: 5 | E11: 0 | F11: 1 | J11: =IF($B$4=90,LARGE(C10:D56,5),IF($B$4="St",LARGE(C11:D56,5),IF($B$4=57,LARGE(C9:D56,5)))) ->  | Q11: 4. Schuss
B12: 6 | E12: 0 | F12: 1 | J12: =IF($B$4=90,LARGE(C10:D56,6),IF($B$4="St",LARGE(C11:D56,6),IF($B$4=57,LARGE(C9:D56,6)))) ->  | Q12: 5. Schuss
B13: 7 | E13: 0 | F13: 1 | J13: =IF($B$4=90,LARGE(C11:D57,7),IF($B$4="St",LARGE(C12:D57,7),IF($B$4=57,LARGE(C10:D57,7)))) ->  | Q13: 6. Schuss
B14: 8 | E14: 0 | F14: 1 | J14: =IF($B$4=90,LARGE(C12:D58,8),IF($B$4="St",LARGE(C13:D58,8),IF($B$4=57,LARGE(C11:D58,8)))) ->  | Q14: 7. Schuss
B15: 9 | E15: 0 | F15: 1 | J15: =IF($B$4=90,LARGE(C13:D59,9),IF($B$4="St",LARGE(C14:D59,9),IF($B$4=57,LARGE(C12:D59,9)))) ->  | Q15: 8. Schuss
B16: 10 | E16: 0 | F16: 1 | Q16: 9. Schuss
B17: 11 | E17: 0 | F17: 1 | Q17: 10. Schuss
B18: 12 | E18: 0 | F18: 1 | Q18: Total | R18: =SUM(R8:R17) -> 0
B19: 13 | E19: 0 | F19: 1
B20: 14 | E20: 0 | F20: 1
B21: 15 | E21: 0 | F21: 1
B22: 16 | E22: 0 | F22: 1
B23: 17 | E23: 0 | F23: 1
B24: 18 | E24: 0 | F24: 1
B25: 19 | E25: 0 | F25: 1
B26: 20 | E26: 0 | F26: 1
B27: 21 | E27: 0 | F27: 1
B28: 22 | E28: 0 | F28: 1
B29: 23 | E29: 0 | F29: 1
B30: 24 | E30: 0 | F30: 1
B31: 25 | E31: 0 | F31: 1
B32: 26 | E32: 0 | F32: 1
B33: 27 | E33: 0 | F33: 1
B34: 28 | E34: 0 | F34: 1
B35: 29 | E35: 0 | F35: 1
B36: 30 | E36: 0 | F36: 1
B37: 31 | E37: 0 | F37: 1
B38: 32 | E38: 0 | F38: 1
B39: 33 | E39: =SUM($C39:$D39) -> 0 | F39: =RANK(E39,$E$7:$E$56,0) -> 1
B40: 34 | E40: 0 | F40: 1
B41: 35 | E41: 0 | F41: 1
B42: 36 | E42: 0 | F42: 1
B43: 37 | E43: 0 | F43: 1
B44: 38 | E44: 0 | F44: 1
B45: 39 | E45: 0 | F45: 1
B46: 40 | E46: 0 | F46: 1
B47: 41 | E47: 0 | F47: 1
B48: 42 | E48: 0 | F48: 1
B49: 43 | E49: 0 | F49: 1
B50: 44 | E50: 0 | F50: 1
B51: 45 | E51: 0 | F51: 1
B52: 46 | E52: 0 | F52: 1
B53: 47 | E53: 0 | F53: 1
B54: 48 | E54: 0 | F54: 1
B55: 49 | E55: 0 | F55: 1
B56: 50 | E56: 0 | F56: 1

Sheet R. Krähenbühl
A1: Name | B1: Krähenbühl Rita
A2: Gutschein | B2: Migros
A4: Waffe | B4: 57
B5: Sau Stich | N5: Glück | Q5: Auszahlung
B6: Nr. Passe | C6: 1. Schuss | D6: 2. Schuss | E6: Total | F6: Rang | H6: Besten Passen | J6: Besten Einzel | L6: Total Passen und Einzel
B7: 1 | C7: 87 | D7: 94 | E7: =SUM($C7:$D7) -> 181 | F7: =RANK(E7,$E$7:$E$56,0) -> 1 | H7: =LARGE(E7:E56,1) -> 181 | J7: =IF($B$4=90,LARGE(C10:D56,1),IF($B$4="St",LARGE(C11:D56,1),IF($B$4=57,LARGE(C9:D56,1)))) -> 92
B8: 2 | C8: 95 | D8: 85 | E8: =SUM($C8:$D8) -> 180 | F8: =RANK(E8,$E$7:$E$56,0) -> 2 | H8: =LARGE(E7:E56,2) -> 180 | J8: =IF($B$4=90,LARGE(C10:D56,2),IF($B$4="St",LARGE(C11:D56,2),IF($B$4=57,LARGE(C9:D56,2)))) -> 91 | L8: =IF($B$4=57,SUM(H7:H8,J7:J12),IF($B$4=90,SUM(H7:H9,J7:J10),IF($B$4="St",SUM(H7:H10,J7:J8)))) -> 901 | N8: Ansage | Q8: 1. Schuss | R8: 7
B9: 3 | C9: 83 | D9: 91 | E9: =SUM($C9:$D9) -> 174 | F9: =RANK(E9,$E$7:$E$56,0) -> 3 | H9: =LARGE(E7:E56,3) -> 174 | J9: =IF($B$4=90,LARGE($C$10:$D$56,3),IF($B$4="St",LARGE($C$11:$D$56,3),IF($B$4=57,LARGE($C$9:$D$56,3)))) -> 90 | N9: Geschossen | Q9: 2. Schuss | R9: 9
B10: 4 | C10: 82 | D10: 88 | E10: =SUM($C10:$D10) -> 170 | F10: =RANK(E10,$E$7:$E$56,0) -> 4 | H10: =LARGE(E7:E56,4) -> 170 | J10: =IF($B$4=90,LARGE(C10:D56,4),IF($B$4="St",LARGE(C11:D56,4),IF($B$4=57,LARGE(C9:D56,4)))) -> 90 | N10: Differenz | O10: =IF(O8>0,IF(O8>O9,O8-O9,O9-O8),"") ->  | Q10: 3. Schuss | R10: 7
B11: 5 | C11: 81 | D11: 89 | E11: =SUM($C11:$D11) -> 170 | F11: =RANK(E11,$E$7:$E$56,0) -> 4 | J11: =IF($B$4=90,LARGE(C10:D56,5),IF($B$4="St",LARGE(C11:D56,5),IF($B$4=57,LARGE(C9:D56,5)))) -> 89 | Q11: 4. Schuss | R11: 7
B12: 6 | C12: 90 | D12: 79 | E12: =SUM($C12:$D12) -> 169 | F12: =RANK(E12,$E$7:$E$56,0) -> 6 | J12: =IF($B$4=90,LARGE(C10:D56,6),IF($B$4="St",LARGE(C11:D56,6),IF($B$4=57,LARGE(C9:D56,6)))) -> 88 | Q12: 5. Schuss | R12: 9
B13: 7 | C13: 83 | D13: 84 | E13: =SUM($C13:$D13) -> 167 | F13: =RANK(E13,$E$7:$E$56,0) -> 7 | J13: =IF($B$4=90,LARGE(C11:D57,7),IF($B$4="St",LARGE(C12:D57,7),IF($B$4=57,LARGE(C10:D57,7)))) -> 86 | Q13: 6. Schuss | R13: 7
B14: 8 | C14: 85 | D14: 72 | E14: =SUM($C14:$D14) -> 157 | F14: =RANK(E14,$E$7:$E$56,0) -> 8 | J14: =IF($B$4=90,LARGE(C12:D58,8),IF($B$4="St",LARGE(C13:D58,8),IF($B$4=57,LARGE(C11:D58,8)))) -> 84 | Q14: 7. Schuss | R14: 8
B15: 9 | C15: 83 | D15: 72 | E15: =SUM($C15:$D15) -> 155 | F15: =RANK(E15,$E$7:$E$56,0) -> 9 | J15: =IF($B$4=90,LARGE(C13:D59,9),IF($B$4="St",LARGE(C14:D59,9),IF($B$4=57,LARGE(C12:D59,9)))) -> 83 | Q15: 8. Schuss | R15: 5
B16: 10 | C16: 90 | D16: 63 | E16: =SUM($C16:$D16) -> 153 | F16: =RANK(E16,$E$7:$E$56,0) -> 10 | Q16: 9. Schuss | R16: 6
B17: 11 | C17: 76 | D17: 76 | E17: =SUM($C17:$D17) -> 152 | F17: =RANK(E17,$E$7:$E$56,0) -> 11 | Q17: 10. Schuss | R17: 9
B18: 12 | C18: 56 | D18: 92 | E18: =SUM($C18:$D18) -> 148 | F18: =RANK(E18,$E$7:$E$56,0) -> 12 | Q18: Total | R18: =SUM(R8:R17) -> 74
B19: 13 | C19: 75 | D19: 72 | E19: =SUM($C19:$D19) -> 147 | F19: =RANK(E19,$E$7:$E$56,0) -> 13
B20: 14 | C20: 50 | D20: 86 | E20: =SUM($C20:$D20) -> 136 | F20: =RANK(E20,$E$7:$E$56,0) -> 14
B21: 15 | C21: 64 | D21: 66 | E21: =SUM($C21:$D21) -> 130 | F21: =RANK(E21,$E$7:$E$56,0) -> 15
B22: 16 | C22: 54 | D22: 69 | E22: =SUM($C22:$D22) -> 123 | F22: =RANK(E22,$E$7:$E$56,0) -> 16
B23: 17 | C23: 36 | D23: 87 | E23: =SUM($C23:$D23) -> 123 | F23: =RANK(E23,$E$7:$E$56,0) -> 16
B24: 18 | C24: 58 | D24: 63 | E24: =SUM($C24:$D24) -> 121 | F24: =RANK(E24,$E$7:$E$56,0) -> 18
B25: 19 | C25: 77 | D25: 41 | E25: =SUM($C25:$D25) -> 118 | F25: =RANK(E25,$E$7:$E$56,0) -> 19
B26: 20 | C26: 39 | D26: 69 | E26: =SUM($C26:$D26) -> 108 | F26: =RANK(E26,$E$7:$E$56,0) -> 20
B27: 21 | E27: =SUM($C27:$D27) -> 0 | F27: =RANK(E27,$E$7:$E$56,0) -> 21
B28: 22 | E28: =SUM($C28:$D28) -> 0 | F28: =RANK(E28,$E$7:$E$56,0) -> 21
B29: 23 | E29: =SUM($C29:$D29) -> 0 | F29: =RANK(E29,$E$7:$E$56,0) -> 21
B30: 24 | E30: =SUM($C30:$D30) -> 0 | F30: =RANK(E30,$E$7:$E$56,0) -> 21
B31: 25 | E31: =SUM($C31:$D31) -> 0 | F31: =RANK(E31,$E$7:$E$56,0) -> 21
B32: 26 | E32: =SUM($C32:$D32) -> 0 | F32: =RANK(E32,$E$7:$E$56,0) -> 21
B33: 27 | E33: =SUM($C33:$D33) -> 0 | F33: =RANK(E33,$E$7:$E$56,0) -> 21
B34: 28 | E34: =SUM($C34:$D34) -> 0 | F34: =RANK(E34,$E$7:$E$56,0) -> 21
B35: 29 | E35: =SUM($C35:$D35) -> 0 | F35: =RANK(E35,$E$7:$E$56,0) -> 21
B36: 30 | E36: =SUM($C36:$D36) -> 0 | F36: =RANK(E36,$E$7:$E$56,0) -> 21
B37: 31 | E37: =SUM($C37:$D37) -> 0 | F37: =RANK(E37,$E$7:$E$56,0) -> 21
B38: 32 | E38: =SUM($C38:$D38) -> 0 | F38: =RANK(E38,$E$7:$E$56,0) -> 21
B39: 33 | E39: =SUM($C39:$D39) -> 0 | F39: =RANK(E39,$E$7:$E$56,0) -> 21
B40: 34 | E40: =SUM($C40:$D40) -> 0 | F40: =RANK(E40,$E$7:$E$56,0) -> 21
B41: 35 | E41: =SUM($C41:$D41) -> 0 | F41: =RANK(E41,$E$7:$E$56,0) -> 21
B42: 36 | E42: =SUM($C42:$D42) -> 0 | F42: =RANK(E42,$E$7:$E$56,0) -> 21
B43: 37 | E43: =SUM($C43:$D43) -> 0 | F43: =RANK(E43,$E$7:$E$56,0) -> 21
B44: 38 | E44: =SUM($C44:$D44) -> 0 | F44: =RANK(E44,$E$7:$E$56,0) -> 21
B45: 39 | E45: =SUM($C45:$D45) -> 0 | F45: =RANK(E45,$E$7:$E$56,0) -> 21
B46: 40 | E46: =SUM($C46:$D46) -> 0 | F46: =RANK(E46,$E$7:$E$56,0) -> 21
B47: 41 | E47: =SUM($C47:$D47) -> 0 | F47: =RANK(E47,$E$7:$E$56,0) -> 21
B48: 42 | E48: =SUM($C48:$D48) -> 0 | F48: =RANK(E48,$E$7:$E$56,0) -> 21
B49: 43 | E49: =SUM($C49:$D49) -> 0 | F49: =RANK(E49,$E$7:$E$56,0) -> 21
B50: 44 | E50: =SUM($C50:$D50) -> 0 | F50: =RANK(E50,$E$7:$E$56,0) -> 21
B51: 45 | E51: =SUM($C51:$D51) -> 0 | F51: =RANK(E51,$E$7:$E$56,0) -> 21
B52: 46 | E52: =SUM($C52:$D52) -> 0 | F52: =RANK(E52,$E$7:$E$56,0) -> 21
B53: 47 | E53: =SUM($C53:$D53) -> 0 | F53: =RANK(E53,$E$7:$E$56,0) -> 21
B54: 48 | E54: =SUM($C54:$D54) -> 0 | F54: =RANK(E54,$E$7:$E$56,0) -> 21
B55: 49 | E55: =SUM($C55:$D55) -> 0 | F55: =RANK(E55,$E$7:$E$56,0) -> 21
B56: 50 | E56: =SUM($C56:$D56) -> 0 | F56: =RANK(E56,$E$7:$E$56,0) -> 21

Sheet Ch. Liechti
A1: Name | B1: Liechti Charles
A2: Gutschein | B2: Coop
A4: Waffe | B4: 90
B5: Sau Stich | N5: Glück | Q5: Auszahlung
B6: Nr. Passe | C6: 1. Schuss | D6: 2. Schuss | E6: Total | F6: Rang | H6: Besten Passen | J6: Besten Einzel | L6: Total Passen und Einzel
B7: 1 | C7: 94 | D7: 99 | E7: =SUM($C7:$D7) -> 193 | F7: =RANK(E7,$E$7:$E$56,0) -> 1 | H7: =LARGE(E7:E56,1) -> 193 | J7: =IF($B$4=90,LARGE(C10:D56,1),IF($B$4="St",LARGE(C11:D56,1),IF($B$4=57,LARGE(C9:D56,1)))) -> 95
B8: 2 | C8: 94 | D8: 92 | E8: =SUM($C8:$D8) -> 186 | F8: =RANK(E8,$E$7:$E$56,0) -> 2 | H8: =LARGE(E7:E56,2) -> 186 | J8: =IF($B$4=90,LARGE(C10:D56,2),IF($B$4="St",LARGE(C11:D56,2),IF($B$4=57,LARGE(C9:D56,2)))) -> 95 | L8: =IF($B$4=57,SUM(H7:H8,J7:J12),IF($B$4=90,SUM(H7:H9,J7:J10),IF($B$4="St",SUM(H7:H10,J7:J8)))) -> 935 | N8: Ansage | O8: 250 | Q8: 1. Schuss
B9: 3 | C9: 91 | D9: 90 | E9: =SUM($C9:$D9) -> 181 | F9: =RANK(E9,$E$7:$E$56,0) -> 3 | H9: =LARGE(E7:E56,3) -> 181 | J9: =IF($B$4=90,LARGE($C$10:$D$56,3),IF($B$4="St",LARGE($C$11:$D$56,3),IF($B$4=57,LARGE($C$9:$D$56,3)))) -> 94 | N9: Geschossen | O9: 266 | Q9: 2. Schuss
B10: 4 | C10: 85 | D10: 95 | E10: =SUM($C10:$D10) -> 180 | F10: =RANK(E10,$E$7:$E$56,0) -> 4 | H10: =LARGE(E7:E56,4) -> 180 | J10: =IF($B$4=90,LARGE(C10:D56,4),IF($B$4="St",LARGE(C11:D56,4),IF($B$4=57,LARGE(C9:D56,4)))) -> 91 | N10: Differenz | O10: =IF(O8>0,IF(O8>O9,O8-O9,O9-O8),"") -> 16 | Q10: 3. Schuss
B11: 5 | C11: 84 | D11: 95 | E11: =SUM($C11:$D11) -> 179 | F11: =RANK(E11,$E$7:$E$56,0) -> 5 | J11: =IF($B$4=90,LARGE(C10:D56,5),IF($B$4="St",LARGE(C11:D56,5),IF($B$4=57,LARGE(C9:D56,5)))) -> 91 | Q11: 4. Schuss
B12: 6 | C12: 84 | D12: 94 | E12: =SUM($C12:$D12) -> 178 | F12: =RANK(E12,$E$7:$E$56,0) -> 6 | J12: =IF($B$4=90,LARGE(C10:D56,6),IF($B$4="St",LARGE(C11:D56,6),IF($B$4=57,LARGE(C9:D56,6)))) -> 90 | Q12: 5. Schuss
B13: 7 | C13: 90 | D13: 86 | E13: =SUM($C13:$D13) -> 176 | F13: =RANK(E13,$E$7:$E$56,0) -> 7 | J13: =IF($B$4=90,LARGE(C11:D57,7),IF($B$4="St",LARGE(C12:D57,7),IF($B$4=57,LARGE(C10:D57,7)))) -> 88 | Q13: 6. Schuss
B14: 8 | C14: 88 | D14: 84 | E14: =SUM($C14:$D14) -> 172 | F14: =RANK(E14,$E$7:$E$56,0) -> 8 | J14: =IF($B$4=90,LARGE(C12:D58,8),IF($B$4="St",LARGE(C13:D58,8),IF($B$4=57,LARGE(C11:D58,8)))) -> 86 | Q14: 7. Schuss
B15: 9 | C15: 81 | D15: 91 | E15: =SUM($C15:$D15) -> 172 | F15: =RANK(E15,$E$7:$E$56,0) -> 8 | J15: =IF($B$4=90,LARGE(C13:D59,9),IF($B$4="St",LARGE(C14:D59,9),IF($B$4=57,LARGE(C12:D59,9)))) -> 85 | Q15: 8. Schuss
B16: 10 | C16: 83 | D16: 85 | E16: =SUM($C16:$D16) -> 168 | F16: =RANK(E16,$E$7:$E$56,0) -> 10 | Q16: 9. Schuss
B17: 11 | C17: 89 | D17: 79 | E17: =SUM($C17:$D17) -> 168 | F17: =RANK(E17,$E$7:$E$56,0) -> 10 | Q17: 10. Schuss
B18: 12 | C18: 80 | D18: 87 | E18: =SUM($C18:$D18) -> 167 | F18: =RANK(E18,$E$7:$E$56,0) -> 12 | Q18: Total | R18: =SUM(R8:R17) -> 0
B19: 13 | C19: 84 | D19: 75 | E19: =SUM($C19:$D19) -> 159 | F19: =RANK(E19,$E$7:$E$56,0) -> 13
B20: 14 | C20: 83 | D20: 76 | E20: =SUM($C20:$D20) -> 159 | F20: =RANK(E20,$E$7:$E$56,0) -> 13
B21: 15 | C21: 80 | D21: 76 | E21: =SUM($C21:$D21) -> 156 | F21: =RANK(E21,$E$7:$E$56,0) -> 15
B22: 16 | C22: 83 | D22: 72 | E22: =SUM($C22:$D22) -> 155 | F22: =RANK(E22,$E$7:$E$56,0) -> 16
B23: 17 | C23: 77 | D23: 77 | E23: =SUM($C23:$D23) -> 154 | F23: =RANK(E23,$E$7:$E$56,0) -> 17
B24: 18 | C24: 84 | D24: 64 | E24: =SUM($C24:$D24) -> 148 | F24: =RANK(E24,$E$7:$E$56,0) -> 18
B25: 19 | C25: 86 | D25: 61 | E25: =SUM($C25:$D25) -> 147 | F25: =RANK(E25,$E$7:$E$56,0) -> 19
B26: 20 | C26: 62 | D26: 69 | E26: =SUM($C26:$D26) -> 131 | F26: =RANK(E26,$E$7:$E$56,0) -> 20
B27: 21 | C27: 66 | D27: 63 | E27: =SUM($C27:$D27) -> 129 | F27: =RANK(E27,$E$7:$E$56,0) -> 21
B28: 22 | C28: 91 | D28: 37 | E28: =SUM($C28:$D28) -> 128 | F28: =RANK(E28,$E$7:$E$56,0) -> 22
B29: 23 | C29: 71 | D29: 42 | E29: =SUM($C29:$D29) -> 113 | F29: =RANK(E29,$E$7:$E$56,0) -> 23
B30: 24 | C30: 46 | D30: 54 | E30: =SUM($C30:$D30) -> 100 | F30: =RANK(E30,$E$7:$E$56,0) -> 24
B31: 25 | C31: 29 | D31: 58 | E31: =SUM($C31:$D31) -> 87 | F31: =RANK(E31,$E$7:$E$56,0) -> 25
B32: 26 | C32: 0 | D32: 72 | E32: =SUM($C32:$D32) -> 72 | F32: =RANK(E32,$E$7:$E$56,0) -> 26
B33: 27 | E33: =SUM($C33:$D33) -> 0 | F33: =RANK(E33,$E$7:$E$56,0) -> 27
B34: 28 | E34: =SUM($C34:$D34) -> 0 | F34: =RANK(E34,$E$7:$E$56,0) -> 27
B35: 29 | E35: =SUM($C35:$D35) -> 0 | F35: =RANK(E35,$E$7:$E$56,0) -> 27
B36: 30 | E36: =SUM($C36:$D36) -> 0 | F36: =RANK(E36,$E$7:$E$56,0) -> 27
B37: 31 | E37: =SUM($C37:$D37) -> 0 | F37: =RANK(E37,$E$7:$E$56,0) -> 27
B38: 32 | E38: =SUM($C38:$D38) -> 0 | F38: =RANK(E38,$E$7:$E$56,0) -> 27
B39: 33 | E39: =SUM($C39:$D39) -> 0 | F39: =RANK(E39,$E$7:$E$56,0) -> 27
B40: 34 | E40: =SUM($C40:$D40) -> 0 | F40: =RANK(E40,$E$7:$E$56,0) -> 27
B41: 35 | E41: =SUM($C41:$D41) -> 0 | F41: =RANK(E41,$E$7:$E$56,0) -> 27
B42: 36 | E42: =SUM($C42:$D42) -> 0 | F42: =RANK(E42,$E$7:$E$56,0) -> 27
B43: 37 | E43: =SUM($C43:$D43) -> 0 | F43: =RANK(E43,$E$7:$E$56,0) -> 27
B44: 38 | E44: =SUM($C44:$D44) -> 0 | F44: =RANK(E44,$E$7:$E$56,0) -> 27
B45: 39 | E45: =SUM($C45:$D45) -> 0 | F45: =RANK(E45,$E$7:$E$56,0) -> 27
B46: 40 | E46: =SUM($C46:$D46) -> 0 | F46: =RANK(E46,$E$7:$E$56,0) -> 27
B47: 41 | E47: =SUM($C47:$D47) -> 0 | F47: =RANK(E47,$E$7:$E$56,0) -> 27
B48: 42 | E48: =SUM($C48:$D48) -> 0 | F48: =RANK(E48,$E$7:$E$56,0) -> 27
B49: 43 | E49: =SUM($C49:$D49) -> 0 | F49: =RANK(E49,$E$7:$E$56,0) -> 27
B50: 44 | E50: =SUM($C50:$D50) -> 0 | F50: =RANK(E50,$E$7:$E$56,0) -> 27
B51: 45 | E51: =SUM($C51:$D51) -> 0 | F51: =RANK(E51,$E$7:$E$56,0) -> 27
B52: 46 | E52: =SUM($C52:$D52) -> 0 | F52: =RANK(E52,$E$7:$E$56,0) -> 27
B53: 47 | E53: =SUM($C53:$D53) -> 0 | F53: =RANK(E53,$E$7:$E$56,0) -> 27
B54: 48 | E54: =SUM($C54:$D54) -> 0 | F54: =RANK(E54,$E$7:$E$56,0) -> 27
B55: 49 | E55: =SUM($C55:$D55) -> 0 | F55: =RANK(E55,$E$7:$E$56,0) -> 27
B56: 50 | E56: =SUM($C56:$D56) -> 0 | F56: =RANK(E56,$E$7:$E$56,0) -> 27

Sheet G. Steiner
A1: Name | B1: Gladys Steiner
A2: Gutschein
A4: Waffe | B4: 90
B5: Sau Stich | N5: Glück | Q5: Auszahlung
B6: Nr. Passe | C6: 1. Schuss | D6: 2. Schuss | E6: Total | F6: Rang | H6: Besten Passen | J6: Besten Einzel | L6: Total Passen und Einzel
B7: 1 | E7: =SUM($C7:$D7) -> 0 | F7: =RANK(E7,$E$7:$E$56,0) -> 1 | H7: =LARGE(E7:E56,1) -> 0 | J7: =IF($B$4=90,LARGE(C10:D56,1),IF($B$4="St",LARGE(C11:D56,1),IF($B$4=57,LARGE(C9:D56,1)))) -> 
B8: 2 | E8: 0 | F8: 1 | H8: =LARGE(E7:E56,2) -> 0 | J8: =IF($B$4=90,LARGE(C10:D56,2),IF($B$4="St",LARGE(C11:D56,2),IF($B$4=57,LARGE(C9:D56,2)))) ->  | L8: =IF($B$4=57,SUM(H7:H8,J7:J12),IF($B$4=90,SUM(H7:H9,J7:J10),IF($B$4="St",SUM(H7:H10,J7:J8)))) ->  | N8: Ansage | Q8: 1. Schuss
B9: 3 | E9: 0 | F9: 1 | H9: =LARGE(E7:E56,3) -> 0 | J9: =IF($B$4=90,LARGE($C$10:$D$56,3),IF($B$4="St",LARGE($C$11:$D$56,3),IF($B$4=57,LARGE($C$9:$D$56,3)))) ->  | N9: Geschossen | Q9: 2. Schuss
B10: 4 | E10: 0 | F10: 1 | H10: =LARGE(E7:E56,4) -> 0 | J10: =IF($B$4=90,LARGE(C10:D56,4),IF($B$4="St",LARGE(C11:D56,4),IF($B$4=57,LARGE(C9:D56,4)))) ->  | N10: Differenz | O10: =IF(O8>0,IF(O8>O9,O8-O9,O9-O8),"") ->  | Q10: 3. Schuss
B11: 5 | E11: 0 | F11: 1 | J11: =IF($B$4=90,LARGE(C10:D56,5),IF($B$4="St",LARGE(C11:D56,5),IF($B$4=57,LARGE(C9:D56,5)))) ->  | Q11: 4. Schuss
B12: 6 | E12: 0 | F12: 1 | J12: =IF($B$4=90,LARGE(C10:D56,6),IF($B$4="St",LARGE(C11:D56,6),IF($B$4=57,LARGE(C9:D56,6)))) ->  | Q12: 5. Schuss
B13: 7 | E13: 0 | F13: 1 | J13: =IF($B$4=90,LARGE(C11:D57,7),IF($B$4="St",LARGE(C12:D57,7),IF($B$4=57,LARGE(C10:D57,7)))) ->  | Q13: 6. Schuss
B14: 8 | E14: 0 | F14: 1 | J14: =IF($B$4=90,LARGE(C12:D58,8),IF($B$4="St",LARGE(C13:D58,8),IF($B$4=57,LARGE(C11:D58,8)))) ->  | Q14: 7. Schuss
B15: 9 | E15: 0 | F15: 1 | J15: =IF($B$4=90,LARGE(C13:D59,9),IF($B$4="St",LARGE(C14:D59,9),IF($B$4=57,LARGE(C12:D59,9)))) ->  | Q15: 8. Schuss
B16: 10 | E16: 0 | F16: 1 | Q16: 9. Schuss
B17: 11 | E17: 0 | F17: 1 | Q17: 10. Schuss
B18: 12 | E18: 0 | F18: 1 | Q18: Total | R18: =SUM(R8:R17) -> 0
B19: 13 | E19: 0 | F19: 1
B20: 14 | E20: 0 | F20: 1
B21: 15 | E21: 0 | F21: 1
B22: 16 | E22: 0 | F22: 1
B23: 17 | E23: 0 | F23: 1
B24: 18 | E24: 0 | F24: 1
B25: 19 | E25: 0 | F25: 1
B26: 20 | E26: 0 | F26: 1
B27: 21 | E27: 0 | F27: 1
B28: 22 | E28: 0 | F28: 1
B29: 23 | E29: 0 | F29: 1
B30: 24 | E30: 0 | F30: 1
B31: 25 | E31: 0 | F31: 1
B32: 26 | E32: 0 | F32: 1
B33: 27 | E33: 0 | F33: 1
B34: 28 | E34: 0 | F34: 1
B35: 29 | E35: 0 | F35: 1
B36: 30 | E36: 0 | F36: 1
B37: 31 | E37: 0 | F37: 1
B38: 32 | E38: 0 | F38: 1
B39: 33 | E39: =SUM($C39:$D39) -> 0 | F39: =RANK(E39,$E$7:$E$56,0) -> 1
B40: 34 | E40: 0 | F40: 1
B41: 35 | E41: 0 | F41: 1
B42: 36 | E42: 0 | F42: 1
B43: 37 | E43: 0 | F43: 1
B44: 38 | E44: 0 | F44: 1
B45: 39 | E45: 0 | F45: 1
B46: 40 | E46: 0 | F46: 1
B47: 41 | E47: 0 | F47: 1
B48: 42 | E48: 0 | F48: 1
B49: 43 | E49: 0 | F49: 1
B50: 44 | E50: 0 | F50: 1
B51: 45 | E51: 0 | F51: 1
B52: 46 | E52: 0 | F52: 1
B53: 47 | E53: 0 | F53: 1
B54: 48 | E54: 0 | F54: 1
B55: 49 | E55: 0 | F55: 1
B56: 50 | E56: 0 | F56: 1

Sheet D. Wyss
A1: Name | B1: Wyss Daniel
A2: Gutschein
A4: Waffe | B4: St
B5: Sau Stich | N5: Glück | Q5: Auszahlung
B6: Nr. Passe | C6: 1. Schuss | D6: 2. Schuss | E6: Total | F6: Rang | H6: Besten Passen | J6: Besten Einzel | L6: Total Passen und Einzel
B7: 1 | E7: =SUM($C7:$D7) -> 0 | F7: =RANK(E7,$E$7:$E$56,0) -> 1 | H7: =LARGE(E7:E56,1) -> 0 | J7: =IF($B$4=90,LARGE(C10:D56,1),IF($B$4="St",LARGE(C11:D56,1),IF($B$4=57,LARGE(C9:D56,1)))) -> 
B8: 2 | E8: 0 | F8: 1 | H8: =LARGE(E7:E56,2) -> 0 | J8: =IF($B$4=90,LARGE(C10:D56,2),IF($B$4="St",LARGE(C11:D56,2),IF($B$4=57,LARGE(C9:D56,2)))) ->  | L8: =IF($B$4=57,SUM(H7:H8,J7:J12),IF($B$4=90,SUM(H7:H9,J7:J10),IF($B$4="St",SUM(H7:H10,J7:J8)))) ->  | N8: Ansage | Q8: 1. Schuss
B9: 3 | E9: 0 | F9: 1 | H9: =LARGE(E7:E56,3) -> 0 | J9: =IF($B$4=90,LARGE($C$10:$D$56,3),IF($B$4="St",LARGE($C$11:$D$56,3),IF($B$4=57,LARGE($C$9:$D$56,3)))) ->  | N9: Geschossen | Q9: 2. Schuss
B10: 4 | E10: 0 | F10: 1 | H10: =LARGE(E7:E56,4) -> 0 | J10: =IF($B$4=90,LARGE(C10:D56,4),IF($B$4="St",LARGE(C11:D56,4),IF($B$4=57,LARGE(C9:D56,4)))) ->  | N10: Differenz | O10: =IF(O8>0,IF(O8>O9,O8-O9,O9-O8),"") ->  | Q10: 3. Schuss
B11: 5 | E11: 0 | F11: 1 | J11: =IF($B$4=90,LARGE(C10:D56,5),IF($B$4="St",LARGE(C11:D56,5),IF($B$4=57,LARGE(C9:D56,5)))) ->  | Q11: 4. Schuss
B12: 6 | E12: 0 | F12: 1 | J12: =IF($B$4=90,LARGE(C10:D56,6),IF($B$4="St",LARGE(C11:D56,6),IF($B$4=57,LARGE(C9:D56,6)))) ->  | Q12: 5. Schuss
B13: 7 | E13: 0 | F13: 1 | J13: =IF($B$4=90,LARGE(C11:D57,7),IF($B$4="St",LARGE(C12:D57,7),IF($B$4=57,LARGE(C10:D57,7)))) ->  | Q13: 6. Schuss
B14: 8 | E14: 0 | F14: 1 | J14: =IF($B$4=90,LARGE(C12:D58,8),IF($B$4="St",LARGE(C13:D58,8),IF($B$4=57,LARGE(C11:D58,8)))) ->  | Q14: 7. Schuss
B15: 9 | E15: 0 | F15: 1 | J15: =IF($B$4=90,LARGE(C13:D59,9),IF($B$4="St",LARGE(C14:D59,9),IF($B$4=57,LARGE(C12:D59,9)))) ->  | Q15: 8. Schuss
B16: 10 | E16: 0 | F16: 1 | Q16: 9. Schuss
B17: 11 | E17: 0 | F17: 1 | Q17: 10. Schuss
B18: 12 | E18: 0 | F18: 1 | Q18: Total | R18: =SUM(R8:R17) -> 0
B19: 13 | E19: 0 | F19: 1
B20: 14 | E20: 0 | F20: 1
B21: 15 | E21: 0 | F21: 1
B22: 16 | E22: 0 | F22: 1
B23: 17 | E23: 0 | F23: 1
B24: 18 | E24: 0 | F24: 1
B25: 19 | E25: 0 | F25: 1
B26: 20 | E26: 0 | F26: 1
B27: 21 | E27: 0 | F27: 1
B28: 22 | E28: 0 | F28: 1
B29: 23 | E29: 0 | F29: 1
B30: 24 | E30: 0 | F30: 1
B31: 25 | E31: 0 | F31: 1
B32: 26 | E32: 0 | F32: 1
B33: 27 | E33: 0 | F33: 1
B34: 28 | E34: 0 | F34: 1
B35: 29 | E35: 0 | F35: 1
B36: 30 | E36: 0 | F36: 1
B37: 31 | E37: 0 | F37: 1
B38: 32 | E38: 0 | F38: 1
B39: 33 | E39: =SUM($C39:$D39) -> 0 | F39: 1
B40: 34 | E40: 0 | F40: 1
B41: 35 | E41: 0 | F41: 1
B42: 36 | E42: 0 | F42: 1
B43: 37 | E43: 0 | F43: 1
B44: 38 | E44: 0 | F44: 1
B45: 39 | E45: 0 | F45: 1
B46: 40 | E46: 0 | F46: 1
B47: 41 | E47: 0 | F47: 1
B48: 42 | E48: 0 | F48: 1
B49: 43 | E49: 0 | F49: 1
B50: 44 | E50: 0 | F50: 1
B51: 45 | E51: 0 | F51: 1
B52: 46 | E52: 0 | F52: 1
B53: 47 | E53: 0 | F53: 1
B54: 48 | E54: 0 | F54: 1
B55: 49 | E55: 0 | F55: 1
B56: 50 | E56: 0 | F56: 1

Sheet B. Gatschet
A1: Name | B1: Gatschet Beat
A2: Gutschein
A4: Waffe | B4: St
B5: Sau Stich | N5: Glück | Q5: Auszahlung
B6: Nr. Passe | C6: 1. Schuss | D6: 2. Schuss | E6: Total | F6: Rang | H6: Besten Passen | J6: Besten Einzel | L6: Total Passen und Einzel
B7: 1 | E7: =SUM($C7:$D7) -> 0 | F7: =RANK(E7,$E$7:$E$56,0) -> 1 | H7: =LARGE(E7:E56,1) -> 0 | J7: =IF($B$4=90,LARGE(C10:D56,1),IF($B$4="St",LARGE(C11:D56,1),IF($B$4=57,LARGE(C9:D56,1)))) -> 
B8: 2 | E8: 0 | F8: 1 | H8: =LARGE(E7:E56,2) -> 0 | J8: =IF($B$4=90,LARGE(C10:D56,2),IF($B$4="St",LARGE(C11:D56,2),IF($B$4=57,LARGE(C9:D56,2)))) ->  | L8: =IF($B$4=57,SUM(H7:H8,J7:J12),IF($B$4=90,SUM(H7:H9,J7:J10),IF($B$4="St",SUM(H7:H10,J7:J8)))) ->  | N8: Ansage | Q8: 1. Schuss
B9: 3 | E9: 0 | F9: 1 | H9: =LARGE(E7:E56,3) -> 0 | J9: =IF($B$4=90,LARGE($C$10:$D$56,3),IF($B$4="St",LARGE($C$11:$D$56,3),IF($B$4=57,LARGE($C$9:$D$56,3)))) ->  | N9: Geschossen | Q9: 2. Schuss
B10: 4 | E10: 0 | F10: 1 | H10: =LARGE(E7:E56,4) -> 0 | J10: =IF($B$4=90,LARGE(C10:D56,4),IF($B$4="St",LARGE(C11:D56,4),IF($B$4=57,LARGE(C9:D56,4)))) ->  | N10: Differenz | O10: =IF(O8>0,IF(O8>O9,O8-O9,O9-O8),"") ->  | Q10: 3. Schuss
B11: 5 | E11: 0 | F11: 1 | J11: =IF($B$4=90,LARGE(C10:D56,5),IF($B$4="St",LARGE(C11:D56,5),IF($B$4=57,LARGE(C9:D56,5)))) ->  | Q11: 4. Schuss
B12: 6 | E12: 0 | F12: 1 | J12: =IF($B$4=90,LARGE(C10:D56,6),IF($B$4="St",LARGE(C11:D56,6),IF($B$4=57,LARGE(C9:D56,6)))) ->  | Q12: 5. Schuss
B13: 7 | E13: 0 | F13: 1 | J13: =IF($B$4=90,LARGE(C11:D57,7),IF($B$4="St",LARGE(C12:D57,7),IF($B$4=57,LARGE(C10:D57,7)))) ->  | Q13: 6. Schuss
B14: 8 | E14: 0 | F14: 1 | J14: =IF($B$4=90,LARGE(C12:D58,8),IF($B$4="St",LARGE(C13:D58,8),IF($B$4=57,LARGE(C11:D58,8)))) ->  | Q14: 7. Schuss
B15: 9 | E15: 0 | F15: 1 | J15: =IF($B$4=90,LARGE(C13:D59,9),IF($B$4="St",LARGE(C14:D59,9),IF($B$4=57,LARGE(C12:D59,9)))) ->  | Q15: 8. Schuss
B16: 10 | E16: 0 | F16: 1 | Q16: 9. Schuss
B17: 11 | E17: 0 | F17: 1 | Q17: 10. Schuss
B18: 12 | E18: 0 | F18: 1 | Q18: Total | R18: =SUM(R8:R17) -> 0
B19: 13 | E19: 0 | F19: 1
B20: 14 | E20: 0 | F20: 1
B21: 15 | E21: 0 | F21: 1
B22: 16 | E22: 0 | F22: 1
B23: 17 | E23: 0 | F23: 1
B24: 18 | E24: 0 | F24: 1
B25: 19 | E25: 0 | F25: 1
B26: 20 | E26: 0 | F26: 1
B27: 21 | E27: 0 | F27: 1
B28: 22 | E28: 0 | F28: 1
B29: 23 | E29: 0 | F29: 1
B30: 24 | E30: 0 | F30: 1
B31: 25 | E31: 0 | F31: 1
B32: 26 | E32: 0 | F32: 1
B33: 27 | E33: 0 | F33: 1
B34: 28 | E34: 0 | F34: 1
B35: 29 | E35: 0 | F35: 1
B36: 30 | E36: 0 | F36: 1
B37: 31 | E37: 0 | F37: 1
B38: 32 | E38: 0 | F38: 1
B39: 33 | E39: =SUM($C39:$D39) -> 0 | F39: =RANK(E39,$E$7:$E$56,0) -> 1
B40: 34 | E40: 0 | F40: 1
B41: 35 | E41: 0 | F41: 1
B42: 36 | E42: 0 | F42: 1
B43: 37 | E43: 0 | F43: 1
B44: 38 | E44: 0 | F44: 1
B45: 39 | E45: 0 | F45: 1
B46: 40 | E46: 0 | F46: 1
B47: 41 | E47: 0 | F47: 1
B48: 42 | E48: 0 | F48: 1
B49: 43 | E49: 0 | F49: 1
B50: 44 | E50: 0 | F50: 1
B51: 45 | E51: 0 | F51: 1
B52: 46 | E52: 0 | F52: 1
B53: 47 | E53: 0 | F53: 1
B54: 48 | E54: 0 | F54: 1
B55: 49 | E55: 0 | F55: 1
B56: 50 | E56: 0 | F56: 1

Sheet Zusammenstellung Daten
C2: Nicht gewertete Einzel
A3: Name | B3: Sau Total | C3: 1Einzel | D3: 2Einzel | E3: 3Einzel | F3: Auszahlung | G3: Kat. | H3: Ansage Glück | I3: Geschossen | J3: Glück | K3: Rang Glück
A4: ='P. Abrecht'!$B$1 -> Abrecht Pascal | B4: ='P. Abrecht'!$L$8 -> 930 | C4: ='P. Abrecht'!$J$11 -> 92 | D4: ='P. Abrecht'!$J$12 -> 92 | E4: ='P. Abrecht'!$J$13 -> 91 | F4: ='P. Abrecht'!$R$18 -> 82 | G4: ='P. Abrecht'!$B$4 -> 90 | H4: ='P. Abrecht'!$O$8 -> 260 | I4: ='P. Abrecht'!$O$9 -> 286 | J4: ='P. Abrecht'!$O$10 -> 26 | K4: =IF($H4>0,_xlfn.RANK.EQ($J4,$J$4:$J$35,1)-1,"") -> 11
A5: ='T. Abrecht'!$A$2 -> Abrecht Theodor | B5: ='T. Abrecht'!$L$8 -> 925 | C5: ='T. Abrecht'!$J$11 -> 91 | D5: ='T. Abrecht'!$J$12 -> 90 | E5: ='T. Abrecht'!$J$13 -> 84 | F5: ='T. Abrecht'!$R$18 -> 85 | G5: ='T. Abrecht'!$B$4 -> 90 | H5: ='T. Abrecht'!$O$8 -> 256 | I5: ='T. Abrecht'!$O$9 -> 179 | J5: ='T. Abrecht'!$O$10 -> 77 | K5: 19
A6: ='A. Kunz'!$B$1 -> Kunz Alfred | B6: ='A. Kunz'!$L$8 -> 915 | C6: ='A. Kunz'!$J$11 -> 91 | D6: ='A. Kunz'!$J$12 -> 90 | E6: ='A. Kunz'!$J$13 -> 89 | F6: ='A. Kunz'!$R$18 -> 77 | G6: ='A. Kunz'!$B$4 -> 90 | H6: ='A. Kunz'!$O$8 -> 210 | I6: ='A. Kunz'!$O$9 -> 228 | J6: ='A. Kunz'!$O$10 -> 18 | K6: 5
A7: ='H. Bürgi'!$A$2 -> Bürgi Heinz | B7: ='H. Bürgi'!$L$8 -> 951 | C7: ='H. Bürgi'!$J$11 -> 94 | D7: ='H. Bürgi'!$J$12 -> 94 | E7: ='H. Bürgi'!$J$13 -> 93 | F7: ='H. Bürgi'!$R$18 -> 90 | G7: ='H. Bürgi'!$B$4 -> 90 | H7: ='H. Bürgi'!$O$8 -> 237 | I7: ='H. Bürgi'!$O$9 -> 224 | J7: ='H. Bürgi'!$O$10 -> 13 | K7: 2
A8: ='R. Krähenbühl'!$B$1 -> Krähenbühl Rita | B8: ='R. Krähenbühl'!$L$8 -> 901 | C8: ='R. Krähenbühl'!$J$11 -> 89 | D8: ='R. Krähenbühl'!$J$12 -> 88 | E8: ='R. Krähenbühl'!$J$13 -> 86 | F8: ='R. Krähenbühl'!$R$18 -> 74 | G8: ='R. Krähenbühl'!$B$4 -> 57 | H8: ='R. Krähenbühl'!$O$8 -> 0 | I8: ='R. Krähenbühl'!O9 -> 0 | J8: ='R. Krähenbühl'!$O$10 -> 
A9: ='A. Erb'!$A$2 -> Erb Alex | B9: ='A. Erb'!$L$8 -> 914 | C9: ='A. Erb'!$J$11 -> 88 | D9: ='A. Erb'!$J$12 -> 88 | E9: ='A. Erb'!$J$13 -> 88 | F9: ='A. Erb'!$R$18 -> 90 | G9: ='A. Erb'!$B$4 -> 90 | H9: ='A. Erb'!$O$8 -> 253 | I9: ='A. Erb'!$O$9 -> 280 | J9: ='A. Erb'!$O$10 -> 27 | K9: 12
A10: ='C. Erb'!$A$2 -> Erb Corinne | B10: ='C. Erb'!$L$8 ->  | C10: ='C. Erb'!$J$11 ->  | D10: ='C. Erb'!$J$12 ->  | E10: ='C. Erb'!$J$13 ->  | F10: ='C. Erb'!$R$18 -> 0 | G10: ='C. Erb'!$B$4 -> 90 | H10: ='C. Erb'!$O$8 -> 0 | I10: ='C. Erb'!$O$9 -> 0 | J10: ='C. Erb'!$O$10 -> 
A11: ='R. Friedelance'!$A$2 -> Friedelance Roger | B11: ='R. Friedelance'!$L$8 ->  | C11: ='R. Friedelance'!$J$11 ->  | D11: ='R. Friedelance'!$J$12 ->  | E11: ='R. Friedelance'!$J$13 ->  | F11: ='R. Friedelance'!$R$18 -> 0 | G11: ='R. Friedelance'!$B$4 -> 90 | H11: ='R. Friedelance'!$O$8 -> 0 | I11: ='R. Friedelance'!$O$9 -> 0 | J11: ='R. Friedelance'!$O$10 -> 
A12: ='P. Friedli'!$A$2 -> Friedli Peter | B12: ='P. Friedli'!$L$8 -> 980 | C12: ='P. Friedli'!$J$9 -> 97 | D12: ='P. Friedli'!$J$10 -> 96 | E12: ='P. Friedli'!$J$11 -> 96 | F12: ='P. Friedli'!$R$18 -> 82 | G12: ='P. Friedli'!$B$4 -> St | H12: ='P. Friedli'!$O$8 -> 268 | I12: ='P. Friedli'!$O$9 -> 244 | J12: ='P. Friedli'!$O$10 -> 24 | K12: 9
A13: ='G. Steiner'!$B$1 -> Gladys Steiner | B13: ='G. Steiner'!$L$8 ->  | C13: ='G. Steiner'!$J$11 ->  | D13: ='G. Steiner'!$J$12 ->  | E13: ='G. Steiner'!J13 ->  | F13: ='G. Steiner'!$R$18 -> 0 | G13: ='G. Steiner'!$B$4 -> 90 | H13: ='G. Steiner'!$O$8 -> 0 | I13: ='G. Steiner'!$O$9 -> 0 | J13: ='G. Steiner'!$O$10 -> 
A14: ='M. Käppeli'!$A$2 -> Käppeli Mathias | B14: ='M. Käppeli'!$L$8 -> 928 | C14: ='M. Käppeli'!$J$11 -> 91 | D14: ='M. Käppeli'!$J$12 -> 91 | E14: ='M. Käppeli'!J13 -> 91 | F14: ='M. Käppeli'!$R$18 -> 86 | G14: ='M. Käppeli'!$B$4 -> 90 | H14: ='M. Käppeli'!$O$8 -> 230 | I14: ='M. Käppeli'!$O$9 -> 264 | J14: ='M. Käppeli'!$O$10 -> 34 | K14: 15
A15: ='M. Huggler'!$B$1 -> Huggler Marylène | B15: ='M. Huggler'!$L$8 -> 949 | C15: ='M. Huggler'!$J$11 -> 94 | D15: ='M. Huggler'!$J$12 -> 94 | E15: ='M. Huggler'!$J$13 -> 91 | F15: ='M. Huggler'!$R$18 -> 86 | G15: ='M. Huggler'!$B$4 -> 90 | H15: ='M. Huggler'!$O$8 -> 243 | I15: ='M. Huggler'!$O$9 -> 227 | J15: ='M. Huggler'!$O$10 -> 16 | K15: 3
A16: ='D. Jenni'!$A$2 -> Jenni Daniel | B16: ='D. Jenni'!$L$8 -> 850 | C16: ='D. Jenni'!$J$13 -> 79 | D16: ='D. Jenni'!$J$14 -> 76 | E16: ='D. Jenni'!$J$15 -> 75 | F16: ='D. Jenni'!$R$18 -> 87 | G16: ='D. Jenni'!$B$4 -> 57 | H16: ='D. Jenni'!$O$8 -> 243 | I16: ='D. Jenni'!$O$9 -> 193 | J16: ='D. Jenni'!$O$10 -> 50 | K16: 17
A17: ='S. Kocher'!$A$2 -> Kocher Sascha | B17: ='S. Kocher'!$L$8 -> 957 | C17: ='S. Kocher'!$J$13 -> 94 | D17: ='S. Kocher'!$J$14 -> 94 | E17: ='S. Kocher'!$J$15 -> 93 | F17: ='S. Kocher'!$R$18 -> 83 | G17: ='S. Kocher'!$B$4 -> 57 | H17: ='S. Kocher'!$O$8 -> 248 | I17: ='S. Kocher'!$O$9 -> 215 | J17: ='S. Kocher'!$O$10 -> 33 | K17: 14
A18: ='Ch. Liechti'!$B$1 -> Liechti Charles | B18: ='Ch. Liechti'!$L$8 -> 935 | C18: ='Ch. Liechti'!$J$11 -> 91 | D18: ='Ch. Liechti'!$J$12 -> 90 | E18: ='Ch. Liechti'!$J$13 -> 88 | F18: ='Ch. Liechti'!$R$18 -> 0 | G18: ='Ch. Liechti'!$B$4 -> 90 | H18: ='Ch. Liechti'!$O$8 -> 250 | I18: ='Ch. Liechti'!$O$9 -> 266 | J18: ='Ch. Liechti'!$O$10 -> 16 | K18: 3
A19: ='H. Lüthi'!$B$1 -> Lüthi Hans | B19: ='H. Lüthi'!$L$8 ->  | C19: ='H. Lüthi'!$J$11 ->  | D19: ='H. Lüthi'!$J$12 ->  | E19: ='H. Lüthi'!$J$13 ->  | F19: ='H. Lüthi'!$R$18 -> 0 | G19: ='H. Lüthi'!$B$4 -> 90 | H19: ='H. Lüthi'!$O$8 -> 0 | I19: ='H. Lüthi'!$O$9 -> 0 | J19: ='H. Lüthi'!$O$10 -> 
A20: ='A. Morello'!$A$2 -> Morello Adrian | B20: ='A. Morello'!$L$8 ->  | C20: ='A. Morello'!$J$11 ->  | D20: ='A. Morello'!$J$12 ->  | E20: ='A. Morello'!$J$13 ->  | F20: ='A. Morello'!$R$18 -> 0 | G20: ='A. Morello'!$B$4 -> 90 | H20: ='A. Morello'!$O$8 -> 0 | I20: ='A. Morello'!$O$9 -> 0 | J20: ='A. Morello'!$O$10 -> 0
A21: ='S. Morello'!$A$2 -> Morello Sandro | B21: ='S. Morello'!$L$8 -> 963 | C21: ='S. Morello'!$J$9 -> 99 | D21: ='S. Morello'!$J$10 -> 98 | E21: ='S. Morello'!$J$11 -> 96 | F21: ='S. Morello'!$R$18 -> 93 | G21: ='S. Morello'!$B$4 -> St | H21: ='S. Morello'!$O$8 -> 278 | I21: ='S. Morello'!$O$9 -> 259 | J21: ='S. Morello'!$O$10 -> 19 | K21: 7
A22: ='R. Eschmann'!$A$2 -> Eschmann Roger | B22: ='R. Eschmann'!$L$8 -> 964 | C22: ='R. Eschmann'!$J$13 -> 96 | D22: ='R. Eschmann'!$J$14 -> 96 | E22: ='R. Eschmann'!$J$15 -> 95 | F22: ='R. Eschmann'!$R$18 -> 86 | G22: ='R. Eschmann'!$B$4 -> 90 | H22: ='R. Eschmann'!$O$8 -> 236 | I22: ='R. Eschmann'!$O$9 -> 254 | J22: ='R. Eschmann'!$O$10 -> 18 | K22: 5
A23: ='R. Liechti'!$A$2 -> Rodolphe Liechti | B23: ='R. Liechti'!$L$8 -> 929 | C23: ='R. Liechti'!$J$11 -> 92 | D23: ='R. Liechti'!$J$12 -> 91 | E23: ='R. Liechti'!$J$13 -> 90 | F23: ='R. Liechti'!$R$18 -> 0 | G23: ='R. Liechti'!$B$4 -> 90 | H23: ='R. Liechti'!$O$8 -> 236 | I23: ='R. Liechti'!$O$9 -> 243 | J23: ='R. Liechti'!$O$10 -> 7 | K23: 1
A24: ='E .Rüfli'!$A$2 -> Rüfli Ernst | B24: ='E .Rüfli'!$L$8 -> 940 | C24: ='E .Rüfli'!$J$11 -> 90 | D24: ='E .Rüfli'!$J$12 -> 90 | E24: ='E .Rüfli'!$J$13 -> 90 | F24: ='E .Rüfli'!$R$18 -> 80 | G24: ='E .Rüfli'!$B$4 -> 90 | H24: ='E .Rüfli'!$O$8 -> 230 | I24: ='E .Rüfli'!$O$9 -> 255 | J24: ='E .Rüfli'!$O$10 -> 25 | K24: 10
A25: ='M. Rüfli'!$A$2 -> Rüfli Magdalena | B25: ='M. Rüfli'!$L$8 ->  | C25: ='M. Rüfli'!$J$11 ->  | D25: ='M. Rüfli'!$J$12 ->  | E25: ='M. Rüfli'!$J$13 ->  | F25: ='M. Rüfli'!$R$18 -> 0 | G25: ='M. Rüfli'!$B$4 -> 90 | H25: ='M. Rüfli'!$O$8 -> 0 | I25: ='M. Rüfli'!$O$9 -> 0 | J25: ='M. Rüfli'!$O$10 -> 
A26: ='H.J. Schneider'!$A$2 -> Schneider Hans-Jörg | B26: ='H.J. Schneider'!$L$8 ->  | C26: ='H.J. Schneider'!$J$13 ->  | D26: ='H.J. Schneider'!$J$14 ->  | E26: ='H.J. Schneider'!$J$15 ->  | F26: ='H.J. Schneider'!$R$18 -> 0 | G26: ='H.J. Schneider'!$B$4 -> 57 | H26: ='H.J. Schneider'!$O$8 -> 0 | I26: ='H.J. Schneider'!$O$9 -> 0 | J26: ='H.J. Schneider'!$O$10 -> 
A27: ='A. Stähli'!$B$1 -> Stähli André | B27: ='A. Stähli'!$L$8 ->  | C27: ='A. Stähli'!$J$11 ->  | D27: ='A. Stähli'!$J$12 ->  | E27: ='A. Stähli'!$J$13 ->  | F27: ='A. Stähli'!$R$18 -> 0 | G27: ='A. Stähli'!$B$4 -> 90 | H27: ='A. Stähli'!$O$8 -> 0 | I27: ='A. Stähli'!$O$9 -> 0 | J27: ='A. Stähli'!$O$10 -> 
A28: ='H. Stuber'!$A$2 -> Stuber Hans | B28: ='H. Stuber'!$L$8 -> 923 | C28: ='H. Stuber'!$J$11 -> 91 | D28: ='H. Stuber'!$J$12 -> 90 | E28: ='H. Stuber'!$J$13 -> 90 | F28: ='H. Stuber'!$R$18 -> 86 | G28: ='H. Stuber'!$B$4 -> 90 | H28: ='H. Stuber'!$O$8 -> 248 | I28: ='H. Stuber'!$O$9 -> 220 | J28: ='H. Stuber'!$O$10 -> 28 | K28: 13
A29: ='O. Tellenbach'!$B$1 -> Tellenbach Otto | B29: ='O. Tellenbach'!$L$8 -> 856 | C29: ='O. Tellenbach'!J13 -> 72 | D29: ='O. Tellenbach'!J14 -> 70 | E29: ='O. Tellenbach'!J15 -> 67 | F29: ='O. Tellenbach'!$R$18 -> 65 | G29: ='O. Tellenbach'!$B$4 -> 57 | H29: ='O. Tellenbach'!$O$8 -> 200 | I29: ='O. Tellenbach'!$O$9 -> 255 | J29: ='O. Tellenbach'!$O$10 -> 55 | K29: 18
A30: ='S. Wälti'!$A$2 -> Wälti Sascha | B30: ='S. Wälti'!$L$8 -> 934 | C30: ='S. Wälti'!$J$11 -> 92 | D30: ='S. Wälti'!$J$12 -> 90 | E30: ='S. Wälti'!$J$13 -> 90 | F30: ='S. Wälti'!$R$18 -> 92 | G30: ='S. Wälti'!$B$4 -> 90 | H30: ='S. Wälti'!$O$8 -> 246 | I30: ='S. Wälti'!$O$9 -> 283 | J30: ='S. Wälti'!$O$10 -> 37 | K30: 16
A31: ='H. Wanner'!$A$2 -> Wanner Heinz | B31: ='H. Wanner'!$L$8 ->  | C31: ='H. Wanner'!$J$11 ->  | D31: ='H. Wanner'!$J$12 ->  | E31: ='H. Wanner'!$J$13 ->  | F31: ='H. Wanner'!$R$18 -> 0 | G31: ='H. Wanner'!$B$4 -> 90 | H31: ='H. Wanner'!$O$8 -> 0 | I31: ='H. Wanner'!$O$9 -> 0 | J31: ='H. Wanner'!$O$10 -> 
A32: ='D. Wyss'!$B$1 -> Wyss Daniel | B32: ='D. Wyss'!$L$8 ->  | C32: ='D. Wyss'!$J$9 ->  | D32: ='D. Wyss'!$J$10 ->  | E32: ='D. Wyss'!$J$11 ->  | F32: ='D. Wyss'!$R$18 -> 0 | G32: ='D. Wyss'!$B$4 -> St | H32: ='D. Wyss'!$O$8 -> 0 | I32: ='D. Wyss'!$O$9 -> 0 | J32: ='D. Wyss'!$O$10 -> 
A33: ='J. Zbinden'!$A$2 -> Zbinden Jakob | B33: ='J. Zbinden'!$L$8 -> 916 | C33: ='J. Zbinden'!$J$9 -> 90 | D33: ='J. Zbinden'!$J$10 -> 90 | E33: ='J. Zbinden'!$J$11 -> 89 | F33: ='J. Zbinden'!$R$18 -> 88 | G33: ='J. Zbinden'!$B$4 -> 90 | H33: ='J. Zbinden'!$O$8 -> 256 | I33: ='J. Zbinden'!$O$9 -> 279 | J33: ='J. Zbinden'!$O$10 -> 23 | K33: 8
A34: ='F. Brügger'!$B$1 -> Brügger Fred | B34: ='F. Brügger'!$L$8 ->  | C34: ='F. Brügger'!$J$11 ->  | D34: ='F. Brügger'!$J$12 ->  | E34: ='F. Brügger'!$J$13 ->  | F34: ='F. Brügger'!$R$18 -> 0 | G34: ='F. Brügger'!$B$4 -> 90 | H34: ='F. Brügger'!$O$8 -> 0 | I34: ='F. Brügger'!$O$9 -> 0 | J34: ='F. Brügger'!$O$10 -> 
A35: ='B. Gatschet'!B1 -> Gatschet Beat | B35: ='B. Gatschet'!L8 ->  | C35: ='B. Gatschet'!J9 ->  | D35: ='B. Gatschet'!J10 ->  | E35: ='B. Gatschet'!J11 ->  | F35: ='B. Gatschet'!R18 -> 0 | G35: ='B. Gatschet'!B4 -> St | H35: ='B. Gatschet'!O8 -> 0 | I35: ='B. Gatschet'!O9 -> 0 | J35: ='B. Gatschet'!O10 ->  | K35: =IF($H35>0,_xlfn.RANK.EQ($J35,$J$4:$J$35,1)-1,"") -> 

Sheet Rangliste Glück
A1: Name | B1: Rang | C1: Ansage Glück | D1: Geschossen | E1: Glück
A2: ='R. Liechti'!$A$2 -> Rodolphe Liechti | B2: =_xlfn.RANK.EQ(E2,$E$2:$E$41,1)-1 -> 1 | C2: ='R. Liechti'!$O$8 -> 236 | D2: ='R. Liechti'!$O$9 -> 243 | E2: ='R. Liechti'!$O$10 -> 7
A3: ='A. Morello'!$A$2 -> Morello Adrian | B3: =_xlfn.RANK.EQ(E3,$E$2:$E$41,1)-1 -> 0 | C3: ='A. Morello'!$O$8 -> 0 | D3: ='A. Morello'!$O$9 -> 0 | E3: ='A. Morello'!$O$10 -> 0
A4: ='H. Bürgi'!$A$2 -> Bürgi Heinz | B4: =_xlfn.RANK.EQ(E4,$E$2:$E$41,1)-1 -> 2 | C4: ='H. Bürgi'!$O$8 -> 237 | D4: ='H. Bürgi'!$O$9 -> 224 | E4: ='H. Bürgi'!$O$10 -> 13
A5: ='Ch. Liechti'!$B$1 -> Liechti Charles | B5: =_xlfn.RANK.EQ(E5,$E$2:$E$41,1)-1 -> 3 | C5: ='Ch. Liechti'!$O$8 -> 250 | D5: ='Ch. Liechti'!$O$9 -> 266 | E5: ='Ch. Liechti'!$O$10 -> 16
A6: ='M. Huggler'!$B$1 -> Huggler Marylène | B6: =_xlfn.RANK.EQ(E6,$E$2:$E$41,1)-1 -> 3 | C6: ='M. Huggler'!$O$8 -> 243 | D6: ='M. Huggler'!$O$9 -> 227 | E6: ='M. Huggler'!$O$10 -> 16
A7: ='B. Gatschet'!B1 -> Gatschet Beat | B7: =_xlfn.RANK.EQ(E7,$E$2:$E$41,1)-1 ->  | C7: ='B. Gatschet'!O8 -> 0 | D7: ='B. Gatschet'!O9 -> 0 | E7: ='B. Gatschet'!O10 -> 
A8: ='C. Erb'!$A$2 -> Erb Corinne | B8: =_xlfn.RANK.EQ(E8,$E$2:$E$41,1)-1 ->  | C8: ='C. Erb'!$O$8 -> 0 | D8: ='C. Erb'!$O$9 -> 0 | E8: ='C. Erb'!$O$10 -> 
A9: ='R. Friedelance'!$A$2 -> Friedelance Roger | B9: =_xlfn.RANK.EQ(E9,$E$2:$E$41,1)-1 ->  | C9: ='R. Friedelance'!$O$8 -> 0 | D9: ='R. Friedelance'!$O$9 -> 0 | E9: ='R. Friedelance'!$O$10 -> 
A10: ='H. Wanner'!$A$2 -> Wanner Heinz | B10: =_xlfn.RANK.EQ(E10,$E$2:$E$41,1)-1 ->  | C10: ='H. Wanner'!$O$8 -> 0 | D10: ='H. Wanner'!$O$9 -> 0 | E10: ='H. Wanner'!$O$10 -> 
A11: ='R. Eschmann'!$A$2 -> Eschmann Roger | B11: =_xlfn.RANK.EQ(E11,$E$2:$E$41,1)-1 -> 5 | C11: ='R. Eschmann'!$O$8 -> 236 | D11: ='R. Eschmann'!$O$9 -> 254 | E11: ='R. Eschmann'!$O$10 -> 18
A12: ='A. Kunz'!$B$1 -> Kunz Alfred | B12: =_xlfn.RANK.EQ(E12,$E$2:$E$41,1)-1 -> 5 | C12: ='A. Kunz'!$O$8 -> 210 | D12: ='A. Kunz'!$O$9 -> 228 | E12: ='A. Kunz'!$O$10 -> 18
A13: ='D. Wyss'!$B$1 -> Wyss Daniel | B13: =_xlfn.RANK.EQ(E13,$E$2:$E$41,1)-1 ->  | C13: ='D. Wyss'!$O$8 -> 0 | D13: ='D. Wyss'!$O$9 -> 0 | E13: ='D. Wyss'!$O$10 -> 
A14: ='F. Brügger'!$B$1 -> Brügger Fred | B14: =_xlfn.RANK.EQ(E14,$E$2:$E$41,1)-1 ->  | C14: ='F. Brügger'!$O$8 -> 0 | D14: ='F. Brügger'!$O$9 -> 0 | E14: ='F. Brügger'!$O$10 -> 
A15: ='S. Morello'!$A$2 -> Morello Sandro | B15: =_xlfn.RANK.EQ(E15,$E$2:$E$41,1)-1 -> 7 | C15: ='S. Morello'!$O$8 -> 278 | D15: ='S. Morello'!$O$9 -> 259 | E15: ='S. Morello'!$O$10 -> 19
A16: ='J. Zbinden'!$A$2 -> Zbinden Jakob | B16: =_xlfn.RANK.EQ(E16,$E$2:$E$41,1)-1 -> 8 | C16: ='J. Zbinden'!$O$8 -> 256 | D16: ='J. Zbinden'!$O$9 -> 279 | E16: ='J. Zbinden'!$O$10 -> 23
A17: ='H. Lüthi'!$B$1 -> Lüthi Hans | B17: =_xlfn.RANK.EQ(E17,$E$2:$E$41,1)-1 ->  | C17: ='H. Lüthi'!$O$8 -> 0 | D17: ='H. Lüthi'!$O$9 -> 0 | E17: ='H. Lüthi'!$O$10 -> 
A18: ='A. Stähli'!$B$1 -> Stähli André | B18: =_xlfn.RANK.EQ(E18,$E$2:$E$41,1)-1 ->  | C18: ='A. Stähli'!$O$8 -> 0 | D18: ='A. Stähli'!$O$9 -> 0 | E18: ='A. Stähli'!$O$10 -> 
A19: ='H.J. Schneider'!$A$2 -> Schneider Hans-Jörg | B19: =_xlfn.RANK.EQ(E19,$E$2:$E$41,1)-1 ->  | C19: ='H.J. Schneider'!$O$8 -> 0 | D19: ='H.J. Schneider'!$O$9 -> 0 | E19: ='H.J. Schneider'!$O$10 -> 
A20: ='P. Friedli'!$A$2 -> Friedli Peter | B20: =_xlfn.RANK.EQ(E20,$E$2:$E$41,1)-1 -> 9 | C20: ='P. Friedli'!$O$8 -> 268 | D20: ='P. Friedli'!$O$9 -> 244 | E20: ='P. Friedli'!$O$10 -> 24
A21: ='E .Rüfli'!$A$2 -> Rüfli Ernst | B21: =_xlfn.RANK.EQ(E21,$E$2:$E$41,1)-1 -> 10 | C21: ='E .Rüfli'!$O$8 -> 230 | D21: ='E .Rüfli'!$O$9 -> 255 | E21: ='E .Rüfli'!$O$10 -> 25
A22: ='P. Abrecht'!$B$1 -> Abrecht Pascal | B22: =_xlfn.RANK.EQ(E22,$E$2:$E$41,1)-1 -> 11 | C22: ='P. Abrecht'!$O$8 -> 260 | D22: ='P. Abrecht'!$O$9 -> 286 | E22: ='P. Abrecht'!$O$10 -> 26
A23: ='A. Erb'!$A$2 -> Erb Alex | B23: =_xlfn.RANK.EQ(E23,$E$2:$E$41,1)-1 -> 12 | C23: ='A. Erb'!$O$8 -> 253 | D23: ='A. Erb'!$O$9 -> 280 | E23: ='A. Erb'!$O$10 -> 27
A24: ='H. Stuber'!$A$2 -> Stuber Hans | B24: =_xlfn.RANK.EQ(E24,$E$2:$E$41,1)-1 -> 13 | C24: ='H. Stuber'!$O$8 -> 248 | D24: ='H. Stuber'!$O$9 -> 220 | E24: ='H. Stuber'!$O$10 -> 28
A25: ='R. Krähenbühl'!$B$1 -> Krähenbühl Rita | B25: =_xlfn.RANK.EQ(E25,$E$2:$E$41,1)-1 ->  | C25: ='R. Krähenbühl'!$O$8 -> 0 | D25: ='R. Krähenbühl'!O9 -> 0 | E25: ='R. Krähenbühl'!$O$10 -> 
A26: ='G. Steiner'!$B$1 -> Gladys Steiner | B26: =_xlfn.RANK.EQ(E26,$E$2:$E$41,1)-1 ->  | C26: ='G. Steiner'!$O$8 -> 0 | D26: ='G. Steiner'!$O$9 -> 0 | E26: ='G. Steiner'!$O$10 -> 
A27: ='S. Kocher'!$A$2 -> Kocher Sascha | B27: =_xlfn.RANK.EQ(E27,$E$2:$E$41,1)-1 -> 14 | C27: ='S. Kocher'!$O$8 -> 248 | D27: ='S. Kocher'!$O$9 -> 215 | E27: ='S. Kocher'!$O$10 -> 33
A28: ='M. Käppeli'!$A$2 -> Käppeli Mathias | B28: =_xlfn.RANK.EQ(E28,$E$2:$E$41,1)-1 -> 15 | C28: ='M. Käppeli'!$O$8 -> 230 | D28: ='M. Käppeli'!$O$9 -> 264 | E28: ='M. Käppeli'!$O$10 -> 34
A29: ='M. Rüfli'!$A$2 -> Rüfli Magdalena | B29: =_xlfn.RANK.EQ(E29,$E$2:$E$41,1)-1 ->  | C29: ='M. Rüfli'!$O$8 -> 0 | D29: ='M. Rüfli'!$O$9 -> 0 | E29: ='M. Rüfli'!$O$10 -> 
A30: ='S. Wälti'!$A$2 -> Wälti Sascha | B30: =_xlfn.RANK.EQ(E30,$E$2:$E$41,1)-1 -> 16 | C30: ='S. Wälti'!$O$8 -> 246 | D30: ='S. Wälti'!$O$9 -> 283 | E30: ='S. Wälti'!$O$10 -> 37
A31: ='D. Jenni'!$A$2 -> Jenni Daniel | B31: =_xlfn.RANK.EQ(E31,$E$2:$E$41,1)-1 -> 17 | C31: ='D. Jenni'!$O$8 -> 243 | D31: ='D. Jenni'!$O$9 -> 193 | E31: ='D. Jenni'!$O$10 -> 50
A32: ='O. Tellenbach'!$B$1 -> Tellenbach Otto | B32: =_xlfn.RANK.EQ(E32,$E$2:$E$41,1)-1 -> 18 | C32: ='O. Tellenbach'!$O$8 -> 200 | D32: ='O. Tellenbach'!$O$9 -> 255 | E32: ='O. Tellenbach'!$O$10 -> 55
A33: ='T. Abrecht'!$A$2 -> Abrecht Theodor | B33: =_xlfn.RANK.EQ(E33,$E$2:$E$41,1)-1 -> 19 | C33: ='T. Abrecht'!$O$8 -> 256 | D33: ='T. Abrecht'!$O$9 -> 179 | E33: ='T. Abrecht'!$O$10 -> 77
B34: =_xlfn.RANK.EQ(E34,$E$2:$E$41,1)-1 -> 0
B35: 0
B36: 0
B37: 0
B38: 0
B39: 0
B40: 0
B41: 0

Sheet Rangliste Auszahlung
C2: St / Frei | D2: 0.975
C3: 90 / 57 03 / Kara | D3: 1
C4: 57 | D4: 1.025
A6: Name | B6: Rang | C6: Auszahlung | D6: Kat. | E6: Korrigiert | F6: Anzahl | G6: 10 er
A7: ='S. Wälti'!$A$2 -> Wälti Sascha | B7: =IF(Tabelle6[[#This Row],[Korrigiert]]>0,(_xlfn.RANK.EQ(Tabelle6[[#This Row],[Korrigiert]],$E$7:$E$38,0)),) -> 1 | C7: ='S. Wälti'!$R$18 -> 92 | D7: ='S. Wälti'!$B$4 -> 90 | E7: =IF(D7="ST",C7*$D$2,IF(D7=90,C7*$D$3,IF(D7=57,C7*$D$4,))) -> 92 | F7: 3 | G7: 10
A8: ='Zusammenstellung Daten'!$A$34 -> Brügger Fred | B8: =IF(Tabelle6[[#This Row],[Korrigiert]]>0,(_xlfn.RANK.EQ(Tabelle6[[#This Row],[Korrigiert]],$E$7:$E$38,0)),) -> 0 | C8: ='Zusammenstellung Daten'!$F$34 -> 0 | D8: ='Zusammenstellung Daten'!$G$34 -> 90 | E8: =IF(D8="ST",C8*$D$2,IF(D8=90,C8*$D$3,IF(D8=57,C8*$D$4,))) -> 0 | F8: 5 | G8: 10
A9: ='S. Morello'!$A$2 -> Morello Sandro | B9: =IF(Tabelle6[[#This Row],[Korrigiert]]>0,(_xlfn.RANK.EQ(Tabelle6[[#This Row],[Korrigiert]],$E$7:$E$38,0)),) -> 2 | C9: ='S. Morello'!$R$18 -> 93 | D9: ='S. Morello'!$B$4 -> St | E9: =IF(D9="ST",C9*$D$2,IF(D9=90,C9*$D$3,IF(D9=57,C9*$D$4,))) -> 90.675 | F9: 3 | G9: 10
A10: ='A. Stähli'!$B$1 -> Stähli André | B10: =IF(Tabelle6[[#This Row],[Korrigiert]]>0,(_xlfn.RANK.EQ(Tabelle6[[#This Row],[Korrigiert]],$E$7:$E$38,0)),) -> 0 | C10: ='A. Stähli'!$R$18 -> 0 | D10: ='A. Stähli'!$B$4 -> 90 | E10: =IF(D10="ST",C10*$D$2,IF(D10=90,C10*$D$3,IF(D10=57,C10*$D$4,))) -> 0 | F10: 4 | G10: 10
A11: ='H. Bürgi'!$A$2 -> Bürgi Heinz | B11: =IF(Tabelle6[[#This Row],[Korrigiert]]>0,(_xlfn.RANK.EQ(Tabelle6[[#This Row],[Korrigiert]],$E$7:$E$38,0)),) -> 3 | C11: ='H. Bürgi'!$R$18 -> 90 | D11: ='H. Bürgi'!$B$4 -> 90 | E11: =IF(D11="ST",C11*$D$2,IF(D11=90,C11*$D$3,IF(D11=57,C11*$D$4,))) -> 90 | F11: 2 | G11: 10
A12: ='A. Erb'!$A$2 -> Erb Alex | B12: =IF(Tabelle6[[#This Row],[Korrigiert]]>0,(_xlfn.RANK.EQ(Tabelle6[[#This Row],[Korrigiert]],$E$7:$E$38,0)),) -> 3 | C12: ='A. Erb'!$R$18 -> 90 | D12: ='A. Erb'!$B$4 -> 90 | E12: =IF(D12="ST",C12*$D$2,IF(D12=90,C12*$D$3,IF(D12=57,C12*$D$4,))) -> 90
A13: ='C. Erb'!$A$2 -> Erb Corinne | B13: =IF(Tabelle6[[#This Row],[Korrigiert]]>0,(_xlfn.RANK.EQ(Tabelle6[[#This Row],[Korrigiert]],$E$7:$E$38,0)),) -> 0 | C13: ='C. Erb'!$R$18 -> 0 | D13: ='C. Erb'!$B$4 -> 90 | E13: =IF(D13="ST",C13*$D$2,IF(D13=90,C13*$D$3,IF(D13=57,C13*$D$4,))) -> 0
A14: ='R. Friedelance'!$A$2 -> Friedelance Roger | B14: =IF(Tabelle6[[#This Row],[Korrigiert]]>0,(_xlfn.RANK.EQ(Tabelle6[[#This Row],[Korrigiert]],$E$7:$E$38,0)),) -> 0 | C14: ='R. Friedelance'!$R$18 -> 0 | D14: ='R. Friedelance'!$B$4 -> 90 | E14: =IF(D14="ST",C14*$D$2,IF(D14=90,C14*$D$3,IF(D14=57,C14*$D$4,))) -> 0
A15: ='R. Liechti'!$A$2 -> Rodolphe Liechti | B15: =IF(Tabelle6[[#This Row],[Korrigiert]]>0,(_xlfn.RANK.EQ(Tabelle6[[#This Row],[Korrigiert]],$E$7:$E$38,0)),) -> 0 | C15: ='R. Liechti'!$R$18 -> 0 | D15: ='R. Liechti'!$B$4 -> 90 | E15: =IF(D15="ST",C15*$D$2,IF(D15=90,C15*$D$3,IF(D15=57,C15*$D$4,))) -> 0 | F15: 3 | G15: 10
A16: ='D. Wyss'!$B$1 -> Wyss Daniel | B16: =IF(Tabelle6[[#This Row],[Korrigiert]]>0,(_xlfn.RANK.EQ(Tabelle6[[#This Row],[Korrigiert]],$E$7:$E$38,0)),) -> 0 | C16: ='D. Wyss'!$R$18 -> 0 | D16: ='D. Wyss'!$B$4 -> St | E16: =IF(D16="ST",C16*$D$2,IF(D16=90,C16*$D$3,IF(D16=57,C16*$D$4,))) -> 0
A17: ='D. Jenni'!$A$2 -> Jenni Daniel | B17: =IF(Tabelle6[[#This Row],[Korrigiert]]>0,(_xlfn.RANK.EQ(Tabelle6[[#This Row],[Korrigiert]],$E$7:$E$38,0)),) -> 5 | C17: ='D. Jenni'!$R$18 -> 87 | D17: ='D. Jenni'!$B$4 -> 57 | E17: =IF(D17="ST",C17*$D$2,IF(D17=90,C17*$D$3,IF(D17=57,C17*$D$4,))) -> 89.175 | G17: 10
A18: ='J. Zbinden'!$A$2 -> Zbinden Jakob | B18: =IF(Tabelle6[[#This Row],[Korrigiert]]>0,(_xlfn.RANK.EQ(Tabelle6[[#This Row],[Korrigiert]],$E$7:$E$38,0)),) -> 6 | C18: ='J. Zbinden'!$R$18 -> 88 | D18: ='J. Zbinden'!$B$4 -> 90 | E18: =IF(D18="ST",C18*$D$2,IF(D18=90,C18*$D$3,IF(D18=57,C18*$D$4,))) -> 88 | F18: 2 | G18: 10
A19: ='M. Huggler'!$B$1 -> Huggler Marylène | B19: =IF(Tabelle6[[#This Row],[Korrigiert]]>0,(_xlfn.RANK.EQ(Tabelle6[[#This Row],[Korrigiert]],$E$7:$E$38,0)),) -> 7 | C19: ='M. Huggler'!$R$18 -> 86 | D19: ='M. Huggler'!$B$4 -> 90 | E19: =IF(D19="ST",C19*$D$2,IF(D19=90,C19*$D$3,IF(D19=57,C19*$D$4,))) -> 86 | F19: 4 | G19: 10
A20: ='B. Gatschet'!B1 -> Gatschet Beat | B20: =IF(Tabelle6[[#This Row],[Korrigiert]]>0,(_xlfn.RANK.EQ(Tabelle6[[#This Row],[Korrigiert]],$E$7:$E$38,0)),) -> 0 | C20: ='B. Gatschet'!R18 -> 0 | D20: ='B. Gatschet'!B4 -> St | E20: =IF(D20="ST",C20*$D$2,IF(D20=90,C20*$D$3,IF(D20=57,C20*$D$4,))) -> 0 | F20: 3 | G20: 10
A21: ='Ch. Liechti'!$B$1 -> Liechti Charles | B21: =IF(Tabelle6[[#This Row],[Korrigiert]]>0,(_xlfn.RANK.EQ(Tabelle6[[#This Row],[Korrigiert]],$E$7:$E$38,0)),) -> 0 | C21: ='Ch. Liechti'!$R$18 -> 0 | D21: ='Ch. Liechti'!$B$4 -> 90 | E21: =IF(D21="ST",C21*$D$2,IF(D21=90,C21*$D$3,IF(D21=57,C21*$D$4,))) -> 0
A22: ='H. Lüthi'!$B$1 -> Lüthi Hans | B22: =IF(Tabelle6[[#This Row],[Korrigiert]]>0,(_xlfn.RANK.EQ(Tabelle6[[#This Row],[Korrigiert]],$E$7:$E$38,0)),) -> 0 | C22: ='H. Lüthi'!$R$18 -> 0 | D22: ='H. Lüthi'!$B$4 -> 90 | E22: =IF(D22="ST",C22*$D$2,IF(D22=90,C22*$D$3,IF(D22=57,C22*$D$4,))) -> 0
A23: ='A. Morello'!$A$2 -> Morello Adrian | B23: =IF(Tabelle6[[#This Row],[Korrigiert]]>0,(_xlfn.RANK.EQ(Tabelle6[[#This Row],[Korrigiert]],$E$7:$E$38,0)),) -> 0 | C23: ='A. Morello'!$R$18 -> 0 | D23: ='A. Morello'!$B$4 -> 90 | E23: =IF(D23="ST",C23*$D$2,IF(D23=90,C23*$D$3,IF(D23=57,C23*$D$4,))) -> 0
A24: ='H. Stuber'!$A$2 -> Stuber Hans | B24: =IF(Tabelle6[[#This Row],[Korrigiert]]>0,(_xlfn.RANK.EQ(Tabelle6[[#This Row],[Korrigiert]],$E$7:$E$38,0)),) -> 7 | C24: ='H. Stuber'!$R$18 -> 86 | D24: ='H. Stuber'!$B$4 -> 90 | E24: =IF(D24="ST",C24*$D$2,IF(D24=90,C24*$D$3,IF(D24=57,C24*$D$4,))) -> 86 | F24: 3 | G24: 10
A25: ='M. Käppeli'!$A$2 -> Käppeli Mathias | B25: =IF(Tabelle6[[#This Row],[Korrigiert]]>0,(_xlfn.RANK.EQ(Tabelle6[[#This Row],[Korrigiert]],$E$7:$E$38,0)),) -> 7 | C25: ='M. Käppeli'!$R$18 -> 86 | D25: ='M. Käppeli'!$B$4 -> 90 | E25: =IF(D25="ST",C25*$D$2,IF(D25=90,C25*$D$3,IF(D25=57,C25*$D$4,))) -> 86 | G25: 10
A26: ='R. Eschmann'!$A$2 -> Eschmann Roger | B26: =IF(Tabelle6[[#This Row],[Korrigiert]]>0,(_xlfn.RANK.EQ(Tabelle6[[#This Row],[Korrigiert]],$E$7:$E$38,0)),) -> 7 | C26: ='R. Eschmann'!$R$18 -> 86 | D26: ='R. Eschmann'!$B$4 -> 90 | E26: =IF(D26="ST",C26*$D$2,IF(D26=90,C26*$D$3,IF(D26=57,C26*$D$4,))) -> 86 | G26: 10
A27: ='S. Kocher'!$A$2 -> Kocher Sascha | B27: =IF(Tabelle6[[#This Row],[Korrigiert]]>0,(_xlfn.RANK.EQ(Tabelle6[[#This Row],[Korrigiert]],$E$7:$E$38,0)),) -> 11 | C27: ='S. Kocher'!$R$18 -> 83 | D27: ='S. Kocher'!$B$4 -> 57 | E27: =IF(D27="ST",C27*$D$2,IF(D27=90,C27*$D$3,IF(D27=57,C27*$D$4,))) -> 85.075 | G27: 10
A28: ='H.J. Schneider'!$A$2 -> Schneider Hans-Jörg | B28: =IF(Tabelle6[[#This Row],[Korrigiert]]>0,(_xlfn.RANK.EQ(Tabelle6[[#This Row],[Korrigiert]],$E$7:$E$38,0)),) -> 0 | C28: ='H.J. Schneider'!$R$18 -> 0 | D28: ='H.J. Schneider'!$B$4 -> 57 | E28: =IF(D28="ST",C28*$D$2,IF(D28=90,C28*$D$3,IF(D28=57,C28*$D$4,))) -> 0
A29: ='T. Abrecht'!$A$2 -> Abrecht Theodor | B29: =IF(Tabelle6[[#This Row],[Korrigiert]]>0,(_xlfn.RANK.EQ(Tabelle6[[#This Row],[Korrigiert]],$E$7:$E$38,0)),) -> 12 | C29: ='T. Abrecht'!$R$18 -> 85 | D29: ='T. Abrecht'!$B$4 -> 90 | E29: =IF(D29="ST",C29*$D$2,IF(D29=90,C29*$D$3,IF(D29=57,C29*$D$4,))) -> 85 | F29: 2 | G29: 10
A30: ='P. Abrecht'!$B$1 -> Abrecht Pascal | B30: =IF(Tabelle6[[#This Row],[Korrigiert]]>0,(_xlfn.RANK.EQ(Tabelle6[[#This Row],[Korrigiert]],$E$7:$E$38,0)),) -> 13 | C30: ='P. Abrecht'!$R$18 -> 82 | D30: ='P. Abrecht'!$B$4 -> 90 | E30: =IF(D30="ST",C30*$D$2,IF(D30=90,C30*$D$3,IF(D30=57,C30*$D$4,))) -> 82
A31: ='E .Rüfli'!$A$2 -> Rüfli Ernst | B31: =IF(Tabelle6[[#This Row],[Korrigiert]]>0,(_xlfn.RANK.EQ(Tabelle6[[#This Row],[Korrigiert]],$E$7:$E$38,0)),) -> 14 | C31: ='E .Rüfli'!$R$18 -> 80 | D31: ='E .Rüfli'!$B$4 -> 90 | E31: =IF(D31="ST",C31*$D$2,IF(D31=90,C31*$D$3,IF(D31=57,C31*$D$4,))) -> 80 | G31: 10
A32: ='P. Friedli'!$A$2 -> Friedli Peter | B32: =IF(Tabelle6[[#This Row],[Korrigiert]]>0,(_xlfn.RANK.EQ(Tabelle6[[#This Row],[Korrigiert]],$E$7:$E$38,0)),) -> 15 | C32: ='P. Friedli'!$R$18 -> 82 | D32: ='P. Friedli'!$B$4 -> St | E32: =IF(D32="ST",C32*$D$2,IF(D32=90,C32*$D$3,IF(D32=57,C32*$D$4,))) -> 79.95 | G32: 10
A33: ='H. Wanner'!$A$2 -> Wanner Heinz | B33: =IF(Tabelle6[[#This Row],[Korrigiert]]>0,(_xlfn.RANK.EQ(Tabelle6[[#This Row],[Korrigiert]],$E$7:$E$38,0)),) -> 0 | C33: ='H. Wanner'!$R$18 -> 0 | D33: ='H. Wanner'!$B$4 -> 90 | E33: =IF(D33="ST",C33*$D$2,IF(D33=90,C33*$D$3,IF(D33=57,C33*$D$4,))) -> 0
A34: ='A. Kunz'!$B$1 -> Kunz Alfred | B34: =IF(Tabelle6[[#This Row],[Korrigiert]]>0,(_xlfn.RANK.EQ(Tabelle6[[#This Row],[Korrigiert]],$E$7:$E$38,0)),) -> 16 | C34: ='A. Kunz'!$R$18 -> 77 | D34: ='A. Kunz'!$B$4 -> 90 | E34: =IF(D34="ST",C34*$D$2,IF(D34=90,C34*$D$3,IF(D34=57,C34*$D$4,))) -> 77 | G34: 10
A35: ='R. Krähenbühl'!$B$1 -> Krähenbühl Rita | B35: =IF(Tabelle6[[#This Row],[Korrigiert]]>0,(_xlfn.RANK.EQ(Tabelle6[[#This Row],[Korrigiert]],$E$7:$E$38,0)),) -> 17 | C35: ='R. Krähenbühl'!$R$18 -> 74 | D35: ='R. Krähenbühl'!$B$4 -> 57 | E35: =IF(D35="ST",C35*$D$2,IF(D35=90,C35*$D$3,IF(D35=57,C35*$D$4,))) -> 75.85 | G35: 10
A36: ='M. Rüfli'!$A$2 -> Rüfli Magdalena | B36: =IF(Tabelle6[[#This Row],[Korrigiert]]>0,(_xlfn.RANK.EQ(Tabelle6[[#This Row],[Korrigiert]],$E$7:$E$38,0)),) -> 0 | C36: ='M. Rüfli'!$R$18 -> 0 | D36: ='M. Rüfli'!$B$4 -> 90 | E36: =IF(D36="ST",C36*$D$2,IF(D36=90,C36*$D$3,IF(D36=57,C36*$D$4,))) -> 0
A37: ='G. Steiner'!$B$1 -> Gladys Steiner | B37: =IF(Tabelle6[[#This Row],[Korrigiert]]>0,(_xlfn.RANK.EQ(Tabelle6[[#This Row],[Korrigiert]],$E$7:$E$38,0)),) -> 0 | C37: ='G. Steiner'!$R$18 -> 0 | D37: ='G. Steiner'!$B$4 -> 90 | E37: =IF(D37="ST",C37*$D$2,IF(D37=90,C37*$D$3,IF(D37=57,C37*$D$4,))) -> 0
A38: ='O. Tellenbach'!$B$1 -> Tellenbach Otto | B38: =IF(Tabelle6[[#This Row],[Korrigiert]]>0,(_xlfn.RANK.EQ(Tabelle6[[#This Row],[Korrigiert]],$E$7:$E$38,0)),) -> 18 | C38: ='O. Tellenbach'!$R$18 -> 65 | D38: ='O. Tellenbach'!$B$4 -> 57 | E38: =IF(D38="ST",C38*$D$2,IF(D38=90,C38*$D$3,IF(D38=57,C38*$D$4,))) -> 66.625

Sheet Rangliste Sau
D1: Beste nicht gerechnete
A2: Name | B2: Rang Sau | C2: Sau Total | D2: 1Einzel | E2: 2Einzel | F2: 3Einzel
A3: ='P. Friedli'!$A$2 -> Friedli Peter | B3: 1 | C3: ='P. Friedli'!$L$8 -> 980 | D3: ='P. Friedli'!$J$9 -> 97 | E3: ='P. Friedli'!$J$10 -> 96 | F3: ='P. Friedli'!$J$11 -> 96
A4: ='R. Eschmann'!$A$2 -> Eschmann Roger | B4: 2 | C4: ='R. Eschmann'!$L$8 -> 964 | D4: ='R. Eschmann'!$J$13 -> 96 | E4: ='R. Eschmann'!$J$14 -> 96 | F4: ='R. Eschmann'!$J$15 -> 95
A5: ='S. Morello'!$A$2 -> Morello Sandro | B5: 3 | C5: ='S. Morello'!$L$8 -> 963 | D5: ='S. Morello'!$J$9 -> 99 | E5: ='S. Morello'!$J$10 -> 98 | F5: ='S. Morello'!$J$11 -> 96
A6: ='D. Wyss'!$B$1 -> Wyss Daniel | B6: 2 | C6: ='D. Wyss'!L8 ->  | D6: ='D. Wyss'!$J$9 ->  | E6: ='D. Wyss'!$J$10 ->  | F6: ='D. Wyss'!$J$11 -> 
A7: ='S. Kocher'!$A$2 -> Kocher Sascha | B7: 4 | C7: ='S. Kocher'!$L$8 -> 957 | D7: ='S. Kocher'!$J$13 -> 94 | E7: ='S. Kocher'!$J$14 -> 94 | F7: ='S. Kocher'!$J$15 -> 93
A8: ='H. Bürgi'!$A$2 -> Bürgi Heinz | B8: 5 | C8: ='H. Bürgi'!$L$8 -> 951 | D8: ='H. Bürgi'!$J$11 -> 94 | E8: ='H. Bürgi'!$J$12 -> 94 | F8: ='H. Bürgi'!$J$13 -> 93
A9: ='C. Erb'!$A$2 -> Erb Corinne | C9: ='C. Erb'!$L$8 ->  | D9: ='C. Erb'!$J$11 ->  | E9: ='C. Erb'!$J$12 ->  | F9: ='C. Erb'!$J$13 -> 
A10: ='R. Friedelance'!$A$2 -> Friedelance Roger | C10: ='R. Friedelance'!$L$8 ->  | D10: ='R. Friedelance'!$J$11 ->  | E10: ='R. Friedelance'!$J$12 ->  | F10: ='R. Friedelance'!$J$13 -> 
A11: ='M. Huggler'!$B$1 -> Huggler Marylène | B11: 6 | C11: ='M. Huggler'!$L$8 -> 949 | D11: ='M. Huggler'!$J$11 -> 94 | E11: ='M. Huggler'!$J$12 -> 94 | F11: ='M. Huggler'!$J$13 -> 91
A12: ='E .Rüfli'!$A$2 -> Rüfli Ernst | B12: 7 | C12: ='E .Rüfli'!$L$8 -> 940 | D12: ='E .Rüfli'!$J$11 -> 90 | E12: ='E .Rüfli'!$J$12 -> 90 | F12: ='E .Rüfli'!$J$13 -> 90
A13: ='Ch. Liechti'!B1 -> Liechti Charles | B13: 8 | C13: ='Ch. Liechti'!L8 -> 935 | D13: ='Ch. Liechti'!$J$11 -> 91 | E13: ='Ch. Liechti'!$J$12 -> 90 | F13: ='Ch. Liechti'!$J$13 -> 88
A14: ='S. Wälti'!$A$2 -> Wälti Sascha | B14: 9 | C14: ='S. Wälti'!$L$8 -> 934 | D14: ='S. Wälti'!$J$11 -> 92 | E14: ='S. Wälti'!$J$12 -> 90 | F14: ='S. Wälti'!$J$13 -> 90
A15: ='P. Abrecht'!$B$1 -> Abrecht Pascal | B15: 10 | C15: ='P. Abrecht'!$L$8 -> 930 | D15: ='P. Abrecht'!$J$11 -> 92 | E15: ='P. Abrecht'!$J$12 -> 92 | F15: ='P. Abrecht'!$J$13 -> 91
A16: ='Zusammenstellung Daten'!A34 -> Brügger Fred | B16: 8 | C16: ='Zusammenstellung Daten'!$B$34 ->  | D16: ='Zusammenstellung Daten'!$C$34 ->  | E16: ='Zusammenstellung Daten'!$D$34 ->  | F16: ='Zusammenstellung Daten'!$E$34 -> 
A17: ='R. Liechti'!$A$2 -> Rodolphe Liechti | B17: 11 | C17: ='R. Liechti'!$L$8 -> 929 | D17: ='R. Liechti'!$J$11 -> 92 | E17: ='R. Liechti'!$J$12 -> 91 | F17: ='R. Liechti'!$J$13 -> 90
A18: ='H. Lüthi'!$B$1 -> Lüthi Hans | C18: ='H. Lüthi'!$L$8 ->  | D18: ='H. Lüthi'!$J$11 ->  | E18: ='H. Lüthi'!$J$12 ->  | F18: ='H. Lüthi'!$J$13 -> 
A19: ='A. Morello'!$A$2 -> Morello Adrian | B19: 10 | C19: ='A. Morello'!$L$8 ->  | D19: ='A. Morello'!$J$11 ->  | E19: ='A. Morello'!$J$12 ->  | F19: ='A. Morello'!$J$13 -> 
A20: ='M. Käppeli'!$A$2 -> Käppeli Mathias | B20: 12 | C20: ='M. Käppeli'!$L$8 -> 928 | D20: ='M. Käppeli'!$J$11 -> 91 | E20: ='M. Käppeli'!$J$12 -> 91 | F20: ='M. Käppeli'!J11 -> 91
A21: ='T. Abrecht'!$A$2 -> Abrecht Theodor | B21: 13 | C21: ='T. Abrecht'!$L$8 -> 925 | D21: ='T. Abrecht'!$J$11 -> 91 | E21: ='T. Abrecht'!$J$12 -> 90 | F21: ='T. Abrecht'!$J$13 -> 84
A22: ='B. Gatschet'!B1 -> Gatschet Beat | B22: 12 | C22: ='B. Gatschet'!L8 ->  | D22: ='B. Gatschet'!J9 ->  | E22: ='B. Gatschet'!J10 ->  | F22: ='B. Gatschet'!J11 -> 
A23: ='H. Stuber'!$A$2 -> Stuber Hans | B23: 14 | C23: ='H. Stuber'!$L$8 -> 923 | D23: ='H. Stuber'!$J$11 -> 91 | E23: ='H. Stuber'!$J$12 -> 90 | F23: ='H. Stuber'!$J$13 -> 90
A24: ='J. Zbinden'!$A$2 -> Zbinden Jakob | B24: 15 | C24: ='J. Zbinden'!$L$8 -> 916 | D24: ='J. Zbinden'!$J$9 -> 90 | E24: ='J. Zbinden'!$J$10 -> 90 | F24: ='J. Zbinden'!$J$11 -> 89
A25: ='H.J. Schneider'!$A$2 -> Schneider Hans-Jörg | B25: 15 | C25: ='H.J. Schneider'!$L$8 ->  | D25: ='H.J. Schneider'!$J$13 ->  | E25: ='H.J. Schneider'!$J$14 ->  | F25: ='H.J. Schneider'!$J$15 -> 
A26: ='M. Rüfli'!$A$2 -> Rüfli Magdalena | B26: 16 | C26: ='M. Rüfli'!$L$8 ->  | D26: ='M. Rüfli'!$J$11 ->  | E26: ='M. Rüfli'!$J$12 ->  | F26: ='M. Rüfli'!$J$13 -> 
A27: ='A. Stähli'!$B$1 -> Stähli André | B27: 15 | C27: ='A. Stähli'!$L$8 ->  | D27: ='A. Stähli'!$J$11 ->  | E27: ='A. Stähli'!$J$12 ->  | F27: ='A. Stähli'!$J$13 -> 
A28: ='H. Wanner'!$A$2 -> Wanner Heinz | B28: 18 | C28: ='H. Wanner'!$L$8 ->  | D28: ='H. Wanner'!$J$11 ->  | E28: ='H. Wanner'!$J$12 ->  | F28: ='H. Wanner'!$J$13 -> 
A29: ='A. Kunz'!$B$1 -> Kunz Alfred | B29: 16 | C29: ='A. Kunz'!$L$8 -> 915 | D29: ='A. Kunz'!$J$11 -> 91 | E29: ='A. Kunz'!$J$12 -> 90 | F29: ='A. Kunz'!$J$13 -> 89
A30: ='A. Erb'!$A$2 -> Erb Alex | B30: 17 | C30: ='A. Erb'!$L$8 -> 914 | D30: ='A. Erb'!$J$11 -> 88 | E30: ='A. Erb'!$J$12 -> 88 | F30: ='A. Erb'!$J$13 -> 88
A31: ='R. Krähenbühl'!$B$1 -> Krähenbühl Rita | B31: 18 | C31: ='R. Krähenbühl'!$L$8 -> 901 | D31: ='R. Krähenbühl'!$J$11 -> 89 | E31: ='R. Krähenbühl'!$J$12 -> 88 | F31: ='R. Krähenbühl'!$J$13 -> 86
A32: ='O. Tellenbach'!$B$1 -> Tellenbach Otto | B32: 19 | C32: ='O. Tellenbach'!$L$8 -> 856 | D32: ='O. Tellenbach'!J11 -> 75 | E32: ='O. Tellenbach'!J12 -> 75 | F32: ='O. Tellenbach'!J13 -> 72
A33: ='G. Steiner'!$B$1 -> Gladys Steiner | B33: 23 | C33: ='G. Steiner'!$L$8 ->  | D33: ='G. Steiner'!$J$11 ->  | E33: ='G. Steiner'!$J$12 ->  | F33: ='G. Steiner'!J11 -> 
A34: ='D. Jenni'!$A$2 -> Jenni Daniel | B34: 20 | C34: ='D. Jenni'!$L$8 -> 850 | D34: ='D. Jenni'!$J$13 -> 79 | E34: ='D. Jenni'!$J$14 -> 76 | F34: ='D. Jenni'!$J$15 -> 75

Sheet Gutschein
A2: Gutscheine
A3: Name | B3: Wo
A4: ='A. Erb'!A2 -> Erb Alex | B4: ='A. Erb'!B3 -> Migros
A5: ='A. Morello'!A2 -> Morello Adrian | B5: ='A. Morello'!B3 -> 0
A6: ='D. Jenni'!A2 -> Jenni Daniel | B6: ='D. Jenni'!B3 -> Coop
A7: ='E .Rüfli'!A2 -> Rüfli Ernst | B7: ='E .Rüfli'!B3 -> Coop
A8: ='H. Stuber'!A2 -> Stuber Hans | B8: ='H. Stuber'!B3 -> Coop
A9: ='J. Zbinden'!A2 -> Zbinden Jakob | B9: ='J. Zbinden'!B3 -> Coop
A10: ='A. Kunz'!B1 -> Kunz Alfred | B10: ='A. Kunz'!B2 -> Coop
A11: ='P. Friedli'!A2 -> Friedli Peter | B11: ='P. Friedli'!B3 -> Denner
A12: ='H. Bürgi'!A2 -> Bürgi Heinz | B12: ='H. Bürgi'!B3 -> Migros
A13: ='M. Rüfli'!A2 -> Rüfli Magdalena | B13: ='M. Rüfli'!B3 -> 0
A14: ='H.J. Schneider'!A2 -> Schneider Hans-Jörg | B14: ='H.J. Schneider'!B3 -> 0
A15: ='R. Eschmann'!A2 -> Eschmann Roger | B15: ='R. Eschmann'!B3 -> Migros
A16: ='A. Stähli'!B1 -> Stähli André | B16: ='A. Stähli'!B2 -> 0
A17: ='F. Brügger'!B1 -> Brügger Fred | B17: ='F. Brügger'!B2 -> 0
A18: ='S. Kocher'!A2 -> Kocher Sascha | B18: ='S. Kocher'!B3 -> Migros
A19: ='C. Erb'!A2 -> Erb Corinne | B19: ='C. Erb'!B3 -> 0
A20: ='T. Abrecht'!A2 -> Abrecht Theodor | B20: ='T. Abrecht'!B3 -> Migros
A21: ='H. Wanner'!A2 -> Wanner Heinz | B21: ='H. Wanner'!B3 -> 0
A22: ='S. Wälti'!A2 -> Wälti Sascha | B22: ='S. Wälti'!B3 -> Migros
A23: ='R. Friedelance'!A2 -> Friedelance Roger | B23: ='R. Friedelance'!B3 -> 0
A24: ='S. Morello'!A2 -> Morello Sandro | B24: ='S. Morello'!B3 -> Migros
A25: ='P. Abrecht'!B1 -> Abrecht Pascal | B25: ='P. Abrecht'!B2 -> Coop
A26: ='O. Tellenbach'!B1 -> Tellenbach Otto | B26: ='O. Tellenbach'!B2 -> Coop
A27: ='M. Käppeli'!A2 -> Käppeli Mathias | B27: ='M. Käppeli'!B3 -> Denner
A28: ='R. Liechti'!A2 -> Rodolphe Liechti | B28: ='R. Liechti'!B3 -> Migros
A29: ='H. Lüthi'!B1 -> Lüthi Hans | B29: ='H. Lüthi'!C2 -> 0
A30: ='M. Huggler'!B1 -> Huggler Marylène | B30: ='M. Huggler'!B2 -> Coop
A31: ='R. Krähenbühl'!B1 -> Krähenbühl Rita | B31: ='R. Krähenbühl'!B2 -> Migros
A32: ='Ch. Liechti'!B1 -> Liechti Charles | B32: ='Ch. Liechti'!B2 -> Coop
A33: ='G. Steiner'!B1 -> Gladys Steiner | B33: ='G. Steiner'!B2 -> 0
A34: ='D. Wyss'!B1 -> Wyss Daniel | B34: ='D. Wyss'!B2 -> 0
A35: ='B. Gatschet'!B1 -> Gatschet Beat | B35: ='B. Gatschet'!B2 -> 0
